account_party,address,code,date,document_number,expense_code_name,expense_code_name_short,id,party_cell,party_cell_code,party_cell_geoobject,purpose,source_bank_account_number,source_bank_account_type,sum,target_legal_personality,target_legal_personality_code,target_type
УКРОП,"Харківська область, Зачепилівський район, Зачепилівка",79,2017-12-29,п/д №138,"Оренда будинків і приміщень та експлуатаційні витрати (прибирання, страхування орендованих будинків, охорона, сигналізація, ремонт, вивіз сміття, тощо)",Оренда нерухомості,37941,"Харківська обласна організація політичної партії ""Українське обʼєднання патріотів - УКРОП""",39973329,Харківська область,Сплата за оренду за грудень 2017р,26000556842,current_candidate,474.19,Зачепилівське районне споживче товариство,01769228,юридична особа
УКРОП,"Київ, вулиця Миколи Лєскова, 9",70,2017-12-29,bn,Банківські послуги,Інші витрати,37940,"Харківська обласна організація політичної партії ""Українське обʼєднання патріотів - УКРОП""",39973329,Харківська область,Комісія за обслугов.рах.,26000556842,current_candidate,250.00,"АТ ""Райффайзен банк Аваль""",14305909,юридична особа
УКРОП,"Київ, вулиця Миколи Лєскова, 9",70,2017-12-29,bn,Банківські послуги,Інші витрати,37939,"Харківська обласна організація політичної партії ""Українське обʼєднання патріотів - УКРОП""",39973329,Харківська область,Комісія за обслугов.рах.,26000556842,current_candidate,18.00,"АТ ""Райффайзен банк Аваль""",14305909,юридична особа
УКРОП,"Київ, вулиця Михайла Грушевського, 1Д",70,2017-12-29,п/д №172,Банківські послуги,Інші витрати,37938,"Харківська обласна організація політичної партії ""Українське обʼєднання патріотів - УКРОП""",39973329,Харківська область,Комісія за обслугов.рах.,26000556842,current_candidate,15.60,"ПАТ КБ ""Приватбанк""",14360570,юридична особа
УКРОП,"Київ, вулиця Михайла Грушевського, 1Д",70,2017-12-29,CTO0NTLKUY,Банківські послуги,Інші витрати,36610,"Одеська обласна парторганізація політичної партії ""Українське обʼєднання патріотів - УКРОП""",39994815,Одеська область,Комісія за дебетування рахунку,26004054327711,current,3.00,"ПАТ КБ ""Приватбанк""",14360570,юридична особа
УКРОП,"Одеська область, Одеса, вулиця Черняховського, 6",63,2017-12-29,90,Податок на доходи,Податкові платежі,36609,"Одеська обласна парторганізація політичної партії ""Українське обʼєднання патріотів - УКРОП""",39994815,Одеська область,*;101;39994815;11010100;;;ПД ФО на зп у грудні 2017 р. Без ПДВ.,26004054327711,current,340.70,УДКСУ у м. Одесі,38016923,юридична особа
УКРОП,"Київ, вулиця Михайла Грушевського, 1Д",70,2017-12-29,CTO0NTLKJY,Банківські послуги,Інші витрати,36608,"Одеська обласна парторганізація політичної партії ""Українське обʼєднання патріотів - УКРОП""",39994815,Одеська область,Комісія за дебетування рахунку,26004054327711,current,3.00,"ПАТ КБ ""Приватбанк""",14360570,юридична особа
УКРОП,"Одеська область, Одеса, проспект Академіка Глушка, 17/2",62,2017-12-29,89,Сплата ЄСВ,Податкові платежі,36607,"Одеська обласна парторганізація політичної партії ""Українське обʼєднання патріотів - УКРОП""",39994815,Одеська область,*;201;39994815;ЄСВ на зп у грудні 2017 р. Без ПДВ.,26004054327711,current,410.30,ДПІ у Київському р-ні м. Одеси,39549642,юридична особа
УКРОП,"Київ, вулиця Михайла Грушевського, 1Д",70,2017-12-29,CTO0NTLKBY,Банківські послуги,Інші витрати,36606,"Одеська обласна парторганізація політичної партії ""Українське обʼєднання патріотів - УКРОП""",39994815,Одеська область,Комісія за дебетування рахунку,26004054327711,current,3.00,"ПАТ КБ ""Приватбанк""",14360570,юридична особа
УКРОП,"Одеська область, Одеса, вулиця Черняховського, 6",61,2017-12-29,88,Військовий збір,Податкові платежі,36605,"Одеська обласна парторганізація політичної партії ""Українське обʼєднання патріотів - УКРОП""",39994815,Одеська область,*;101;39994815;11011000;;; ВЗ на зп у грудні 2017г. Без ПДВ.,26004054327711,current,27.98,УДКСУ у м. Одесі,38016923,юридична особа
УКРОП,"Київ, вулиця Михайла Грушевського, 1Д",70,2017-12-29,91,Банківські послуги,Інші витрати,36604,"Одеська обласна парторганізація політичної партії ""Українське обʼєднання патріотів - УКРОП""",39994815,Одеська область,Комісія РКО від зп за грудні 2017г.,26004054327711,current,3.75,"ПАТ КБ ""Приватбанк""",14360570,юридична особа
УКРОП,"Одеська область, Одеса",84,2017-12-29,90,"Заробітна плата, премії","Заробітна плата, лікарняні, вагітності, відрядження, компенсації",36498,"Одеська обласна парторганізація політичної партії ""Українське обʼєднання патріотів - УКРОП""",39994815,Одеська область,Зарплата за грудень 2017г,26004054327711,current,1501.33,Кармазіна Олена Леонідівна,,фізична особа
УКРОП,"Львівська область, Львів, вулиця Січових Стрільців, 5",79,2017-12-29,169,"Оренда будинків і приміщень та експлуатаційні витрати (прибирання, страхування орендованих будинків, охорона, сигналізація, ремонт, вивіз сміття, тощо)",Оренда нерухомості,36117,"Львівська обласна організація політичної партії ""Українське обʼєднання патріотів - УКРОП""",39923503,Львівська область,Оплата за оренду приміщення за січень 2018 р Згідно договору N 1/12 від 01 12 2016 р Без,26001053838223,current,5000.00,Савельєва Людмила Анатоліївна,2577216304,фізична особа
УКРОП,"Львівська область, Львів, проспект Червоної Калини, 45",76,2017-12-29,463,Послуги зв’язку,Послуги зв’язку,34485,"Волинська обласна організація політичної партії ""Українське обʼєднання патріотів - УКРОП""",39946248,Волинська область,"Оплата послуг інтернету за січень 2018 р. по дог. N136278 У сумі 125.00 грн., ПДВ - 20 % 25.00 грн.",26007055507180,current,150.00,"ТОВ ""Бізнес і технології""",31442320,юридична особа
УКРОП,"Київ, вулиця Михайла Грушевського, 1Д",70,2017-12-28,CSO0NLDVKY,Банківські послуги,Інші витрати,38275,"Чернігівська обласна організація політичної партії ""Українське обʼєднання патріотів - УКРОП""",39941035,Чернігівська область,"Комісія за виконання платежів в національній валюті, згідно з відкритою офертою банку №б\н від 26.07.2017 та тарифів банку, без ПДВ",26005051421611,current,3.00,"ПАТ КБ ""Приватбанк""",14360570,юридична особа
УКРОП,"Київ, вулиця Михайла Грушевського, 1Д",70,2017-12-28,CSO0NLED9Y,Банківські послуги,Інші витрати,38274,"Чернігівська обласна організація політичної партії ""Українське обʼєднання патріотів - УКРОП""",39941035,Чернігівська область,"Комісія за виконання платежів в національній валюті, згідно з відкритою офертою банку №б\н від 26.07.2017 та тарифів банку, без ПДВ",26005051421611,current,3.00,"ПАТ КБ ""Приватбанк""",14360570,юридична особа
УКРОП,"Чернігівська область, Чернігів, вулиця Олексія Фльорова, 13",79,2017-12-28,58,"Оренда будинків і приміщень та експлуатаційні витрати (прибирання, страхування орендованих будинків, охорона, сигналізація, ремонт, вивіз сміття, тощо)",Оренда нерухомості,38269,"Чернігівська обласна організація політичної партії ""Українське обʼєднання патріотів - УКРОП""",39941035,Чернігівська область,Оренда за грудень 2017р відповідно до договору оренди №1 від 01.12.2017р,26005051421611,current,8000.00,Лебедєва Тетяна Іванівна,1869628424,фізична особа
УКРОП,"Чернігівська область, Чернігів, вулиця Олексія Фльорова, 13",79,2017-12-28,59,"Оренда будинків і приміщень та експлуатаційні витрати (прибирання, страхування орендованих будинків, охорона, сигналізація, ремонт, вивіз сміття, тощо)",Оренда нерухомості,38268,"Чернігівська обласна організація політичної партії ""Українське обʼєднання патріотів - УКРОП""",39941035,Чернігівська область,Оплата за електроенергію за грудень 2017р відповідно до договору оренди №1 від 01.12.2017р,26005051421611,current,849.80,Лебедєва Тетяна Іванівна,1869628424,фізична особа
УКРОП,"Тернопільська область, Тернопіль, вулиця Білецька, 3",79,2017-12-28,46,"Оренда будинків і приміщень та експлуатаційні витрати (прибирання, страхування орендованих будинків, охорона, сигналізація, ремонт, вивіз сміття, тощо)",Оренда нерухомості,37531,"Тернопільська обласна регіональна парторганізація політичної партії ""Українське обʼєднання патріотів - УКРОП""",39943199,Тернопільська область,"Орендна плата за приміщення за січень,лютий 2018 згідно договору №"" від.27.02.2017",26002055111187,current,16000.00,"ПП ""ІМІКА""",37681437,юридична особа
УКРОП,"Київ, вулиця Михайла Грушевського, 1Д",70,2017-12-28,TZ008BNVXN,Банківські послуги,Інші витрати,36959,"Полтавська обласна організація політичної партії ""Українське обʼєднання патріотів - УКРОП""",39947896,Полтавська область,Оплата комiсiї за касове обслуговування по ПОРППП УКР. ОБ'ЄДНАННЯ ПАТР.-УКРОП.,26003054616293,current,8.21,"ПАТ КБ ""Приватбанк""",14360570,юридична особа
УКРОП,"Київ, вулиця Михайла Грушевського, 1Д",70,2017-12-28,CSO0NODEQY,Банківські послуги,Інші витрати,36958,"Полтавська обласна організація політичної партії ""Українське обʼєднання патріотів - УКРОП""",39947896,Полтавська область,"Комiсiя за виконання платежiв в нацiональнiй валютi, згiдно з вiдкритою офертою банку N б/н вiд 21.08.2015 та тарифiв банку, без ПДВ.",26003054616293,current,3.00,"ПАТ КБ ""Приватбанк""",14360570,юридична особа
УКРОП,"Полтавська область, Миргород, вулиця Сорочинська, 33",79,2017-12-28,197,"Оренда будинків і приміщень та експлуатаційні витрати (прибирання, страхування орендованих будинків, охорона, сигналізація, ремонт, вивіз сміття, тощо)",Оренда нерухомості,36674,"Полтавська обласна організація політичної партії ""Українське обʼєднання патріотів - УКРОП""",39947896,Полтавська область,За оренду примiщення по договору N1 вiд 23.10.2017 року. Без ПДВ,26003054616293,current,2000.00,Самойлович Ростислав Володимирович,2714812733,фізична особа
УКРОП,"Київ, вулиця Михайла Грушевського, 1Д",70,2017-12-28,CSO0NQIK QY,Банківські послуги,Інші витрати,36484,"Миколаївська обласна організація політичної партії ""Українське обʼєднання патріотів - УКРОП""",39953669,Миколаївська область,"Комісія за виконання платежів в нац. валюті, згідно з відкритою офертою банку №б/н від 23.09.15 р. та тарифів банку, без ПДВ",26001053221497,current,3.00,"ПАТ КБ ""Приватбанк""",14360570,юридична особа
УКРОП,"Миколаївська область, Миколаїв, вулиця Чкалова, 169",79,2017-12-28,91,"Оренда будинків і приміщень та експлуатаційні витрати (прибирання, страхування орендованих будинків, охорона, сигналізація, ремонт, вивіз сміття, тощо)",Оренда нерухомості,36483,"Миколаївська обласна організація політичної партії ""Українське обʼєднання патріотів - УКРОП""",39953669,Миколаївська область,Орендна плата за вересень 2017 р.по договору суборенди №2/2 нежитлового приміщення від 1.11.16 р.,26001053221497,current,15570.00,"ТОВ Бізнес Центр ""Ніка""",40860798,юридична особа
УКРОП,Київ,79,2017-12-28,2*12,"Оренда будинків і приміщень та експлуатаційні витрати (прибирання, страхування орендованих будинків, охорона, сигналізація, ремонт, вивіз сміття, тощо)",Оренда нерухомості,36280,"Київська міська організація політичної партії ""Українське обʼєднання патріотів - УКРОП""",39976560,Київ,Сфаховий платіж но договору суборенди НСЖНГЛОНОГО нрнмшісння від 26 12 2017р БсіПЛВ,26001052639809,current,21107.00,Лозовська Наталія Володимирівна,2993515105,фізична особа
УКРОП,"Львівська область, Дрогобич, Бориславська вулиця, 82",67,2017-12-28,164,"Повернення коштів, що надійшли з державного бюджету","Повернення коштів, що надійшли з державного бюджету",36269,"Львівська обласна організація політичної партії ""Українське обʼєднання патріотів - УКРОП""",39923503,Львівська область,грошові кошти надійшли з порушенням вимог законодавства,26001053838223,current,300.00,ПАТ НАФТОПЕРЕРОБНИЙ КОМПЛЕКС-ГАЛИЧИНА,00152388,юридична особа
УКРОП,"Київ, вулиця Михайла Грушевського, 1Д",70,2017-12-28,CSO0NRJWGY,Банківські послуги,Інші витрати,36268,"Львівська обласна організація політичної партії ""Українське обʼєднання патріотів - УКРОП""",39923503,Львівська область,грошові кошти надійшли з порушенням вимог законодавства,26001053838223,current,3.00,"ПАТ КБ ""Приватбанк""",14360570,юридична особа
УКРОП,"Київ, вулиця Михайла Грушевського, 1Д",70,2017-12-28,CSO0NRJWGX,Банківські послуги,Інші витрати,36267,"Львівська обласна організація політичної партії ""Українське обʼєднання патріотів - УКРОП""",39923503,Львівська область,грошові кошти надійшли з порушенням вимог законодавства,26001053838223,current,0.60,"ПАТ КБ ""Приватбанк""",14360570,юридична особа
УКРОП,"Київ, вулиця Михайла Грушевського, 1Д",70,2017-12-28,TZ008BNWHW,Банківські послуги,Інші витрати,36076,"Кіровоградська обласна регіональна парторганізація політичної партії ""Українське обʼєднання патріотів - УКРОП""",39922803,Кіровоградська область,комісія за касове обслуговування по зарахуванню на картки,26009052911811,current,1.61,"ПАТ КБ ""Приватбанк""",14360570,юридична особа
УКРОП,"Київ, вулиця Михайла Грушевського, 1Д",70,2017-12-28,CSO0NK8Z4Y,Банківські послуги,Інші витрати,36075,"Кіровоградська обласна регіональна парторганізація політичної партії ""Українське обʼєднання патріотів - УКРОП""",39922803,Кіровоградська область,комісія за виконання платежів в національній валюті,26009052911811,current,3.00,"ПАТ КБ ""Приватбанк""",14360570,юридична особа
УКРОП,"Київ, вулиця Михайла Грушевського, 1Д",70,2017-12-28,CSO0NK8ZIY,Банківські послуги,Інші витрати,36074,"Кіровоградська обласна регіональна парторганізація політичної партії ""Українське обʼєднання патріотів - УКРОП""",39922803,Кіровоградська область,комісія за виконання платежів в національній валюті,26009052911811,current,3.00,"ПАТ КБ ""Приватбанк""",14360570,юридична особа
УКРОП,"Кіровоградська область, Кропивницький",61,2017-12-28,171,Військовий збір,Податкові платежі,36073,"Кіровоградська обласна регіональна парторганізація політичної партії ""Українське обʼєднання патріотів - УКРОП""",39922803,Кіровоградська область,військовий збір з орендної плати за грудень 2017р.,26009052911811,current,22.50,УДКСУ у м. Кропивницькому,38037409,юридична особа
УКРОП,"Київ, вулиця Михайла Грушевського, 1Д",70,2017-12-28,CSO0NK8ZDY,Банківські послуги,Інші витрати,36072,"Кіровоградська обласна регіональна парторганізація політичної партії ""Українське обʼєднання патріотів - УКРОП""",39922803,Кіровоградська область,комісія за виконання платежів в національній валюті,26009052911811,current,3.00,"ПАТ КБ ""Приватбанк""",14360570,юридична особа
УКРОП,"Кіровоградська область, Кропивницький",63,2017-12-28,170,Податок на доходи,Податкові платежі,36071,"Кіровоградська обласна регіональна парторганізація політичної партії ""Українське обʼєднання патріотів - УКРОП""",39922803,Кіровоградська область,ПДФО 18% із орендної плати за грудень 2017,26009052911811,current,270.00,УДКСУ у м. Кропивницькому,38037409,юридична особа
УКРОП,Кіровоградська область,79,2017-12-28,169,"Оренда будинків і приміщень та експлуатаційні витрати (прибирання, страхування орендованих будинків, охорона, сигналізація, ремонт, вивіз сміття, тощо)",Оренда нерухомості,35877,"Кіровоградська обласна регіональна парторганізація політичної партії ""Українське обʼєднання патріотів - УКРОП""",39922803,Кіровоградська область,орендна плата за грудень 2017р.,26009052911811,current,1207.50,Деревʼянко Жанна Володимирівна,,фізична особа
УКРОП,"Кіровоградська область, Кропивницький",79,2017-12-28,172,"Оренда будинків і приміщень та експлуатаційні витрати (прибирання, страхування орендованих будинків, охорона, сигналізація, ремонт, вивіз сміття, тощо)",Оренда нерухомості,35876,"Кіровоградська обласна регіональна парторганізація політичної партії ""Українське обʼєднання патріотів - УКРОП""",39922803,Кіровоградська область,орендна плата за грудень 2017р.,26009052911811,current,8500.00,Руденко Ольга Володимирівна,2960517380,фізична особа
УКРОП,"Київ, вулиця Михайла Грушевського, 1Д",70,2017-12-28,336,Банківські послуги,Інші витрати,35849,"Івано-Франківська обласнапарторганізація політичної партії ""Українське обʼєднання патріотів - УКРОП""",39915162,Івано-Франківська область,Комiсiя РКО вiд зарплати за грудень 2017р.,26007052513345,current,10.42,"ПАТ КБ ""Приватбанк""",14360570,юридична особа
УКРОП,"Київ, вулиця Михайла Грушевського, 1Д",70,2017-12-28,CSO0NK4T3Y,Банківські послуги,Інші витрати,35848,"Івано-Франківська обласнапарторганізація політичної партії ""Українське обʼєднання патріотів - УКРОП""",39915162,Івано-Франківська область,"Комiсiя за виконання платежiв в нацiональнiй валютi, згiдно з вiдкритою офертою банку N б/н вiд 11.08.2015 та тарифiв банку, без ПДВ.",26007052513345,current,3.00,"ПАТ КБ ""Приватбанк""",14360570,юридична особа
УКРОП,"Івано-Франківська область, Івано-Франківськ, вулиця Михайла Грушевського, 32",61,2017-12-28,335,Військовий збір,Податкові платежі,35847,"Івано-Франківська обласнапарторганізація політичної партії ""Українське обʼєднання патріотів - УКРОП""",39915162,Івано-Франківська область,*;101;39915162;;;Вiйськовий збiр вiд зарплати за грудень 2017р.,26007052513345,current,78.00,УДКСУ у м. Івано-Франківську,37952250,юридична особа
УКРОП,"Київ, вулиця Михайла Грушевського, 1Д",70,2017-12-28,CSO0NK4SYY,Банківські послуги,Інші витрати,35846,"Івано-Франківська обласнапарторганізація політичної партії ""Українське обʼєднання патріотів - УКРОП""",39915162,Івано-Франківська область,"Комiсiя за виконання платежiв в нацiональнiй валютi, згiдно з вiдкритою офертою банку N б/н вiд 11.08.2015 та тарифiв банку, без ПДВ.",26007052513345,current,3.00,"ПАТ КБ ""Приватбанк""",14360570,юридична особа
УКРОП,"Івано-Франківська область, Івано-Франківськ, вулиця Незалежності, 20",62,2017-12-28,334,Сплата ЄСВ,Податкові платежі,35845,"Івано-Франківська обласнапарторганізація політичної партії ""Українське обʼєднання патріотів - УКРОП""",39915162,Івано-Франківська область,*;101;39915162;;;ЄСВ вiд зарплати за грудень 2017р.,26007052513345,current,1444.00,ДПІ в м. Івано-Франківську ГУ ДФС в Івано-Франківській області,39508514,юридична особа
УКРОП,"Київ, вулиця Михайла Грушевського, 1Д",70,2017-12-28,CSO0NK4SUY,Банківські послуги,Інші витрати,35844,"Івано-Франківська обласнапарторганізація політичної партії ""Українське обʼєднання патріотів - УКРОП""",39915162,Івано-Франківська область,"Комiсiя за виконання платежiв в нацiональнiй валютi, згiдно з вiдкритою офертою банку N б/н вiд 11.08.2015 та тарифiв банку, без ПДВ.",26007052513345,current,3.00,"ПАТ КБ ""Приватбанк""",14360570,юридична особа
УКРОП,"Івано-Франківська область, Івано-Франківськ, вулиця Михайла Грушевського, 32",63,2017-12-28,333,Податок на доходи,Податкові платежі,35843,"Івано-Франківська обласнапарторганізація політичної партії ""Українське обʼєднання патріотів - УКРОП""",39915162,Івано-Франківська область,*;101;39915162;;; ПДФО вiд зарплати за грудень 2017р.,26007052513345,current,604.00,УДКСУ у м. Івано-Франківську,37952250,юридична особа
УКРОП,"Івано-Франківська область, Івано-Франківськ",84,2017-12-28,171228СТ268529,"Заробітна плата, премії","Заробітна плата, лікарняні, вагітності, відрядження, компенсації",35653,"Івано-Франківська обласнапарторганізація політичної партії ""Українське обʼєднання патріотів - УКРОП""",39915162,Івано-Франківська область,Зарплата за грудень 2017р. ПО ВIДОМОСТI N 171228СТ268529 ВIД 28.12.2017 РОКУ,26007052513345,current,449.00,Хоминець Олександра Михайлівна,,фізична особа
УКРОП,"Івано-Франківська область, Івано-Франківськ",84,2017-12-28,171228СТ268529,"Заробітна плата, премії","Заробітна плата, лікарняні, вагітності, відрядження, компенсації",35652,"Івано-Франківська обласнапарторганізація політичної партії ""Українське обʼєднання патріотів - УКРОП""",39915162,Івано-Франківська область,Зарплата за грудень 2017р. ПО ВIДОМОСТI N 171228СТ268529 ВIД 28.12.2017 РОКУ,26007052513345,current,817.50,Шевчук Олександр Дмитрович,,фізична особа
УКРОП,"Івано-Франківська область, Івано-Франківськ",84,2017-12-28,171228СТ268529,"Заробітна плата, премії","Заробітна плата, лікарняні, вагітності, відрядження, компенсації",35651,"Івано-Франківська обласнапарторганізація політичної партії ""Українське обʼєднання патріотів - УКРОП""",39915162,Івано-Франківська область,Зарплата за грудень 2017р. ПО ВIДОМОСТI N 171228СТ268529 ВIД 28.12.2017 РОКУ,26007052513345,current,737.00,Хоминець Микола Іванович,,фізична особа
УКРОП,"Івано-Франківська область, Ворохта",84,2017-12-28,171228СТ268529,"Заробітна плата, премії","Заробітна плата, лікарняні, вагітності, відрядження, компенсації",35650,"Івано-Франківська обласнапарторганізація політичної партії ""Українське обʼєднання патріотів - УКРОП""",39915162,Івано-Франківська область,Зарплата за грудень 2017р. ПО ВIДОМОСТI N 171228СТ268529 ВIД 28.12.2017 РОКУ,26007052513345,current,2164.50,Палійчук Микола Васильович,,фізична особа
УКРОП,"Київ, вулиця Михайла Грушевського, 1Д",70,2017-12-28,CSO0NSBCOY,Банківські послуги,Інші витрати,35278,"Закарпатська обласна організація політичної партії ""Українське обʼєднання патріотів - УКРОП""",40031888,Закарпатська область,"Комiсiя за виконання платежiв в нацiональнiй валютi, згiдно з вiдкритою офертою банку N б/н вiд 28.09.2015 та тарифiв банку, без ПДВ.",26006053910024,current,3.00,"ПАТ КБ ""Приватбанк""",14360570,юридична особа
УКРОП,"Закарпатська область, Ужгород, пл. Поштова, 3",61,2017-12-28,80,Військовий збір,Податкові платежі,35277,"Закарпатська обласна організація політичної партії ""Українське обʼєднання патріотів - УКРОП""",40031888,Закарпатська область,*;101;40031888;вiйськовий збiр за грудень 2017;;;,26006053910024,current,37.50,УДКСУ у м. Ужгороді,38015610,юридична особа
УКРОП,"Київ, вулиця Михайла Грушевського, 1Д",70,2017-12-28,CSO0NSBCIY,Банківські послуги,Інші витрати,35276,"Закарпатська обласна організація політичної партії ""Українське обʼєднання патріотів - УКРОП""",40031888,Закарпатська область,"Комiсiя за виконання платежiв в нацiональнiй валютi, згiдно з вiдкритою офертою банку N б/н вiд 28.09.2015 та тарифiв банку, без ПДВ.",26006053910024,current,3.00,"ПАТ КБ ""Приватбанк""",14360570,юридична особа
УКРОП,"Закарпатська область, Ужгород, пл. Поштова, 3",63,2017-12-28,79,Податок на доходи,Податкові платежі,35275,"Закарпатська обласна організація політичної партії ""Українське обʼєднання патріотів - УКРОП""",40031888,Закарпатська область,*;101;40031888;ПДФО за грудень 2017 р.;;;,26006053910024,current,162.00,УДКСУ у м. Ужгороді,38015610,юридична особа
УКРОП,"Київ, вулиця Михайла Грушевського, 1Д",70,2017-12-28,CSO0NSBCDY,Банківські послуги,Інші витрати,35274,"Закарпатська обласна організація політичної партії ""Українське обʼєднання патріотів - УКРОП""",40031888,Закарпатська область,"Комiсiя за виконання платежiв в нацiональнiй валютi, згiдно з вiдкритою офертою банку N б/н вiд 28.09.2015 та тарифiв банку, без ПДВ.",26006053910024,current,3.00,"ПАТ КБ ""Приватбанк""",14360570,юридична особа
УКРОП,"Закарпатська область, Ужгород, вулиця Загорська, 10",62,2017-12-28,78,Сплата ЄСВ,Податкові платежі,35273,"Закарпатська обласна організація політичної партії ""Українське обʼєднання патріотів - УКРОП""",40031888,Закарпатська область,*;101;40031888;Єдиний внесок на соц.страх.для орг.22% iз з/п за грудень 2017р. Нараховоно i перераховано повнiстю.;;;,26006053910024,current,550.00,Ужгородська ОДПІ ГУ ДФС в Закарпатській області,39595916,юридична особа
УКРОП,,84,2017-12-28,81,"Заробітна плата, премії","Заробітна плата, лікарняні, вагітності, відрядження, компенсації",35178,"Закарпатська обласна організація політичної партії ""Українське обʼєднання патріотів - УКРОП""",40031888,Закарпатська область,виплата зарплати за грудень 2017 р,26006053910024,current,2300.50,Польнюк Лідія Юріївна,,фізична особа
УКРОП,"Дніпропетровська область, Дніпро́, вулиця Гоголя, 15",79,2017-12-28,155,"Оренда будинків і приміщень та експлуатаційні витрати (прибирання, страхування орендованих будинків, охорона, сигналізація, ремонт, вивіз сміття, тощо)",Оренда нерухомості,35010,"Дніпропетровська обласна регіональна парторганізація політичної партії ""Українське обʼєднання патріотів - УКРОП""",39874446,Дніпропетровська область,"Орендна плата згiдно дог. N152 вiд 04.09.15 р., без ПДВ.",26007050259982,current,39950.00,"ТОВ ""ВІПРОМ""",25020009,юридична особа
УКРОП,"Дніпропетровська область, Дніпро́, вулиця Княгині Ольги, 22",62,2017-12-28,156,Сплата ЄСВ,Податкові платежі,35009,"Дніпропетровська обласна регіональна парторганізація політичної партії ""Українське обʼєднання патріотів - УКРОП""",39874446,Дніпропетровська область,*;101;39874446;сплата єдиного соцiального внеску за другу половину грудня 2017р;;;,26007050259982,current,472.25,ДЕРЖАВНА ПОДАТКОВА ІНСПЕКЦІЯ У ЦЕНТРАЛЬНОМУ РАЙОНІ м. ДНІПРА ГОЛОВНОГО УПРАВЛІННЯ ДФС У ДНІПРОПЕТРОВСЬКІЙ ОБЛАСТІ,39533006,юридична особа
УКРОП,"Дніпропетровська область, Дніпро́, проспект Дмитра Яворницького, 76",63,2017-12-28,157,Податок на доходи,Податкові платежі,35008,"Дніпропетровська обласна регіональна парторганізація політичної партії ""Українське обʼєднання патріотів - УКРОП""",39874446,Дніпропетровська область,"*;101;39874446;11010100-податок на доходи фiзичних осiб, що сплачується податковими агентами, iз доходiв платника податку у виглядi ЗП за 2 пол.12 2017p ;;;",26007050259982,current,386.38,УДКСУ у Центральному районі м. Дніпра,37989316,юридична особа
УКРОП,"Дніпропетровська область, Дніпро́, проспект Дмитра Яворницького, 76",61,2017-12-28,158,Військовий збір,Податкові платежі,35007,"Дніпропетровська обласна регіональна парторганізація політичної партії ""Українське обʼєднання патріотів - УКРОП""",39874446,Дніпропетровська область,*;101;39874446;11011000-вiйськовий збiр с ЗП працiвникiв за другу половину грудня 2017р.;;;,26007050259982,current,32.20,УДКСУ у Центральному районі м. Дніпра,37989316,юридична особа
УКРОП,"Київ, вулиця Михайла Грушевського, 1Д",70,2017-12-28,CSO0NOUGHY,Банківські послуги,Інші витрати,35006,"Дніпропетровська обласна регіональна парторганізація політичної партії ""Українське обʼєднання патріотів - УКРОП""",39874446,Дніпропетровська область,"Комiсiя за виконання платежiв в нацiональнiй валютi, згiдно з вiдкритою офертою банку N б/н вiд 02.09.2015 та тарифiв банку, без ПДВ.",26007050259982,current,3.00,"ПАТ КБ ""Приватбанк""",14360570,юридична особа
УКРОП,"Київ, вулиця Михайла Грушевського, 1Д",70,2017-12-28,CSO0NOUG9Y,Банківські послуги,Інші витрати,35005,"Дніпропетровська обласна регіональна парторганізація політичної партії ""Українське обʼєднання патріотів - УКРОП""",39874446,Дніпропетровська область,"Комiсiя за виконання платежiв в нацiональнiй валютi, згiдно з вiдкритою офертою банку N б/н вiд 02.09.2015 та тарифiв банку, без ПДВ.",26007050259982,current,3.00,"ПАТ КБ ""Приватбанк""",14360570,юридична особа
УКРОП,"Київ, вулиця Михайла Грушевського, 1Д",70,2017-12-28,CSO0NOUFOY,Банківські послуги,Інші витрати,35004,"Дніпропетровська обласна регіональна парторганізація політичної партії ""Українське обʼєднання патріотів - УКРОП""",39874446,Дніпропетровська область,"Комiсiя за виконання платежiв в нацiональнiй валютi, згiдно з вiдкритою офертою банку N б/н вiд 02.09.2015 та тарифiв банку, без ПДВ.",26007050259982,current,3.00,"ПАТ КБ ""Приватбанк""",14360570,юридична особа
УКРОП,"Дніпропетровська область, Дніпро́",84,2017-12-28,159,"Заробітна плата, премії","Заробітна плата, лікарняні, вагітності, відрядження, компенсації",34957,"Дніпропетровська обласна регіональна парторганізація політичної партії ""Українське обʼєднання патріотів - УКРОП""",39874446,Дніпропетровська область,Зарплата за другу половину грудня 2017р. Без ПДВ,26007050259982,current,576.00,Фесюра Анастасія Русланівна,,фізична особа
УКРОП,"Дніпропетровська область, Дніпро́",84,2017-12-28,159,"Заробітна плата, премії","Заробітна плата, лікарняні, вагітності, відрядження, компенсації",34956,"Дніпропетровська обласна регіональна парторганізація політичної партії ""Українське обʼєднання патріотів - УКРОП""",39874446,Дніпропетровська область,Зарплата за другу половину грудня 2017р. Без ПДВ,26007050259982,current,576.00,Зосим Олена Миколаївна,,фізична особа
УКРОП,"Дніпропетровська область, Дніпро́",84,2017-12-28,159,"Заробітна плата, премії","Заробітна плата, лікарняні, вагітності, відрядження, компенсації",34955,"Дніпропетровська обласна регіональна парторганізація політичної партії ""Українське обʼєднання патріотів - УКРОП""",39874446,Дніпропетровська область,Зарплата за другу половину грудня 2017р. Без ПДВ,26007050259982,current,576.00,Остромецький Артем Вʼячеславович,,фізична особа
УКРОП,"Київ, вулиця Михайла Грушевського, 1Д",70,2017-12-28,397,Банківські послуги,Інші витрати,34941,"Київська обласна організація політичної партії ""Українське обʼєднання патріотів - УКРОП""",39949818,Київська область,Комісія РКО від зарплати за грудень 2017р.,26003052766800,current,6.85,"ПАТ КБ ""Приватбанк""",14360570,юридична особа
УКРОП,"Київська обл., Вишгородський район, Вишгород, вулиця Кургузова, 12",63,2017-12-28,393,Податок на доходи,Податкові платежі,34940,"Київська обласна організація політичної партії ""Українське обʼєднання патріотів - УКРОП""",39949818,Київська область,*;101;39949818;ПДФО із з/пл за 12/2017 утриман та перерахован повністю;;;,26003052766800,current,84.22,УДКСУ у Вишгородському районі Київської області,37868556,юридична особа
УКРОП,"Київ, вулиця Михайла Грушевського, 1Д",70,2017-12-28,CSO0NK44SY,Банківські послуги,Інші витрати,34939,"Київська обласна організація політичної партії ""Українське обʼєднання патріотів - УКРОП""",39949818,Київська область,"Комісія за виконання платежів в національній валюті, згідно з відкритою офертою банку N б/н від 21.08.2015 та тарифів банку, без ПДВ.",26003052766800,current,3.00,"ПАТ КБ ""Приватбанк""",14360570,юридична особа
УКРОП,"Київська обл., Вишгородський район, Вишгород, вулиця Кургузова, 12",61,2017-12-28,394,Військовий збір,Податкові платежі,34938,"Київська обласна організація політичної партії ""Українське обʼєднання патріотів - УКРОП""",39949818,Київська область,*;101;39949818;Військовий збір із з/пл за 12/2017 утриман та перерахован повністю;;;,26003052766800,current,43.03,УДКСУ у Вишгородському районі Київської області,37868556,юридична особа
УКРОП,"Київ, вулиця Михайла Грушевського, 1Д",70,2017-12-28,CSO0NK44TY,Банківські послуги,Інші витрати,34937,"Київська обласна організація політичної партії ""Українське обʼєднання патріотів - УКРОП""",39949818,Київська область,"Комісія за виконання платежів в національній валюті, згідно з відкритою офертою банку N б/н від 21.08.2015 та тарифів банку, без ПДВ.",26003052766800,current,3.00,"ПАТ КБ ""Приватбанк""",14360570,юридична особа
УКРОП,"Київська обл., Вишгородський район, Вишгород, проспект Шевченка, 1",62,2017-12-28,395,Сплата ЄСВ,Податкові платежі,34936,"Київська обласна організація політичної партії ""Українське обʼєднання патріотів - УКРОП""",39949818,Київська область,*;101;39949818;ЕСВ 22% на з/пл за 12/2017 р нарахован та перерахован повністю .;;;,26003052766800,current,1754.02,Вишгородська ОДПІ ГУ ДФС у Київській області,39466569,юридична особа
УКРОП,"Київ, вулиця Михайла Грушевського, 1Д",70,2017-12-28,CSO0NK44UY,Банківські послуги,Інші витрати,34935,"Київська обласна організація політичної партії ""Українське обʼєднання патріотів - УКРОП""",39949818,Київська область,"Комісія за виконання платежів в національній валюті, згідно з відкритою офертою банку N б/н від 21.08.2015 та тарифів банку, без ПДВ.",26003052766800,current,3.00,"ПАТ КБ ""Приватбанк""",14360570,юридична особа
УКРОП,"Житомирська область, Андрушівський район, Новоівницьке",84,2017-12-28,396,"Заробітна плата, премії","Заробітна плата, лікарняні, вагітності, відрядження, компенсації",34603,"Київська обласна організація політичної партії ""Українське обʼєднання патріотів - УКРОП""",39949818,Київська область,Зарплата за грудень 2017р.,26003052766800,current,634.15,Чугунова Оксана Василівна,,фізична особа
УКРОП,Київ,84,2017-12-28,396,"Заробітна плата, премії","Заробітна плата, лікарняні, вагітності, відрядження, компенсації",34602,"Київська обласна організація політичної партії ""Українське обʼєднання патріотів - УКРОП""",39949818,Київська область,Зарплата за грудень 2017р.,26003052766800,current,802.12,Кравченко Михайлина Михайлівна,,фізична особа
УКРОП,"Київська обл., Києво-Святошинський район, Святопетрівське",84,2017-12-28,396,"Заробітна плата, премії","Заробітна плата, лікарняні, вагітності, відрядження, компенсації",34601,"Київська обласна організація політичної партії ""Українське обʼєднання патріотів - УКРОП""",39949818,Київська область,Зарплата за грудень 2017р.,26003052766800,current,502.22,Реган Павло Леонідович,,фізична особа
УКРОП,"Київська обл., Києво-Святошинський район, Дмитрівка",84,2017-12-28,396,"Заробітна плата, премії","Заробітна плата, лікарняні, вагітності, відрядження, компенсації",34600,"Київська обласна організація політичної партії ""Українське обʼєднання патріотів - УКРОП""",39949818,Київська область,Зарплата за грудень 2017р.,26003052766800,current,802.12,Козак Микола Миколайович,,фізична особа
УКРОП,"Київ, вулиця Михайла Грушевського, 1Д",70,2017-12-28,CSO0NP WXYY,Банківські послуги,Інші витрати,34484,"Волинська обласна організація політичної партії ""Українське обʼєднання патріотів - УКРОП""",39946248,Волинська область,"Комісія за виконання платежів в національній валюті, згідно з відкритою офертою банку N б/н від 28.08.2015 та тарифів банку, без ПДВ.",26007055507180,current,3.00,"ПАТ КБ ""Приватбанк""",14360570,юридична особа
УКРОП,"Волинська область, Луцьк, вулиця Стрілецька, 4А",63,2017-12-28,461,Податок на доходи,Податкові платежі,34483,"Волинська обласна організація політичної партії ""Українське обʼєднання патріотів - УКРОП""",39946248,Волинська область,*;101;39946248;11010100;;; податок з доходів фізичних осіб з послуг оренди за листопад 2017 р. Оплата повністю 28.12.17 р.,26007055507180,current,4337.89,УДКСУ у м. Луцьку,38009628,юридична особа
УКРОП,"Київ, вулиця Михайла Грушевського, 1Д",70,2017-12-28,CSO0NP WXOY,Банківські послуги,Інші витрати,34482,"Волинська обласна організація політичної партії ""Українське обʼєднання патріотів - УКРОП""",39946248,Волинська область,"Комісія за виконання платежів в національній валюті, згідно з відкритою офертою банку N б/н від 28.08.2015 та тарифів банку, без ПДВ.",26007055507180,current,3.00,"ПАТ КБ ""Приватбанк""",14360570,юридична особа
УКРОП,"Волинська область, Луцьк, вулиця Стрілецька, 4А",61,2017-12-28,462,Військовий збір,Податкові платежі,34481,"Волинська обласна організація політичної партії ""Українське обʼєднання патріотів - УКРОП""",39946248,Волинська область,*;101;39946248;Військовий збір з доходів фізичної особи за послуги оренди за листопад 2017 р. Оплата повністю 28.12.17 р.;;;,26007055507180,current,361.49,УДКСУ у м. Луцьку,38009628,юридична особа
УКРОП,"Київ, вулиця Михайла Грушевського, 1Д",70,2017-12-27,CRO0NJ21B Y,Банківські послуги,Інші витрати,37937,"Харківська обласна організація політичної партії ""Українське обʼєднання патріотів - УКРОП""",39973329,Харківська область,Комісія за обслугов.рах.,26001052207545,current,3.00,"ПАТ КБ ""Приватбанк""",14360570,юридична особа
УКРОП,"Харківська область, Харків",84,2017-12-27,п/д№136,"Заробітна плата, премії","Заробітна плата, лікарняні, вагітності, відрядження, компенсації",37654,"Харківська обласна організація політичної партії ""Українське обʼєднання патріотів - УКРОП""",39973329,Харківська область,зарплата за 1пол.грудня 2017р.,26000556842,current_candidate,1046.50,Сахань Михайло Вікторович,,фізична особа
УКРОП,"Харківська область, Харків",84,2017-12-27,п/д№136,"Заробітна плата, премії","Заробітна плата, лікарняні, вагітності, відрядження, компенсації",37653,"Харківська обласна організація політичної партії ""Українське обʼєднання патріотів - УКРОП""",39973329,Харківська область,зарплата за 1пол.грудня 2017р.,26000556842,current_candidate,1046.50,Максимова Зінаїда Григорівна,,фізична особа
УКРОП,"Київ, вулиця Михайла Грушевського, 1Д",70,2017-12-27,CROOXXXGY,Банківські послуги,Інші витрати,37517,"Сумська обласна організація політичної партії ""Українське обʼєднання патріотів - УКРОП""",39945637,Сумська область,"комісія за обслуговування рахунку за червень 2017р, згідно договору банківського рахунку від 26.08.2016р.",26000055016685,current,3.00,"ПАТ КБ ""Приватбанк""",14360570,юридична особа
УКРОП,"Київ, вулиця Михайла Грушевського, 1Д",70,2017-12-27,CROONGXGY_1,Банківські послуги,Інші витрати,37516,"Сумська обласна організація політичної партії ""Українське обʼєднання патріотів - УКРОП""",39945637,Сумська область,"комісія за обслуговування рахунку за червень 2017р, згідно договору банківського рахунку від 26.08.2016р.",26000055016685,current,3.91,"ПАТ КБ ""Приватбанк""",14360570,юридична особа
УКРОП,"Київ, вулиця Михайла Грушевського, 1Д",70,2017-12-27,CROONGXGY,Банківські послуги,Інші витрати,37515,"Сумська обласна організація політичної партії ""Українське обʼєднання патріотів - УКРОП""",39945637,Сумська область,"комісія за обслуговування рахунку за червень 2017р, згідно договору банківського рахунку від 26.08.2016р.",26000055016685,current,3.00,"ПАТ КБ ""Приватбанк""",14360570,юридична особа
УКРОП,"Київ, вулиця Михайла Грушевського, 1Д",70,2017-12-27,CROONGX5Y,Банківські послуги,Інші витрати,37514,"Сумська обласна організація політичної партії ""Українське обʼєднання патріотів - УКРОП""",39945637,Сумська область,"комісія за обслуговування рахунку за червень 2017р, згідно договору банківського рахунку від 26.08.2016р.",26000055016685,current,3.00,"ПАТ КБ ""Приватбанк""",14360570,юридична особа
УКРОП,"Київ, вулиця Михайла Грушевського, 1Д",70,2017-12-27,CROONGXQ1Y,Банківські послуги,Інші витрати,37513,"Сумська обласна організація політичної партії ""Українське обʼєднання патріотів - УКРОП""",39945637,Сумська область,"комісія за обслуговування рахунку за червень 2017р, згідно договору банківського рахунку від 26.08.2016р.",26000055016685,current,3.00,"ПАТ КБ ""Приватбанк""",14360570,юридична особа
УКРОП,"Київ, вулиця Михайла Грушевського, 1Д",70,2017-12-27,CROONGXQY,Банківські послуги,Інші витрати,37512,"Сумська обласна організація політичної партії ""Українське обʼєднання патріотів - УКРОП""",39945637,Сумська область,"комісія за обслуговування рахунку за червень 2017р, згідно договору банківського рахунку від 26.08.2016р.",26000055016685,current,3.00,"ПАТ КБ ""Приватбанк""",14360570,юридична особа
УКРОП,"Сумська область, Суми, вулиця Троїцька, 8",63,2017-12-27,449,Податок на доходи,Податкові платежі,37511,"Сумська обласна організація політичної партії ""Українське обʼєднання патріотів - УКРОП""",39945637,Сумська область,податок з доходу фізичних осіб із заробітної плати за другу половину грудня 2017р.,26000055016685,current,449.00,УДКСУ у м. Суми,37970593,юридична особа
УКРОП,"Сумська область, Суми, вулиця Троїцька, 8",61,2017-12-27,480,Військовий збір,Податкові платежі,37510,"Сумська обласна організація політичної партії ""Українське обʼєднання патріотів - УКРОП""",39945637,Сумська область,"військовий збір 1,5% із заробітної плати за другу половину грудня 2017р.",26000055016685,current,37.00,УДКСУ у м. Суми,37970593,юридична особа
УКРОП,"Сумська область, Суми, Покровська площа, 2",62,2017-12-27,479,Сплата ЄСВ,Податкові платежі,37509,"Сумська обласна організація політичної партії ""Українське обʼєднання патріотів - УКРОП""",39945637,Сумська область,єдиний внесок 22% на заробітну плату за другу половину грудня 2017р.,26000055016685,current,550.00,ДПІ у м. Сумах,39563287,юридична особа
УКРОП,"Сумська область, Суми, вул. Куликівська",79,2017-12-27,479,"Оренда будинків і приміщень та експлуатаційні витрати (прибирання, страхування орендованих будинків, охорона, сигналізація, ремонт, вивіз сміття, тощо)",Оренда нерухомості,37508,"Сумська обласна організація політичної партії ""Українське обʼєднання патріотів - УКРОП""",39945637,Сумська область,за оренду приміщень за грудень 2017р по рах 62 від 13.12.2017р,26000055016685,current,2000.00,"ТОВ ""Роменка""",37785302,юридична особа
УКРОП,"Сумська область, Сумський район, Суми",84,2017-12-27,171227СТ249186,"Заробітна плата, премії","Заробітна плата, лікарняні, вагітності, відрядження, компенсації",37255,"Сумська обласна організація політичної партії ""Українське обʼєднання патріотів - УКРОП""",39945637,Сумська область,заробітна плата за другу половину грудня 2017р.,26000055016685,current,294.00,Каретник Олена Григорівна,,фізична особа
УКРОП,"Сумська область, Сумський район, Косівщина",84,2017-12-27,171227СТ249185,"Заробітна плата, премії","Заробітна плата, лікарняні, вагітності, відрядження, компенсації",37254,"Сумська обласна організація політичної партії ""Українське обʼєднання патріотів - УКРОП""",39945637,Сумська область,заробітна плата за другу половину грудня 2017р.,26000055016685,current,294.00,Луговий Владислав Віталійович,,фізична особа
УКРОП,"Сумська область, Сумський район, Суми",84,2017-12-27,171227СТ249184,"Заробітна плата, премії","Заробітна плата, лікарняні, вагітності, відрядження, компенсації",37253,"Сумська обласна організація політичної партії ""Українське обʼєднання патріотів - УКРОП""",39945637,Сумська область,заробітна плата за другу половину грудня 2017р.,26000055016685,current,976.00,Чаленко Ольга Андріївна,,фізична особа
УКРОП,"Полтавська область, Полтава, вулиця Шевченка, 1",63,2017-12-27,194,Податок на доходи,Податкові платежі,36957,"Полтавська обласна організація політичної партії ""Українське обʼєднання патріотів - УКРОП""",39947896,Полтавська область,*;101;39947896;Прибутковий податок з заплати за 1 половину грудня 2017 р з найманих працiвникiв партiї. Перераховано повнiстю.;;;,26003054616293,current,646.20,УДКСУ у м. Полтаві,38019510,юридична особа
УКРОП,"Київ, вулиця Михайла Грушевського, 1Д",70,2017-12-27,CRO0NIJ3WY,Банківські послуги,Інші витрати,36956,"Полтавська обласна організація політичної партії ""Українське обʼєднання патріотів - УКРОП""",39947896,Полтавська область,"Комiсiя за виконання платежiв в нацiональнiй валютi, згiдно з вiдкритою офертою банку N б/н вiд 21.08.2015 та тарифiв банку, без ПДВ.",26003054616293,current,3.00,"ПАТ КБ ""Приватбанк""",14360570,юридична особа
УКРОП,"Полтавська область, Полтава, вулиця Шевченка, 1",61,2017-12-27,195,Військовий збір,Податкові платежі,36955,"Полтавська обласна організація політичної партії ""Українське обʼєднання патріотів - УКРОП""",39947896,Полтавська область,"*;101;39947896;1,5% вiйськовий податок з зарплати за 1 половину грудня 2017 р.;;;",26003054616293,current,59.85,УДКСУ у м. Полтаві,38019510,юридична особа
УКРОП,"Київ, вулиця Михайла Грушевського, 1Д",70,2017-12-27,CRO0NIJ46Y,Банківські послуги,Інші витрати,36954,"Полтавська обласна організація політичної партії ""Українське обʼєднання патріотів - УКРОП""",39947896,Полтавська область,"Комiсiя за виконання платежiв в нацiональнiй валютi, згiдно з вiдкритою офертою банку N б/н вiд 21.08.2015 та тарифiв банку, без ПДВ.",26003054616293,current,3.00,"ПАТ КБ ""Приватбанк""",14360570,юридична особа
УКРОП,"Полтавська область, Полтава, вулиця Європейська, 155",62,2017-12-27,196,Сплата ЄСВ,Податкові платежі,36953,"Полтавська обласна організація політичної партії ""Українське обʼєднання патріотів - УКРОП""",39947896,Полтавська область,"*;101;39947896;ЄСВ з зарплати за 1 половину грудня 2017 р. 22% - 1054,00 грн. Перераховано повнiстю.;;;",26003054616293,current,1054.00,ДПІ у м. Полтава ГУ ДФС у Полтавській області,39680655,юридична особа
УКРОП,"Київ, вулиця Михайла Грушевського, 1Д",70,2017-12-27,CRO0NIJ49Y,Банківські послуги,Інші витрати,36952,"Полтавська обласна організація політичної партії ""Українське обʼєднання патріотів - УКРОП""",39947896,Полтавська область,"Комiсiя за виконання платежiв в нацiональнiй валютi, згiдно з вiдкритою офертою банку N б/н вiд 21.08.2015 та тарифiв банку, без ПДВ.",26003054616293,current,3.00,"ПАТ КБ ""Приватбанк""",14360570,юридична особа
УКРОП,"Полтавська область, Полтава",84,2017-12-27,платіжна відомість №23,"Заробітна плата, премії","Заробітна плата, лікарняні, вагітності, відрядження, компенсації",36673,"Полтавська обласна організація політичної партії ""Українське обʼєднання патріотів - УКРОП""",39947896,Полтавська область,Заробітна плата за 2 половину листопада 2017 року,26003054616293,current,1159.20,Новаковська Алла Миколаївна,,фізична особа
УКРОП,"Полтавська область, Полтавський район",84,2017-12-27,платіжна відомість №23,"Заробітна плата, премії","Заробітна плата, лікарняні, вагітності, відрядження, компенсації",36672,"Полтавська обласна організація політичної партії ""Українське обʼєднання патріотів - УКРОП""",39947896,Полтавська область,Заробітна плата за 2 половину листопада 2017 року,26003054616293,current,716.00,Вовченко Людмила Іванівна,,фізична особа
УКРОП,"Полтавська область, Полтава",84,2017-12-27,платіжна відомість №23,"Заробітна плата, премії","Заробітна плата, лікарняні, вагітності, відрядження, компенсації",36671,"Полтавська обласна організація політичної партії ""Українське обʼєднання патріотів - УКРОП""",39947896,Полтавська область,Заробітна плата за 2 половину листопада 2017 року,26003054616293,current,1408.75,Соловей Сергій Андрійович,,фізична особа
УКРОП,"Київ, вулиця Михайла Грушевського, 1Д",70,2017-12-27,CRO0NFGB GY,Банківські послуги,Інші витрати,36482,"Миколаївська обласна організація політичної партії ""Українське обʼєднання патріотів - УКРОП""",39953669,Миколаївська область,"Комісія за виконання платежів в нац. валюті, згідно з відкритою офертою банку №б/н від 23.09.15 р. та тарифів банку, без ПДВ",26001053221497,current,3.00,"ПАТ КБ ""Приватбанк""",14360570,юридична особа
УКРОП,"Миколаївська область, Очаків",79,2017-12-27,90,"Оренда будинків і приміщень та експлуатаційні витрати (прибирання, страхування орендованих будинків, охорона, сигналізація, ремонт, вивіз сміття, тощо)",Оренда нерухомості,36481,"Миколаївська обласна організація політичної партії ""Українське обʼєднання патріотів - УКРОП""",39953669,Миколаївська область,Орендна плата за вересень 2017 р. згідно п. 3.1 Договору оренди №2 нежитлового приміщення від 1.02.17р.,26001053221497,current,1500.00,"ТОВ ""Евріка""",03055792,юридична особа
УКРОП,"Київ, вулиця Михайла Грушевського, 1Д",70,2017-12-27,CROONGYQ4Y,Банківські послуги,Інші витрати,36418,"Київська міська організація політичної партії ""Українське обʼєднання патріотів - УКРОП""",39976560,Київ,"Комісія за виконання платежів в націоналі.mil валют, зітлію з відкритою офертою банку N б/н від 04 09.2015 та тарифів банку, без ПДВ",26001052639809,current,3.00,"ПАТ КБ ""Приватбанк""",14360570,юридична особа
УКРОП,"Київ, вулиця Звіринецька, 63",79,2017-12-27,241,"Оренда будинків і приміщень та експлуатаційні витрати (прибирання, страхування орендованих будинків, охорона, сигналізація, ремонт, вивіз сміття, тощо)",Оренда нерухомості,36417,"Київська міська організація політичної партії ""Українське обʼєднання патріотів - УКРОП""",39976560,Київ,Оплата за суборенду примішений згідно ДУ від 20 09.2017р до дог від 01 04.2017р. за грудень 2017р. Без ПДВ,26001052639809,current,22220.00,"ТОВ ""ДЕМЕТРА СМ’",38750113,юридична особа
УКРОП,"Київ, вулиця Михайла Грушевського, 1Д",70,2017-12-27,CRO0NHDUFY,Банківські послуги,Інші витрати,36070,"Кіровоградська обласна регіональна парторганізація політичної партії ""Українське обʼєднання патріотів - УКРОП""",39922803,Кіровоградська область,комісія за виконання платежів в національній валюті,26009052911811,current,3.00,"ПАТ КБ ""Приватбанк""",14360570,юридична особа
УКРОП,"Кіровоградська область, Кропивницький",63,2017-12-27,166,Податок на доходи,Податкові платежі,36069,"Кіровоградська обласна регіональна парторганізація політичної партії ""Українське обʼєднання патріотів - УКРОП""",39922803,Кіровоградська область,ПДФО 18% із зарплати за другу половину грудня 2017,26009052911811,current,144.00,УДКСУ у м. Кропивницькому,38037409,юридична особа
УКРОП,"Київ, вулиця Михайла Грушевського, 1Д",70,2017-12-27,CRO0NHDUAY,Банківські послуги,Інші витрати,36068,"Кіровоградська обласна регіональна парторганізація політичної партії ""Українське обʼєднання патріотів - УКРОП""",39922803,Кіровоградська область,комісія за виконання платежів в національній валюті,26009052911811,current,3.00,"ПАТ КБ ""Приватбанк""",14360570,юридична особа
УКРОП,"Кіровоградська область, Кропивницький",61,2017-12-27,167,Військовий збір,Податкові платежі,36067,"Кіровоградська обласна регіональна парторганізація політичної партії ""Українське обʼєднання патріотів - УКРОП""",39922803,Кіровоградська область,військовий збір з найманих працівників із заробітної плата за другу половину грудня 2017р.,26009052911811,current,12.00,УДКСУ у м. Кропивницькому,38037409,юридична особа
УКРОП,"Київ, вулиця Михайла Грушевського, 1Д",70,2017-12-27,CRO0NHDU6Y,Банківські послуги,Інші витрати,36066,"Кіровоградська обласна регіональна парторганізація політичної партії ""Українське обʼєднання патріотів - УКРОП""",39922803,Кіровоградська область,комісія за виконання платежів в національній валюті,26009052911811,current,3.00,"ПАТ КБ ""Приватбанк""",14360570,юридична особа
УКРОП,"Кіровоградська область, Кропивницький, вул. Глінки, 2",62,2017-12-27,168,Сплата ЄСВ,Податкові платежі,36065,"Кіровоградська обласна регіональна парторганізація політичної партії ""Українське обʼєднання патріотів - УКРОП""",39922803,Кіровоградська область,"ЄСВ 22% , нарахований на заробітну плату за другу половину грудня 2017р.",26009052911811,current,176.00,Кропивницька ОДПІ ГУ ДФС у Кіровоградській області,39484073,юридична особа
УКРОП,м. Кропивницький,84,2017-12-27,165,"Заробітна плата, премії","Заробітна плата, лікарняні, вагітності, відрядження, компенсації",35875,"Кіровоградська обласна регіональна парторганізація політичної партії ""Українське обʼєднання патріотів - УКРОП""",39922803,Кіровоградська область,заробітна плата за другу половину грудня 2017р.,26009052911811,current,644.00,Битко Наталія Станіславівна,,фізична особа
УКРОП,"Київ, вулиця Михайла Грушевського, 1Д",70,2017-12-26,NCQOON9RRD У,Банківські послуги,Інші витрати,38256,"Черкаська обласна організація політичної партії ""Українське обʼєднання патріотів - УКРОП""",39945181,Черкаська область,комісія та виконання платежів,26005051524627,current,3.00,"ПАТ КБ ""Приватбанк""",14360570,юридична особа
УКРОП,"Черкаська область, Черкаси, вулиця Гагаріна, 83, 19",58,2017-12-26,77,"Виготовлення друкованих матеріалів (плакатів, листівок, буклетів та інших агітаційних матеріалів)",Друкована агітація,38215,"Черкаська обласна організація політичної партії ""Українське обʼєднання патріотів - УКРОП""",39945181,Черкаська область,Інформаційний бюлетень зг. Накладної №1021 від 15.12.17,26005051524627,current,400.00,Руденко Юрій Іванович,2637301910,фізична особа
УКРОП,"Київ, вулиця Михайла Грушевського, 1Д",70,2017-12-26,CPOON8FK KY,Банківські послуги,Інші витрати,38149,"Херсонська обласна організація політичної партії ""Українське обʼєднання патріотів - УКРОП""",39904145,Херсонська область,"Комісії за виконання платежів в національній валюті, згідно з відкритою офертою банку № б/н від",26007052206397,current,3.00,"ПАТ КБ ""Приватбанк""",14360570,юридична особа
УКРОП,"Київ, вулиця Михайла Грушевського, 1Д",70,2017-12-26,CPOON8FK KW,Банківські послуги,Інші витрати,38148,"Херсонська обласна організація політичної партії ""Українське обʼєднання патріотів - УКРОП""",39904145,Херсонська область,"Комісії за виконання платежів в національній валюті, згідно з відкритою офертою банку № б/н від",26007052206397,current,351.09,"ПАТ КБ ""Приватбанк""",14360570,юридична особа
УКРОП,"Херсонська область, Херсон, провулок Козацький, 10",63,2017-12-26,226,Податок на доходи,Податкові платежі,38147,"Херсонська обласна організація політичної партії ""Українське обʼєднання патріотів - УКРОП""",39904145,Херсонська область,податок на доходи працівників за грудень 2017,26007052206397,current,3.00,УДКСУ у м. Херсон,37959779,юридична особа
УКРОП,"Київ, вулиця Михайла Грушевського, 1Д",70,2017-12-26,CPOON8FKJ Y,Банківські послуги,Інші витрати,38146,"Херсонська обласна організація політичної партії ""Українське обʼєднання патріотів - УКРОП""",39904145,Херсонська область,"Комісії за виконання платежів в національній валюті, згідно з відкритою офертою банку № б/н від 10.08.2015та тарифів",26007052206397,current,429.11,"ПАТ КБ ""Приватбанк""",14360570,юридична особа
УКРОП,"Херсонська область, Херсон, вулиця Іллюши Кулика, 143А",62,2017-12-26,224,Сплата ЄСВ,Податкові платежі,38145,"Херсонська обласна організація політичної партії ""Українське обʼєднання патріотів - УКРОП""",39904145,Херсонська область,ЄСВ 22% за грудень 2017,26007052206397,current,3.00,Херсонська ОДПІ ГУ ДФС у Херсонській області,39473382,юридична особа
УКРОП,"Київ, вулиця Михайла Грушевського, 1Д",70,2017-12-26,CPOON8FK! Y,Банківські послуги,Інші витрати,38144,"Херсонська обласна організація політичної партії ""Українське обʼєднання патріотів - УКРОП""",39904145,Херсонська область,"Комісії за виконання платежів в національній валюті, згідно з відкритою офертою банку № б/н від",26007052206397,current,29.26,"ПАТ КБ ""Приватбанк""",14360570,юридична особа
УКРОП,"Херсонська область, Херсон, провулок Козацький, 10",61,2017-12-26,225,Військовий збір,Податкові платежі,38143,"Херсонська обласна організація політичної партії ""Українське обʼєднання патріотів - УКРОП""",39904145,Херсонська область,військовий збір за грудень 2017,26007052206397,current,3.00,УДКСУ у м. Херсон,37959779,юридична особа
УКРОП,"Херсонська область, Херсон",84,2017-12-26,227,"Заробітна плата, премії","Заробітна плата, лікарняні, вагітності, відрядження, компенсації",37965,"Херсонська обласна організація політичної партії ""Українське обʼєднання патріотів - УКРОП""",39904145,Херсонська область,Перерахування коштів на виплату зар. плати співробітникам за грудень2017р,26007052206397,current,1570.15,Богданов Віталій Володимирович,,фізична особа
УКРОП,"Київ, вулиця Михайла Грушевського, 1Д",70,2017-12-26,CQO0NA8J CY,Банківські послуги,Інші витрати,37936,"Харківська обласна організація політичної партії ""Українське обʼєднання патріотів - УКРОП""",39973329,Харківська область,Комісія за обслугов.рах.,26001052207545,current,10.46,"ПАТ КБ ""Приватбанк""",14360570,юридична особа
УКРОП,"Київ, вулиця Михайла Грушевського, 1Д",70,2017-12-26,CQO0NA8J CY,Банківські послуги,Інші витрати,37935,"Харківська обласна організація політичної партії ""Українське обʼєднання патріотів - УКРОП""",39973329,Харківська область,Комісія за обслугов.рах.,26001052207545,current,3.00,"ПАТ КБ ""Приватбанк""",14360570,юридична особа
УКРОП,"Харківська область, Харків, Григорівське шосе, 52",61,2017-12-26,п/д №163,Військовий збір,Податкові платежі,37934,"Харківська обласна організація політичної партії ""Українське обʼєднання патріотів - УКРОП""",39973329,Харківська область,"Військовий збір 1,5% із з/пл за 1пол.12. 2017.",26001052207545,current,78.00,УДКСУ у Харківському районі Харківської області,37999633,юридична особа
УКРОП,"Київ, вулиця Михайла Грушевського, 1Д",70,2017-12-26,CQO0NA8G QY,Банківські послуги,Інші витрати,37933,"Харківська обласна організація політичної партії ""Українське обʼєднання патріотів - УКРОП""",39973329,Харківська область,Комісія за обслугов.рах.,26001052207545,current,3.00,"ПАТ КБ ""Приватбанк""",14360570,юридична особа
УКРОП,"Київ, вулиця Михайла Грушевського, 1Д",70,2017-12-26,CQO0NA8B JY,Банківські послуги,Інші витрати,37932,"Харківська обласна організація політичної партії ""Українське обʼєднання патріотів - УКРОП""",39973329,Харківська область,Комісія за обслугов.рах.,26001052207545,current,3.00,"ПАТ КБ ""Приватбанк""",14360570,юридична особа
УКРОП,"Харківська область, Харків, провулок Академіка Підгорного, 3",62,2017-12-26,п/д №161,Сплата ЄСВ,Податкові платежі,37931,"Харківська обласна організація політичної партії ""Українське обʼєднання патріотів - УКРОП""",39973329,Харківська область,"Сплата ЕСВ-22%-858,00грн. та 8,41%-109,33грн. на зп. за 1пол.12.2017р.",26001052207545,current,967.33,Харківська ОДПІ ГУ ДФС у Харківській області,39859695,юридична особа
УКРОП,"Харківська область, Харків, Григорівське шосе, 52",63,2017-12-26,п/д №162,Податок на доходи,Податкові платежі,37930,"Харківська обласна організація політичної партії ""Українське обʼєднання патріотів - УКРОП""",39973329,Харківська область,НДФЛ із з/пл за 1пол.12. 2017р.,26001052207545,current,936.00,УДКСУ у Харківському районі Харківської області,37999633,юридична особа
УКРОП,"Харківська область, Харків, провулок Академіка Підгорного, 3",62,2017-12-26,п/д №133,Сплата ЄСВ,Податкові платежі,37929,"Харківська обласна організація політичної партії ""Українське обʼєднання патріотів - УКРОП""",39973329,Харківська область,"Сплата ЕСВ-22%-572,00грн. на зп. за 1пол.12.2017р.",26000556842,current_candidate,572.00,Харківська ОДПІ ГУ ДФС у Харківській області,39859695,юридична особа
УКРОП,"Харківська область, Харків, Григорівське шосе, 52",63,2017-12-26,п/д №135,Податок на доходи,Податкові платежі,37928,"Харківська обласна організація політичної партії ""Українське обʼєднання патріотів - УКРОП""",39973329,Харківська область,НДФЛ із з/пл за 1пол.12. 2017р.,26000556842,current_candidate,468.00,УДКСУ у Харківському районі Харківської області,37999633,юридична особа
УКРОП,"Харківська область, Харків, Григорівське шосе, 52",61,2017-12-26,п/д №134,Військовий збір,Податкові платежі,37927,"Харківська обласна організація політичної партії ""Українське обʼєднання патріотів - УКРОП""",39973329,Харківська область,"Військовий збір 1,5% із з/пл за 1пол.12. 2017.",26000556842,current_candidate,39.00,УДКСУ у Харківському районі Харківської області,37999633,юридична особа
УКРОП,"Київ, вулиця Миколи Лєскова, 9",70,2017-12-26,п/д №137,Банківські послуги,Інші витрати,37926,"Харківська обласна організація політичної партії ""Українське обʼєднання патріотів - УКРОП""",39973329,Харківська область,Комісія за обслугов.рах.,26000556842,current_candidate,16.74,"АТ ""Райффайзен банк Аваль""",14305909,юридична особа
УКРОП,"Харківська область, Сахновщинський район, Сахновщина, вулиця Чабанівського",79,2017-12-26,п/д №132,"Оренда будинків і приміщень та експлуатаційні витрати (прибирання, страхування орендованих будинків, охорона, сигналізація, ремонт, вивіз сміття, тощо)",Оренда нерухомості,37925,"Харківська обласна організація політичної партії ""Українське обʼєднання патріотів - УКРОП""",39973329,Харківська область,Сплата за оренду приміщення за листопад 2017р.,26000556842,current_candidate,1000.00,"ПП ""Ритм""",22626415,юридична особа
УКРОП,"Харківська область, Харків",84,2017-12-26,п/д №164,"Заробітна плата, премії","Заробітна плата, лікарняні, вагітності, відрядження, компенсації",37659,"Харківська обласна організація політичної партії ""Українське обʼєднання патріотів - УКРОП""",39973329,Харківська область,зарплата за 1пол.грудня 2017р.,26001052207545,current,1046.50,Безпалий Олександр Ігорович,,фізична особа
УКРОП,"Харківська область, Харків",84,2017-12-26,п/д №164,"Заробітна плата, премії","Заробітна плата, лікарняні, вагітності, відрядження, компенсації",37658,"Харківська обласна організація політичної партії ""Українське обʼєднання патріотів - УКРОП""",39973329,Харківська область,зарплата за 1пол.грудня 2017р.,26001052207545,current,1046.50,Полуніна Світлана Миколаївна,,фізична особа
УКРОП,"Харківська область, Дергачівський район, Мала Данилівка",84,2017-12-26,п/д №164,"Заробітна плата, премії","Заробітна плата, лікарняні, вагітності, відрядження, компенсації",37657,"Харківська обласна організація політичної партії ""Українське обʼєднання патріотів - УКРОП""",39973329,Харківська область,зарплата за 1пол.грудня 2017р.,26001052207545,current,1046.50,Мірошнікова Людмила Юріївна,,фізична особа
УКРОП,"Харківська область, Харків",84,2017-12-26,п/д №164,"Заробітна плата, премії","Заробітна плата, лікарняні, вагітності, відрядження, компенсації",37656,"Харківська обласна організація політичної партії ""Українське обʼєднання патріотів - УКРОП""",39973329,Харківська область,зарплата за 1пол.грудня 2017р.,26001052207545,current,1046.50,Бабаєва Оксана Ігорівна,,фізична особа
УКРОП,"Київ, вулиця Михайла Грушевського, 1Д",70,2017-12-23,TZ003BMNA4,Банківські послуги,Інші витрати,36064,"Кіровоградська обласна регіональна парторганізація політичної партії ""Українське обʼєднання патріотів - УКРОП""",39922803,Кіровоградська область,комісія за касове обслуговування по зарахуванню на картки,26009052911811,current,1.61,"ПАТ КБ ""Приватбанк""",14360570,юридична особа
УКРОП,"Київ, вулиця Михайла Грушевського, 1Д",70,2017-12-22,CMO0N2W6HY,Банківські послуги,Інші витрати,36063,"Кіровоградська обласна регіональна парторганізація політичної партії ""Українське обʼєднання патріотів - УКРОП""",39922803,Кіровоградська область,комісія за виконання платежів в національній валюті,26009052911811,current,3.00,"ПАТ КБ ""Приватбанк""",14360570,юридична особа
УКРОП,"Кіровоградська область, Кропивницький, вул. Глінки, 2",62,2017-12-22,162,Сплата ЄСВ,Податкові платежі,36062,"Кіровоградська обласна регіональна парторганізація політичної партії ""Українське обʼєднання патріотів - УКРОП""",39922803,Кіровоградська область,"ЄСВ 22% , нарахований на заробітну плату за першу половину грудня 2017р.",26009052911811,current,176.00,Кропивницька ОДПІ ГУ ДФС у Кіровоградській області,39484073,юридична особа
УКРОП,"Київ, вулиця Михайла Грушевського, 1Д",70,2017-12-22,CMO0N2W5OY,Банківські послуги,Інші витрати,36061,"Кіровоградська обласна регіональна парторганізація політичної партії ""Українське обʼєднання патріотів - УКРОП""",39922803,Кіровоградська область,комісія за виконання платежів в національній валюті,26009052911811,current,3.00,"ПАТ КБ ""Приватбанк""",14360570,юридична особа
УКРОП,"Кіровоградська область, Кропивницький",61,2017-12-22,163,Військовий збір,Податкові платежі,36060,"Кіровоградська обласна регіональна парторганізація політичної партії ""Українське обʼєднання патріотів - УКРОП""",39922803,Кіровоградська область,військовий збір з найманих працівників із заробітної плата за першу половину грудня 2017р.,26009052911811,current,12.00,УДКСУ у м. Кропивницькому,38037409,юридична особа
УКРОП,"Київ, вулиця Михайла Грушевського, 1Д",70,2017-12-22,CMO0N2W5GY,Банківські послуги,Інші витрати,36059,"Кіровоградська обласна регіональна парторганізація політичної партії ""Українське обʼєднання патріотів - УКРОП""",39922803,Кіровоградська область,комісія за виконання платежів в національній валюті,26009052911811,current,3.00,"ПАТ КБ ""Приватбанк""",14360570,юридична особа
УКРОП,"Кіровоградська область, Кропивницький",63,2017-12-22,164,Податок на доходи,Податкові платежі,36058,"Кіровоградська обласна регіональна парторганізація політичної партії ""Українське обʼєднання патріотів - УКРОП""",39922803,Кіровоградська область,ПДФО 18% із зарплати за першу половину грудня 2017,26009052911811,current,144.00,УДКСУ у м. Кропивницькому,38037409,юридична особа
УКРОП,м. Кропивницький,84,2017-12-22,160,"Заробітна плата, премії","Заробітна плата, лікарняні, вагітності, відрядження, компенсації",35874,"Кіровоградська обласна регіональна парторганізація політичної партії ""Українське обʼєднання патріотів - УКРОП""",39922803,Кіровоградська область,заробітна плата за першу половину грудня 2017р.,26009052911811,current,644.00,Битко Наталія Станіславівна,,фізична особа
УКРОП,"Дніпропетровська область, Дніпро́, вулиця Княгині Ольги, 22",62,2017-12-22,151,Сплата ЄСВ,Податкові платежі,35003,"Дніпропетровська обласна регіональна парторганізація політичної партії ""Українське обʼєднання патріотів - УКРОП""",39874446,Дніпропетровська область,*;101;39874446;сплата єдиного соцiального внеску за першу половину грудня 2017р.;;;,26007050259982,current,1639.75,ДЕРЖАВНА ПОДАТКОВА ІНСПЕКЦІЯ У ЦЕНТРАЛЬНОМУ РАЙОНІ м. ДНІПРА ГОЛОВНОГО УПРАВЛІННЯ ДФС У ДНІПРОПЕТРОВСЬКІЙ ОБЛАСТІ,39533006,юридична особа
УКРОП,"Дніпропетровська область, Дніпро́, проспект Дмитра Яворницького, 76",63,2017-12-22,152,Податок на доходи,Податкові платежі,35002,"Дніпропетровська обласна регіональна парторганізація політичної партії ""Українське обʼєднання патріотів - УКРОП""",39874446,Дніпропетровська область,"*;101;39874446;11010100-податок на доходи фiзичних осiб, що сплачується податковими агентами, iз доходiв платника податку у виглядi ЗП за 1 пол.12.2017 р;;;",26007050259982,current,1341.62,УДКСУ у Центральному районі м. Дніпра,37989316,юридична особа
УКРОП,"Дніпропетровська область, Дніпро́, проспект Дмитра Яворницького, 76",61,2017-12-22,153,Військовий збір,Податкові платежі,35001,"Дніпропетровська обласна регіональна парторганізація політичної партії ""Українське обʼєднання патріотів - УКРОП""",39874446,Дніпропетровська область,*;101;39874446;11011000-вiйськовий збiр с ЗП працiвникiв за першу половину грудня 2017р.;;;,26007050259982,current,111.80,УДКСУ у Центральному районі м. Дніпра,37989316,юридична особа
УКРОП,"Київ, вулиця Михайла Грушевського, 1Д",70,2017-12-22,CMO0N2LGLY,Банківські послуги,Інші витрати,35000,"Дніпропетровська обласна регіональна парторганізація політичної партії ""Українське обʼєднання патріотів - УКРОП""",39874446,Дніпропетровська область,"Комiсiя за виконання платежiв в нацiональнiй валютi, згiдно з вiдкритою офертою банку N б/н вiд 02.09.2015 та тарифiв банку, без ПДВ.",26007050259982,current,3.00,"ПАТ КБ ""Приватбанк""",14360570,юридична особа
УКРОП,"Київ, вулиця Михайла Грушевського, 1Д",70,2017-12-22,CMO0N2LG7Y,Банківські послуги,Інші витрати,34999,"Дніпропетровська обласна регіональна парторганізація політичної партії ""Українське обʼєднання патріотів - УКРОП""",39874446,Дніпропетровська область,"Комiсiя за виконання платежiв в нацiональнiй валютi, згiдно з вiдкритою офертою банку N б/н вiд 02.09.2015 та тарифiв банку, без ПДВ.",26007050259982,current,3.00,"ПАТ КБ ""Приватбанк""",14360570,юридична особа
УКРОП,"Київ, вулиця Михайла Грушевського, 1Д",70,2017-12-22,CMO0N2LG1Y,Банківські послуги,Інші витрати,34998,"Дніпропетровська обласна регіональна парторганізація політичної партії ""Українське обʼєднання патріотів - УКРОП""",39874446,Дніпропетровська область,"Комiсiя за виконання платежiв в нацiональнiй валютi, згiдно з вiдкритою офертою банку N б/н вiд 02.09.2015 та тарифiв банку, без ПДВ.",26007050259982,current,3.00,"ПАТ КБ ""Приватбанк""",14360570,юридична особа
УКРОП,"Дніпропетровська область, Дніпро́",84,2017-12-22,154,"Заробітна плата, премії","Заробітна плата, лікарняні, вагітності, відрядження, компенсації",34954,"Дніпропетровська обласна регіональна парторганізація політичної партії ""Українське обʼєднання патріотів - УКРОП""",39874446,Дніпропетровська область,Зарплата за першу половину грудня 2017р. Без ПДВ,26007050259982,current,2000.00,Фесюра Анастасія Русланівна,,фізична особа
УКРОП,"Дніпропетровська область, Дніпро́",84,2017-12-22,154,"Заробітна плата, премії","Заробітна плата, лікарняні, вагітності, відрядження, компенсації",34953,"Дніпропетровська обласна регіональна парторганізація політичної партії ""Українське обʼєднання патріотів - УКРОП""",39874446,Дніпропетровська область,Зарплата за першу половину грудня 2017р. Без ПДВ,26007050259982,current,2000.00,Зосим Олена Миколаївна,,фізична особа
УКРОП,"Дніпропетровська область, Дніпро́",84,2017-12-22,154,"Заробітна плата, премії","Заробітна плата, лікарняні, вагітності, відрядження, компенсації",34952,"Дніпропетровська обласна регіональна парторганізація політичної партії ""Українське обʼєднання патріотів - УКРОП""",39874446,Дніпропетровська область,Зарплата за першу половину грудня 2017р. Без ПДВ,26007050259982,current,2000.00,Остромецький Артем Вʼячеславович,,фізична особа
УКРОП,"Київ, вулиця Михайла Грушевського, 1Д",70,2017-12-21,TZOO6DOWAY,Банківські послуги,Інші витрати,37507,"Сумська обласна організація політичної партії ""Українське обʼєднання патріотів - УКРОП""",39945637,Сумська область,"комісія за обслуговування рахунку за червень 2017р, згідно договору банківського рахунку від 26.08.2016р.",26000055016685,current,3.00,"ПАТ КБ ""Приватбанк""",14360570,юридична особа
УКРОП,"Полтавська область, Полтава, Зіньківська вулиця, 6",79,2017-12-21,477,"Оренда будинків і приміщень та експлуатаційні витрати (прибирання, страхування орендованих будинків, охорона, сигналізація, ремонт, вивіз сміття, тощо)",Оренда нерухомості,37506,"Сумська обласна організація політичної партії ""Українське обʼєднання патріотів - УКРОП""",39945637,Сумська область,"передплата за оренду за січень 2018р., згідно договору № 2-178-2016/ВЦ від 01.03.2016р.",26000055016685,current,4387.50,"ПП ""Торгівельний центр ""Київ""",36324299,юридична особа
УКРОП,"Київ, вулиця Михайла Грушевського, 1Д",79,2017-12-21,2911712,"Оренда будинків і приміщень та експлуатаційні витрати (прибирання, страхування орендованих будинків, охорона, сигналізація, ремонт, вивіз сміття, тощо)",Оренда нерухомості,36951,"Полтавська обласна організація політичної партії ""Українське обʼєднання патріотів - УКРОП""",39947896,Полтавська область,Списання орендної плати за 01/18р. згiдно п. № 2.5 до дог. № PLRG-04/2017 вiд 01-03-2017р.,26003054616293,current,1785.00,"ПАТ КБ ""Приватбанк""",14360570,юридична особа
УКРОП,"Полтавська область, Полтава, вулиця Комарова, 2А",79,2017-12-20,192,"Оренда будинків і приміщень та експлуатаційні витрати (прибирання, страхування орендованих будинків, охорона, сигналізація, ремонт, вивіз сміття, тощо)",Оренда нерухомості,36950,"Полтавська обласна організація політичної партії ""Українське обʼєднання патріотів - УКРОП""",39947896,Полтавська область,"Оплата за теплову енергiю (централiзоване опалення) по рах. АВ- вiд 30.11.2017 р. в т.ч. ПДВ 546,83 грн.",26003054616293,current,3281.52,"ПОКВПП ""Полтаватеплоенерго""",03338030,юридична особа
УКРОП,"Київ, вулиця Михайла Грушевського, 1Д",70,2017-12-20,CKO0MTWBHY,Банківські послуги,Інші витрати,36949,"Полтавська обласна організація політичної партії ""Українське обʼєднання патріотів - УКРОП""",39947896,Полтавська область,"Комiсiя за виконання платежiв в нацiональнiй валютi, згiдно з вiдкритою офертою банку N б/н вiд 21.08.2015 та тарифiв банку, без ПДВ.",26003054616293,current,3.00,"ПАТ КБ ""Приватбанк""",14360570,юридична особа
УКРОП,"Київ, бульвар Тараса Шевченка, 18",76,2017-12-20,191,Послуги зв’язку,Послуги зв’язку,36948,"Полтавська обласна організація політичної партії ""Українське обʼєднання патріотів - УКРОП""",39947896,Полтавська область,"За iнтернет та послуги зв""язку по рах. 534000000410670 та договору N141067 за листопад 2017 р.в т.ч ПДВ 83,66 грн.",26003054616293,current,501.95,"ПАТ ""Укртелеком""",21560766,юридична особа
УКРОП,"Київ, вулиця Михайла Грушевського, 1Д",70,2017-12-20,CKO0MTWBOY,Банківські послуги,Інші витрати,36947,"Полтавська обласна організація політичної партії ""Українське обʼєднання патріотів - УКРОП""",39947896,Полтавська область,"Комiсiя за виконання платежiв в нацiональнiй валютi, згiдно з вiдкритою офертою банку N б/н вiд 21.08.2015 та тарифiв банку, без ПДВ.",26003054616293,current,3.00,"ПАТ КБ ""Приватбанк""",14360570,юридична особа
УКРОП,"Київ, вулиця Михайла Грушевського, 1Д",70,2017-12-20,CKO0M U57BY,Банківські послуги,Інші витрати,34480,"Волинська обласна організація політичної партії ""Українське обʼєднання патріотів - УКРОП""",39946248,Волинська область,"Комісія за виконання платежів в національній валюті, згідно з відкритою офертою банку N б/н від 28.08.2015 та тарифів банку, без ПДВ.",26007055507180,current,3.00,"ПАТ КБ ""Приватбанк""",14360570,юридична особа
УКРОП,"Волинська область, Луцьк, вулиця Карбишева, 2",76,2017-12-20,459,Послуги зв’язку,Послуги зв’язку,34479,"Волинська обласна організація політичної партії ""Українське обʼєднання патріотів - УКРОП""",39946248,Волинська область,"За телекомунікаційні послуги зг.рах.Ш10227171204 від 01.12.17р. У сумі 83.33 грн., ПДВ - 20 % 16.67 грн.",26007055507180,current,100.00,"ПрАТ ""Датагруп""",31720260,юридична особа
УКРОП,"Київ, вулиця Михайла Грушевського, 1Д",70,2017-12-20,CKO0M U574Y,Банківські послуги,Інші витрати,34478,"Волинська обласна організація політичної партії ""Українське обʼєднання патріотів - УКРОП""",39946248,Волинська область,"Комісія за виконання платежів в національній валюті, згідно з відкритою офертою банку N б/н від 28.08.2015 та тарифів банку, без ПДВ.",26007055507180,current,3.00,"ПАТ КБ ""Приватбанк""",14360570,юридична особа
УКРОП,"Волинська область, Луцьк, вулиця Карбишева, 2",76,2017-12-20,458,Послуги зв’язку,Послуги зв’язку,34477,"Волинська обласна організація політичної партії ""Українське обʼєднання патріотів - УКРОП""",39946248,Волинська область,"За телекомунікаційні послуги зг.рах.М65795171204 від 01.12.17р. У сумі 141.67 грн., ПДВ - 20 % 28.33 грн.",26007055507180,current,170.00,"ПрАТ ""Датагруп""",31720260,юридична особа
УКРОП,"Київ, вулиця Михайла Грушевського, 1Д",70,2017-12-20,CKO0M U570Y,Банківські послуги,Інші витрати,34476,"Волинська обласна організація політичної партії ""Українське обʼєднання патріотів - УКРОП""",39946248,Волинська область,"Комісія за виконання платежів в національній валюті, згідно з відкритою офертою банку N б/н від 28.08.2015 та тарифів банку, без ПДВ.",26007055507180,current,3.00,"ПАТ КБ ""Приватбанк""",14360570,юридична особа
УКРОП,"Волинська область, Луцьк, вулиця Карбишева, 2",76,2017-12-20,457,Послуги зв’язку,Послуги зв’язку,34475,"Волинська обласна організація політичної партії ""Українське обʼєднання патріотів - УКРОП""",39946248,Волинська область,"За телекомунікаційні послуги зг.рах.М3111*2820351 від 01.12.2017 У сумі 360.00 грн., ПДВ - 20 % 72.00 грн.",26007055507180,current,432.00,"ПрАТ ""Датагруп""",31720260,юридична особа
УКРОП,"Волинська область, Рожищенський район, Рожище, вулиця Героїв УПА, 108",76,2017-12-20,460,Послуги зв’язку,Послуги зв’язку,33963,"Волинська обласна організація політичної партії ""Українське обʼєднання патріотів - УКРОП""",39946248,Волинська область,За доступ до мережі Інтернет за грудень 2017 зг.рах.М77 від 04.12.2017 р.. Без ПДВ,26007055507180,current,200.00,Демидюк Валентин Миколайович,2982403974,фізична особа
УКРОП,"Київ, вулиця Михайла Грушевського, 1Д",70,2017-12-19,1590800006,Банківські послуги,Інші витрати,35535,"Запозізька обласна парторганізація політичної партії ""Українське обʼєднання патріотів - УКРОП""",39923938,Запорізька область,оплата комісія за касове обслуговування по ЗОРППП УОП Укроп,26430500377611,current,10.24,"ПАТ КБ ""Приватбанк""",14360570,юридична особа
УКРОП,"Київ, вулиця Миколи Лєскова, 9",70,2017-12-18,п/д №131,Банківські послуги,Інші витрати,37924,"Харківська обласна організація політичної партії ""Українське обʼєднання патріотів - УКРОП""",39973329,Харківська область,Комісія за обслугов.рах.,26000556842,current_candidate,25.44,"АТ ""Райффайзен банк Аваль""",14305909,юридична особа
УКРОП,"Харківська область, Харків",84,2017-12-18,п/д№130,"Заробітна плата, премії","Заробітна плата, лікарняні, вагітності, відрядження, компенсації",37652,"Харківська обласна організація політичної партії ""Українське обʼєднання патріотів - УКРОП""",39973329,Харківська область,зарплата за 2пол.листопада 2017р.,26000556842,current_candidate,1569.75,Максимова Зінаїда Григорівна,,фізична особа
УКРОП,"Харківська область, Харків",84,2017-12-18,п/д№130,"Заробітна плата, премії","Заробітна плата, лікарняні, вагітності, відрядження, компенсації",37651,"Харківська обласна організація політичної партії ""Українське обʼєднання патріотів - УКРОП""",39973329,Харківська область,зарплата за 2пол.листопада 2017р.,26000556842,current_candidate,1610.00,Сахань Михайло Вікторович,,фізична особа
УКРОП,"Київ, вулиця Михайла Грушевського, 1Д",70,2017-12-18,C1O0MK4PBY,Банківські послуги,Інші витрати,37153,"Рівненська обласна організація політичної партії ""Українське обʼєднання патріотів - УКРОП""",39914504,Рівненська область,Комісія банку за виконання платежів,26005054719198,current,3.00,"ПАТ КБ ""Приватбанк""",14360570,юридична особа
УКРОП,"Рівненська область, Рівне, вулиця Будівельників, 7",79,2017-12-18,72,"Оренда будинків і приміщень та експлуатаційні витрати (прибирання, страхування орендованих будинків, охорона, сигналізація, ремонт, вивіз сміття, тощо)",Оренда нерухомості,37152,"Рівненська обласна організація політичної партії ""Українське обʼєднання патріотів - УКРОП""",39914504,Рівненська область,оренда офісу за грудень 2017 р.,26005054719198,current,12465.00,"ТОВ ""Рівнеагроспецмонтаж""",00910699,юридична особа
УКРОП,"Київ, вулиця Михайла Грушевського, 1Д",70,2017-12-18,CIOOMI81RY,Банківські послуги,Інші витрати,37151,"Рівненська обласна організація політичної партії ""Українське обʼєднання патріотів - УКРОП""",39914504,Рівненська область,Комісія банку за виконання платежів,26005054719198,current,3.00,"ПАТ КБ ""Приватбанк""",14360570,юридична особа
УКРОП,"Київ, вулиця Смоленська, 31/33",76,2017-12-18,71,Послуги зв’язку,Послуги зв’язку,37150,"Рівненська обласна організація політичної партії ""Українське обʼєднання патріотів - УКРОП""",39914504,Рівненська область,Телекомунікаційні послуги за грудень,26005054719198,current,300.00,"ПрАТ ""Датагруп""",31720260,юридична особа
УКРОП,"Івано-Франківська область, Івано-Франківськ, вулиця Незалежності, 20",62,2017-12-18,330,Сплата ЄСВ,Податкові платежі,35842,"Івано-Франківська обласнапарторганізація політичної партії ""Українське обʼєднання патріотів - УКРОП""",39915162,Івано-Франківська область,*;101;39915162;ЄСВ вiд авансу за грудень 2017р.;;;,26007052513345,current,1900.00,ДПІ в м. Івано-Франківську ГУ ДФС в Івано-Франківській області,39508514,юридична особа
УКРОП,"Київ, вулиця Михайла Грушевського, 1Д",70,2017-12-18,CIO0MJAQRY,Банківські послуги,Інші витрати,35841,"Івано-Франківська обласнапарторганізація політичної партії ""Українське обʼєднання патріотів - УКРОП""",39915162,Івано-Франківська область,"Комiсiя за виконання платежiв в нацiональнiй валютi, згiдно з вiдкритою офертою банку N б/н вiд 11.08.2015 та тарифiв банку, без ПДВ.",26007052513345,current,3.00,"ПАТ КБ ""Приватбанк""",14360570,юридична особа
УКРОП,"Івано-Франківська область, Івано-Франківськ, вулиця Михайла Грушевського, 32",61,2017-12-18,332,Військовий збір,Податкові платежі,35840,"Івано-Франківська обласнапарторганізація політичної партії ""Українське обʼєднання патріотів - УКРОП""",39915162,Івано-Франківська область,*;101;39915162;Вiйськовий збiр вiд авансу за грудень 2017р.;;;,26007052513345,current,150.00,УДКСУ у м. Івано-Франківську,37952250,юридична особа
УКРОП,"Київ, вулиця Михайла Грушевського, 1Д",70,2017-12-18,CIO0MJAPLY,Банківські послуги,Інші витрати,35839,"Івано-Франківська обласнапарторганізація політичної партії ""Українське обʼєднання патріотів - УКРОП""",39915162,Івано-Франківська область,"Комiсiя за виконання платежiв в нацiональнiй валютi, згiдно з вiдкритою офертою банку N б/н вiд 11.08.2015 та тарифiв банку, без ПДВ.",26007052513345,current,3.00,"ПАТ КБ ""Приватбанк""",14360570,юридична особа
УКРОП,"Івано-Франківська область, Івано-Франківськ, вулиця Михайла Грушевського, 32",63,2017-12-18,331,Податок на доходи,Податкові платежі,35838,"Івано-Франківська обласнапарторганізація політичної партії ""Українське обʼєднання патріотів - УКРОП""",39915162,Івано-Франківська область,*;101;39915162;ПДФО вiд авансу за грудень 2017р.;;;,26007052513345,current,1700.00,УДКСУ у м. Івано-Франківську,37952250,юридична особа
УКРОП,"Київ, вулиця Михайла Грушевського, 1Д",70,2017-12-18,CIO0MJACRY,Банківські послуги,Інші витрати,35837,"Івано-Франківська обласнапарторганізація політичної партії ""Українське обʼєднання патріотів - УКРОП""",39915162,Івано-Франківська область,"Комiсiя за виконання платежiв в нацiональнiй валютi, згiдно з вiдкритою офертою банку N б/н вiд 11.08.2015 та тарифiв банку, без ПДВ.",26007052513345,current,3.00,"ПАТ КБ ""Приватбанк""",14360570,юридична особа
УКРОП,"Київ, вулиця Михайла Грушевського, 1Д",70,2017-12-18,338,Банківські послуги,Інші витрати,35836,"Івано-Франківська обласнапарторганізація політичної партії ""Українське обʼєднання патріотів - УКРОП""",39915162,Івано-Франківська область,Комiсiя РКО вiд авансу за грудень 2017р.,26007052513345,current,21.25,"ПАТ КБ ""Приватбанк""",14360570,юридична особа
УКРОП,"Івано-Франківська область, Івано-Франківськ",84,2017-12-18,171218СТ052231,"Заробітна плата, премії","Заробітна плата, лікарняні, вагітності, відрядження, компенсації",35649,"Івано-Франківська обласнапарторганізація політичної партії ""Українське обʼєднання патріотів - УКРОП""",39915162,Івано-Франківська область,Аванс за грудень 2017р. ПО ВIДОМОСТI N 171218СТ052231 ВIД 18.12.2017 РОКУ,26007052513345,current,1000.00,Хоминець Олександра Михайлівна,,фізична особа
УКРОП,"Івано-Франківська область, Івано-Франківськ",84,2017-12-18,171218СТ052231,"Заробітна плата, премії","Заробітна плата, лікарняні, вагітності, відрядження, компенсації",35648,"Івано-Франківська обласнапарторганізація політичної партії ""Українське обʼєднання патріотів - УКРОП""",39915162,Івано-Франківська область,Аванс за грудень 2017р. ПО ВIДОМОСТI N 171218СТ052231 ВIД 18.12.2017 РОКУ,26007052513345,current,2000.00,Шевчук Олександр Дмитрович,,фізична особа
УКРОП,"Івано-Франківська область, Івано-Франківськ",84,2017-12-18,171218СТ052231,"Заробітна плата, премії","Заробітна плата, лікарняні, вагітності, відрядження, компенсації",35647,"Івано-Франківська обласнапарторганізація політичної партії ""Українське обʼєднання патріотів - УКРОП""",39915162,Івано-Франківська область,Аванс за грудень 2017р. ПО ВIДОМОСТI N 171218СТ052231 ВIД 18.12.2017 РОКУ,26007052513345,current,2000.00,Хоминець Микола Іванович,,фізична особа
УКРОП,"Івано-Франківська область, Ворохта",84,2017-12-18,171218СТ052231,"Заробітна плата, премії","Заробітна плата, лікарняні, вагітності, відрядження, компенсації",35646,"Івано-Франківська обласнапарторганізація політичної партії ""Українське обʼєднання патріотів - УКРОП""",39915162,Івано-Франківська область,Аванс за грудень 2017р. ПО ВIДОМОСТI N 171218СТ052231 ВIД 18.12.2017 РОКУ,26007052513345,current,3500.00,Палійчук Микола Васильович,,фізична особа
УКРОП,"Київ, вулиця Михайла Грушевського, 1Д",70,2017-12-18,CIOOMJF39Y,Банківські послуги,Інші витрати,35534,"Запозізька обласна парторганізація політичної партії ""Українське обʼєднання патріотів - УКРОП""",39923938,Запорізька область,"комісія за виконання платежів в національній валюті, згідно офертою банку №б/н від 13.08.2015",26430500377611,current,3.00,"ПАТ КБ ""Приватбанк""",14360570,юридична особа
УКРОП,"Київ, вулиця Михайла Грушевського, 1Д",70,2017-12-18,CIOOMJF38Y,Банківські послуги,Інші витрати,35533,"Запозізька обласна парторганізація політичної партії ""Українське обʼєднання патріотів - УКРОП""",39923938,Запорізька область,комісія за виконання платежів в національній валюті,26430500377611,current,3.00,"ПАТ КБ ""Приватбанк""",14360570,юридична особа
УКРОП,"Київ, вулиця Михайла Грушевського, 1Д",70,2017-12-18,,Банківські послуги,Інші витрати,35532,"Запозізька обласна парторганізація політичної партії ""Українське обʼєднання патріотів - УКРОП""",39923938,Запорізька область,"комісія за виконання платежів в національній валюті, згідно офертою банку №б/н від 13.08.2015",26430500377611,current,3.00,"ПАТ КБ ""Приватбанк""",14360570,юридична особа
УКРОП,"Запорізька область, Запоріжжя, вулиця Дніпровська, 34",62,2017-12-18,276,Сплата ЄСВ,Податкові платежі,35531,"Запозізька обласна парторганізація політичної партії ""Українське обʼєднання патріотів - УКРОП""",39923938,Запорізька область,*;39923938;Єдиний внесок на заг. Соцстрахування за 1-у пол. грудня 16р. Без ПДВ.;;;. Реєстр №10000000443721;;;,26430500377611,current,1200.00,ДПІ у Жовтневому районі м. Запоріжжя ГУ ДФС у Запорізькій області,39501110,юридична особа
УКРОП,"Запорізька область, Запоріжжя, вулиця Олександрівська, 7",63,2017-12-18,274,Податок на доходи,Податкові платежі,35530,"Запозізька обласна парторганізація політичної партії ""Українське обʼєднання патріотів - УКРОП""",39923938,Запорізька область,*;101;39923938; податок з доходів ФО із з/плати за 1-у пол. грудня 16р. Без ПДВ.;;;,26430500377611,current,920.00,УДКСУ в Олександрівському районі м. Запоріжжя,38025440,юридична особа
УКРОП,"Запорізька область, Запоріжжя, вулиця Олександрівська, 7",61,2017-12-18,275,Військовий збір,Податкові платежі,35529,"Запозізька обласна парторганізація політичної партії ""Українське обʼєднання патріотів - УКРОП""",39923938,Запорізька область,*;39923938;11011000; воєнний збір із з/плати за 1-у пол. грудня 16р. Без ПДВ,26430500377611,current,80.00,УДКСУ в Олександрівському районі м. Запоріжжя,38025440,юридична особа
УКРОП,"Запорізька область, Запоріжжя",84,2017-12-18,273,"Заробітна плата, премії","Заробітна плата, лікарняні, вагітності, відрядження, компенсації",35347,"Запозізька обласна парторганізація політичної партії ""Українське обʼєднання патріотів - УКРОП""",39923938,Запорізька область,заробітна плата за 1 -у пол. грудня 17р. Податки в бюджет,26430500377611,current,1360.00,Россоха Марина Олександрівна,,фізична особа
УКРОП,"Запорізька область, Запоріжжя",84,2017-12-18,273,"Заробітна плата, премії","Заробітна плата, лікарняні, вагітності, відрядження, компенсації",35346,"Запозізька обласна парторганізація політичної партії ""Українське обʼєднання патріотів - УКРОП""",39923938,Запорізька область,"заробітна плата за 1-у пол. грудня 17р. Податки в бюджет перераховані повністю 18,12.17р.",26430500377611,current,1360.00,Гришина Тетяна Миколаївна,,фізична особа
УКРОП,"Запорізька область, Запоріжжя",84,2017-12-18,273,"Заробітна плата, премії","Заробітна плата, лікарняні, вагітності, відрядження, компенсації",35345,"Запозізька обласна парторганізація політичної партії ""Українське обʼєднання патріотів - УКРОП""",39923938,Запорізька область,"заробітна плата за 1-у пол. грудня 17р. Податки в бюджет перераховані повністю 18,12.17р.",26430500377611,current,1375.00,Гришин Ярослав Володимирович,,фізична особа
УКРОП,"Київ, вулиця Михайла Грушевського, 1Д",70,2017-12-18,CIO0ML LVFY,Банківські послуги,Інші витрати,34474,"Волинська обласна організація політичної партії ""Українське обʼєднання патріотів - УКРОП""",39946248,Волинська область,"Комісія за виконання платежів в національній валюті, згідно з відкритою офертою банку N б/н від 28.08.2015 та тарифів банку, без ПДВ.",26007055507180,current,3.00,"ПАТ КБ ""Приватбанк""",14360570,юридична особа
УКРОП,"Київ, бульвар Тараса Шевченка, 18",76,2017-12-18,456,Послуги зв’язку,Послуги зв’язку,34473,"Волинська обласна організація політичної партії ""Українське обʼєднання патріотів - УКРОП""",39946248,Волинська область,"За телекомунікаційні послуги за листопад рах.0733000000022270.11.2 017 від 30.11.17р., зг.дог.0733000000022270 від 02.06.17 р.. ПДВ - 20 % 425 37 грн.",26007055507180,current,2552.20,"ПАТ ""Укртелеком""",21560766,юридична особа
УКРОП,"Київ, вулиця Михайла Грушевського, 1Д",70,2017-12-16,TZOO6DOWAY,Банківські послуги,Інші витрати,37505,"Сумська обласна організація політичної партії ""Українське обʼєднання патріотів - УКРОП""",39945637,Сумська область,"комісія за обслуговування рахунку за червень 2017р, згідно договору банківського рахунку від 26.08.2016р.",26000055016685,current,5.75,"ПАТ КБ ""Приватбанк""",14360570,юридична особа
УКРОП,"Харківська область, Харків, провулок Академіка Підгорного, 3",62,2017-12-15,п/д №129,Сплата ЄСВ,Податкові платежі,37923,"Харківська обласна організація політичної партії ""Українське обʼєднання патріотів - УКРОП""",39973329,Харківська область,"Сплата ЕСВ-22%-869,00грн. на зп. за 2пол.11.2017р.",26000556842,current_candidate,869.00,Харківська ОДПІ ГУ ДФС у Харківській області,39859695,юридична особа
УКРОП,"Харківська область, Харків, Григорівське шосе, 52",63,2017-12-15,п/д №127,Податок на доходи,Податкові платежі,37922,"Харківська обласна організація політичної партії ""Українське обʼєднання патріотів - УКРОП""",39973329,Харківська область,НДФЛ із з/пл за 2 пол.11. 2017р.,26000556842,current_candidate,711.00,УДКСУ у Харківському районі Харківської області,37999633,юридична особа
УКРОП,"Харківська область, Харків, Григорівське шосе, 52",61,2017-12-15,п/д №128,Військовий збір,Податкові платежі,37921,"Харківська обласна організація політичної партії ""Українське обʼєднання патріотів - УКРОП""",39973329,Харківська область,"Військовий збір 1,5% із з/пл за 2пол.11. 2017.",26000556842,current_candidate,59.25,УДКСУ у Харківському районі Харківської області,37999633,юридична особа
УКРОП,"Київ, вулиця Михайла Грушевського, 1Д",70,2017-12-15,CFO0MGDV PX,Банківські послуги,Інші витрати,37920,"Харківська обласна організація політичної партії ""Українське обʼєднання патріотів - УКРОП""",39973329,Харківська область,Комісія за обслугов.рах.,26001052207545,current,15.64,"ПАТ КБ ""Приватбанк""",14360570,юридична особа
УКРОП,"Київ, вулиця Михайла Грушевського, 1Д",70,2017-12-15,CFO0MGDV PY,Банківські послуги,Інші витрати,37919,"Харківська обласна організація політичної партії ""Українське обʼєднання патріотів - УКРОП""",39973329,Харківська область,Комісія за обслугов.рах.,26001052207545,current,3.00,"ПАТ КБ ""Приватбанк""",14360570,юридична особа
УКРОП,"Київ, вулиця Михайла Грушевського, 1Д",70,2017-12-15,п/д №159,Банківські послуги,Інші витрати,37918,"Харківська обласна організація політичної партії ""Українське обʼєднання патріотів - УКРОП""",39973329,Харківська область,Комісія за обслугов.рах.,26001052207545,current,15.60,"ПАТ КБ ""Приватбанк""",14360570,юридична особа
УКРОП,"Київ, вулиця Михайла Грушевського, 1Д",70,2017-12-15,CFO0MGCU RY,Банківські послуги,Інші витрати,37917,"Харківська обласна організація політичної партії ""Українське обʼєднання патріотів - УКРОП""",39973329,Харківська область,Комісія за обслугов.рах.,26001052207545,current,3.00,"ПАТ КБ ""Приватбанк""",14360570,юридична особа
УКРОП,"Харківська область, Харків, провулок Академіка Підгорного, 3",62,2017-12-15,п/д №157,Сплата ЄСВ,Податкові платежі,37916,"Харківська обласна організація політичної партії ""Українське обʼєднання патріотів - УКРОП""",39973329,Харківська область,"Сплата ЕСВ-22%-1701,80грн. Та 8,41%-168,20грн.на зп. за 2пол.11.2017р.",26001052207545,current,1870.00,Харківська ОДПІ ГУ ДФС у Харківській області,39859695,юридична особа
УКРОП,"Київ, вулиця Михайла Грушевського, 1Д",70,2017-12-15,CFO0MGCO TY,Банківські послуги,Інші витрати,37915,"Харківська обласна організація політичної партії ""Українське обʼєднання патріотів - УКРОП""",39973329,Харківська область,Комісія за обслугов.рах.,26001052207545,current,3.00,"ПАТ КБ ""Приватбанк""",14360570,юридична особа
УКРОП,"Харківська область, Харків, Григорівське шосе, 52",63,2017-12-15,п/д №156,Податок на доходи,Податкові платежі,37914,"Харківська обласна організація політичної партії ""Українське обʼєднання патріотів - УКРОП""",39973329,Харківська область,НДФЛ із з/пл за 2 пол.11. 2017р.,26001052207545,current,351.00,УДКСУ у Харківському районі Харківської області,37999633,юридична особа
УКРОП,"Київ, вулиця Михайла Грушевського, 1Д",70,2017-12-15,CFO0MGCL FY,Банківські послуги,Інші витрати,37913,"Харківська обласна організація політичної партії ""Українське обʼєднання патріотів - УКРОП""",39973329,Харківська область,Комісія за обслугов.рах.,26001052207545,current,3.00,"ПАТ КБ ""Приватбанк""",14360570,юридична особа
УКРОП,"Харківська область, Харків, Григорівське шосе, 52",61,2017-12-15,п/д №155,Військовий збір,Податкові платежі,37912,"Харківська обласна організація політичної партії ""Українське обʼєднання патріотів - УКРОП""",39973329,Харківська область,"Військовий збір 1,5% із з/пл за 2пол.11. 2017.",26001052207545,current,116.25,УДКСУ у Харківському районі Харківської області,37999633,юридична особа
УКРОП,"Харківська область, Харків",84,2017-12-15,п/д №158,"Заробітна плата, премії","Заробітна плата, лікарняні, вагітності, відрядження, компенсації",37662,"Харківська обласна організація політичної партії ""Українське обʼєднання патріотів - УКРОП""",39973329,Харківська область,зарплата за 2пол.листопада 2017р.,26001052207545,current,1529.50,Бабаєва Оксана Ігорівна,,фізична особа
УКРОП,"Харківська область, Дергачівський район, Мала Данилівка",84,2017-12-15,п/д №158,"Заробітна плата, премії","Заробітна плата, лікарняні, вагітності, відрядження, компенсації",37661,"Харківська обласна організація політичної партії ""Українське обʼєднання патріотів - УКРОП""",39973329,Харківська область,зарплата за 2пол.листопада 2017р.,26001052207545,current,1529.50,Мірошнікова Людмила Юріївна,,фізична особа
УКРОП,"Харківська область, Харків",84,2017-12-15,п/д №158,"Заробітна плата, премії","Заробітна плата, лікарняні, вагітності, відрядження, компенсації",37660,"Харківська обласна організація політичної партії ""Українське обʼєднання патріотів - УКРОП""",39973329,Харківська область,зарплата за 2пол.листопада 2017р.,26001052207545,current,1569.75,Безпалий Олександр Ігорович,,фізична особа
УКРОП,"Харківська область, Харків",84,2017-12-15,п/д №158,"Заробітна плата, премії","Заробітна плата, лікарняні, вагітності, відрядження, компенсації",37655,"Харківська обласна організація політичної партії ""Українське обʼєднання патріотів - УКРОП""",39973329,Харківська область,зарплата за 2пол.листопада 2017р.,26001052207545,current,1610.00,Полуніна Світлана Миколаївна,,фізична особа
УКРОП,"Київ, вулиця Михайла Грушевського, 1Д",70,2017-12-15,6FOO6DOWAY_1,Банківські послуги,Інші витрати,37504,"Сумська обласна організація політичної партії ""Українське обʼєднання патріотів - УКРОП""",39945637,Сумська область,"комісія за обслуговування рахунку за червень 2017р, згідно договору банківського рахунку від 26.08.2016р.",26000055016685,current,3.00,"ПАТ КБ ""Приватбанк""",14360570,юридична особа
УКРОП,"Київ, вулиця Михайла Грушевського, 1Д",70,2017-12-15,6FOO6DOWAY,Банківські послуги,Інші витрати,37503,"Сумська обласна організація політичної партії ""Українське обʼєднання патріотів - УКРОП""",39945637,Сумська область,"комісія за обслуговування рахунку за червень 2017р, згідно договору банківського рахунку від 26.08.2016р.",26000055016685,current,3.00,"ПАТ КБ ""Приватбанк""",14360570,юридична особа
УКРОП,"Сумська область, Суми, вулиця Троїцька, 8",63,2017-12-15,476,Податок на доходи,Податкові платежі,37502,"Сумська обласна організація політичної партії ""Українське обʼєднання патріотів - УКРОП""",39945637,Сумська область,податок з доходу фізичних осіб із заробітної плати за першу половину грудня 2017р.,26000055016685,current,415.00,УДКСУ у м. Суми,37970593,юридична особа
УКРОП,"Сумська область, Суми, вулиця Троїцька, 8",61,2017-12-15,475,Військовий збір,Податкові платежі,37501,"Сумська обласна організація політичної партії ""Українське обʼєднання патріотів - УКРОП""",39945637,Сумська область,"військовий збір 1,5% із заробітної плати за першу половину грудня 2017р.",26000055016685,current,35.00,УДКСУ у м. Суми,37970593,юридична особа
УКРОП,"Київ, вулиця Михайла Грушевського, 1Д",70,2017-12-15,CDOOMCJOEY,Банківські послуги,Інші витрати,37500,"Сумська обласна організація політичної партії ""Українське обʼєднання патріотів - УКРОП""",39945637,Сумська область,"комісія за обслуговування рахунку за червень 2017р, згідно договору банківського рахунку від 26.08.2016р.",26000055016685,current,3.00,"ПАТ КБ ""Приватбанк""",14360570,юридична особа
УКРОП,"Сумська область, Суми, Покровська площа, 2",62,2017-12-15,474,Сплата ЄСВ,Податкові платежі,37499,"Сумська обласна організація політичної партії ""Українське обʼєднання патріотів - УКРОП""",39945637,Сумська область,єдиний внесок 22% на заробітну плату за першу половину грудня 2017р.,26000055016685,current,506.00,ДПІ у м. Сумах,39563287,юридична особа
УКРОП,"Сумська область, Сумський район, Суми",84,2017-12-15,171215СТ022843,"Заробітна плата, премії","Заробітна плата, лікарняні, вагітності, відрядження, компенсації",37251,"Сумська обласна організація політичної партії ""Українське обʼєднання патріотів - УКРОП""",39945637,Сумська область,заробітна плата за першу половину грудня 2017р.,26000055016685,current,350.00,Каретник Олена Григорівна,,фізична особа
УКРОП,"Сумська область, Сумський район, Косівщина",84,2017-12-15,171215СТ022842,"Заробітна плата, премії","Заробітна плата, лікарняні, вагітності, відрядження, компенсації",37250,"Сумська обласна організація політичної партії ""Українське обʼєднання патріотів - УКРОП""",39945637,Сумська область,заробітна плата за першу половину грудня 2017р.,26000055016685,current,350.00,Луговий Владислав Віталійович,,фізична особа
УКРОП,"Сумська область, Сумський район, Суми",84,2017-12-15,171215СТ022841,"Заробітна плата, премії","Заробітна плата, лікарняні, вагітності, відрядження, компенсації",37249,"Сумська обласна організація політичної партії ""Українське обʼєднання патріотів - УКРОП""",39945637,Сумська область,заробітна плата за першу половину грудня 2017р.,26000055016685,current,1600.00,Чаленко Ольга Андріївна,,фізична особа
УКРОП,"Київ, вулиця Михайла Грушевського, 1Д",70,2017-12-15,CFO0MD96JY,Банківські послуги,Інші витрати,36603,"Одеська обласна парторганізація політичної партії ""Українське обʼєднання патріотів - УКРОП""",39994815,Одеська область,Комісія за дебетування рахунку,26004054327711,current,3.00,"ПАТ КБ ""Приватбанк""",14360570,юридична особа
УКРОП,"Одеська область, Одеса, вулиця Черняховського, 6",63,2017-12-15,87,Податок на доходи,Податкові платежі,36602,"Одеська обласна парторганізація політичної партії ""Українське обʼєднання патріотів - УКРОП""",39994815,Одеська область,*;101;39994815;11010100;;;ПД ФО на аванс у грудні 2017 р. Без ПДВ.,26004054327711,current,330.70,УДКСУ у м. Одесі,38016923,юридична особа
УКРОП,"Київ, вулиця Михайла Грушевського, 1Д",70,2017-12-15,CFO0MD96AY,Банківські послуги,Інші витрати,36601,"Одеська обласна парторганізація політичної партії ""Українське обʼєднання патріотів - УКРОП""",39994815,Одеська область,Комісія за дебетування рахунку,26004054327711,current,3.00,"ПАТ КБ ""Приватбанк""",14360570,юридична особа
УКРОП,"Одеська область, Одеса, проспект Академіка Глушка, 17/2",62,2017-12-15,86,Сплата ЄСВ,Податкові платежі,36600,"Одеська обласна парторганізація політичної партії ""Українське обʼєднання патріотів - УКРОП""",39994815,Одеська область,*;201 ;39994815;ЄСВ на аванс у грудні 2017 р. Без ПДВ.,26004054327711,current,410.30,ДПІ у Київському р-ні м. Одеси,39549642,юридична особа
УКРОП,"Київ, вулиця Михайла Грушевського, 1Д",70,2017-12-15,CFO0MD96QY,Банківські послуги,Інші витрати,36599,"Одеська обласна парторганізація політичної партії ""Українське обʼєднання патріотів - УКРОП""",39994815,Одеська область,Комісія за дебетування рахунку,26004054327711,current,3.00,"ПАТ КБ ""Приватбанк""",14360570,юридична особа
УКРОП,"Одеська область, Одеса, вулиця Черняховського, 6",61,2017-12-15,85,Військовий збір,Податкові платежі,36598,"Одеська обласна парторганізація політичної партії ""Українське обʼєднання патріотів - УКРОП""",39994815,Одеська область,*;101;39994815;11011000;;; ВЗ на аванс у грудні 2017г. Без ПДВ.,26004054327711,current,27.98,УДКСУ у м. Одесі,38016923,юридична особа
УКРОП,"Київ, вулиця Михайла Грушевського, 1Д",70,2017-12-15,84,Банківські послуги,Інші витрати,36597,"Одеська обласна парторганізація політичної партії ""Українське обʼєднання патріотів - УКРОП""",39994815,Одеська область,Комісія РКО від авансу за грудні 2017г.,26004054327711,current,3.75,"ПАТ КБ ""Приватбанк""",14360570,юридична особа
УКРОП,"Одеська область, Одеса",84,2017-12-15,83,"Заробітна плата, премії","Заробітна плата, лікарняні, вагітності, відрядження, компенсації",36497,"Одеська обласна парторганізація політичної партії ""Українське обʼєднання патріотів - УКРОП""",39994815,Одеська область,Аванс за грудень 2017г,26004054327711,current,1501.33,Кармазіна Олена Леонідівна,,фізична особа
УКРОП,"Київ, вулиця Михайла Грушевського, 1Д",70,2017-12-15,TZ005BJ55Y,Банківські послуги,Інші витрати,36266,"Львівська обласна організація політичної партії ""Українське обʼєднання патріотів - УКРОП""",39923503,Львівська область,УКРОП,26001053838223,current,12.53,"ПАТ КБ ""Приватбанк""",14360570,юридична особа
УКРОП,"Львівська область, Кам'янка-Бузький район, Кам'янка-Бузька, вулиця Ярослава Мудрого, 8",79,2017-12-15,163,"Оренда будинків і приміщень та експлуатаційні витрати (прибирання, страхування орендованих будинків, охорона, сигналізація, ремонт, вивіз сміття, тощо)",Оренда нерухомості,36265,"Львівська обласна організація політичної партії ""Українське обʼєднання патріотів - УКРОП""",39923503,Львівська область,"Ош“ тд” д™1,ву пВ"" оренду",26001053838223,current,722.60,Сектор культури Кам'янка-Бузької РДА Львівської області,02229273,юридична особа
УКРОП,"Київ, вулиця Михайла Грушевського, 1Д",67,2017-12-15,CFO0MBCQRY,"Повернення коштів, що надійшли з державного бюджету","Повернення коштів, що надійшли з державного бюджету",36264,"Львівська обласна організація політичної партії ""Українське обʼєднання патріотів - УКРОП""",39923503,Львівська область,грошові кошти надійшли з порушенням вимог законодавства,26001053838223,current,3.00,"ПАТ КБ ""Приватбанк""",14360570,юридична особа
УКРОП,"Київ, вулиця Михайла Грушевського, 1Д",76,2017-12-15,397,Послуги зв’язку,Послуги зв’язку,34934,"Київська обласна організація політичної партії ""Українське обʼєднання патріотів - УКРОП""",39949818,Київська область,"Абонплата за послуги мережі Інтернет зг дог N 221В16 від 05.07.16 та рах N 10744 від 31.08.17р. У сумі 800.00 грн., ПДВ - 20 % 160.00 грн.",26003052766800,current,960.00,"ТОВ ""СІТЕЛ""",31108855,юридична особа
УКРОП,"Київ, вулиця Михайла Грушевського, 1Д",70,2017-12-15,CFO0MAIP9Y,Банківські послуги,Інші витрати,34933,"Київська обласна організація політичної партії ""Українське обʼєднання патріотів - УКРОП""",39949818,Київська область,"Комісія за виконання платежів в національній валюті, згідно з відкритою офертою банку N б/н від 21.08.2015 та тарифів банку, без ПДВ.",26003052766800,current,3.00,"ПАТ КБ ""Приватбанк""",14360570,юридична особа
УКРОП,"Київ, вулиця Михайла Грушевського, 1Д",76,2017-12-15,398,Послуги зв’язку,Послуги зв’язку,34932,"Київська обласна організація політичної партії ""Українське обʼєднання патріотів - УКРОП""",39949818,Київська область,Абонплата за послуги звязку зг дог N 84S16 від 05.07.16 та рах N 10745 від 30.11.17р.,26003052766800,current,60.74,"ТОВ ""СІТЕЛ""",31108855,юридична особа
УКРОП,"Київ, вулиця Михайла Грушевського, 1Д",70,2017-12-15,CFO0MAIP6Y,Банківські послуги,Інші витрати,34931,"Київська обласна організація політичної партії ""Українське обʼєднання патріотів - УКРОП""",39949818,Київська область,"Комісія за виконання платежів в національній валюті, згідно з відкритою офертою банку N б/н від 21.08.2015 та тарифів банку, без ПДВ.",26003052766800,current,3.00,"ПАТ КБ ""Приватбанк""",14360570,юридична особа
УКРОП,"Київська обл., Вишгородський район, Вишгород, вулиця Кургузова, 12",61,2017-12-15,394,Військовий збір,Податкові платежі,34930,"Київська обласна організація політичної партії ""Українське обʼєднання патріотів - УКРОП""",39949818,Київська область,*;101;39949818;Військовий збір із з/пл за 12/2017 ;;;,26003052766800,current,42.86,УДКСУ у Вишгородському районі Київської області,37868556,юридична особа
УКРОП,"Київська обл., Вишгородський район, Вишгород, проспект Шевченка, 1",62,2017-12-15,396,Сплата ЄСВ,Податкові платежі,34929,"Київська обласна організація політичної партії ""Українське обʼєднання патріотів - УКРОП""",39949818,Київська область,*;101;39949818;ЕСВ 22% на з/пл за 12/2017 р нарахован та перерахован повністю .;;;,26003052766800,current,628.58,Вишгородська ОДПІ ГУ ДФС у Київській області,39466569,юридична особа
УКРОП,"Київська обл., Вишгородський район, Вишгород, вулиця Кургузова, 12",63,2017-12-15,395,Податок на доходи,Податкові платежі,34928,"Київська обласна організація політичної партії ""Українське обʼєднання патріотів - УКРОП""",39949818,Київська область,*;101;39949818;ПДФО із з/пл за 12/2017 утриман та перерахован повністю;;;,26003052766800,current,514.28,УДКСУ у Вишгородському районі Київської області,37868556,юридична особа
УКРОП,"Київ, вулиця Михайла Грушевського, 1Д",70,2017-12-15,393,Банківські послуги,Інші витрати,34927,"Київська обласна організація політичної партії ""Українське обʼєднання патріотів - УКРОП""",39949818,Київська область,Комісія РКО від зарплати за грудень 2017р.,26003052766800,current,5.75,"ПАТ КБ ""Приватбанк""",14360570,юридична особа
УКРОП,"Київ, вулиця Михайла Грушевського, 1Д",70,2017-12-15,CFO0MAIP7Y,Банківські послуги,Інші витрати,34926,"Київська обласна організація політичної партії ""Українське обʼєднання патріотів - УКРОП""",39949818,Київська область,"Комісія за виконання платежів в національній валюті, згідно з відкритою офертою банку N б/н від 21.08.2015 та тарифів банку, без ПДВ.",26003052766800,current,3.00,"ПАТ КБ ""Приватбанк""",14360570,юридична особа
УКРОП,"Київ, вулиця Михайла Грушевського, 1Д",70,2017-12-15,CFO0MAIP8Y,Банківські послуги,Інші витрати,34925,"Київська обласна організація політичної партії ""Українське обʼєднання патріотів - УКРОП""",39949818,Київська область,"Комісія за виконання платежів в національній валюті, згідно з відкритою офертою банку N б/н від 21.08.2015 та тарифів банку, без ПДВ.",26003052766800,current,3.00,"ПАТ КБ ""Приватбанк""",14360570,юридична особа
УКРОП,"Київ, вулиця Михайла Грушевського, 1Д",70,2017-12-15,CFO0MAIPAY,Банківські послуги,Інші витрати,34924,"Київська обласна організація політичної партії ""Українське обʼєднання патріотів - УКРОП""",39949818,Київська область,"Комісія за виконання платежів в національній валюті, згідно з відкритою офертою банку N б/н від 21.08.2015 та тарифів банку, без ПДВ.",26003052766800,current,3.00,"ПАТ КБ ""Приватбанк""",14360570,юридична особа
УКРОП,"Житомирська область, Андрушівський район, Новоівницьке",84,2017-12-15,392,"Заробітна плата, премії","Заробітна плата, лікарняні, вагітності, відрядження, компенсації",34599,"Київська обласна організація політичної партії ""Українське обʼєднання патріотів - УКРОП""",39949818,Київська область,Зарплата за грудень 2017р.,26003052766800,current,500.00,Чугунова Оксана Василівна,,фізична особа
УКРОП,Київ,84,2017-12-15,392,"Заробітна плата, премії","Заробітна плата, лікарняні, вагітності, відрядження, компенсації",34598,"Київська обласна організація політичної партії ""Українське обʼєднання патріотів - УКРОП""",39949818,Київська область,Зарплата за грудень 2017р.,26003052766800,current,650.00,Кравченко Михайлина Михайлівна,,фізична особа
УКРОП,"Київська обл., Києво-Святошинський район, Святопетрівське",84,2017-12-15,392,"Заробітна плата, премії","Заробітна плата, лікарняні, вагітності, відрядження, компенсації",34597,"Київська обласна організація політичної партії ""Українське обʼєднання патріотів - УКРОП""",39949818,Київська область,Зарплата за грудень 2017р.,26003052766800,current,500.00,Реган Павло Леонідович,,фізична особа
УКРОП,"Київська обл., Києво-Святошинський район, Дмитрівка",84,2017-12-15,392,"Заробітна плата, премії","Заробітна плата, лікарняні, вагітності, відрядження, компенсації",34596,"Київська обласна організація політичної партії ""Українське обʼєднання патріотів - УКРОП""",39949818,Київська область,Зарплата за грудень 2017р.,26003052766800,current,650.00,Козак Микола Миколайович,,фізична особа
УКРОП,"Полтавська область, Полтава, вулиця Пушкіна, 115",79,2017-12-14,189,"Оренда будинків і приміщень та експлуатаційні витрати (прибирання, страхування орендованих будинків, охорона, сигналізація, ремонт, вивіз сміття, тощо)",Оренда нерухомості,36946,"Полтавська обласна організація політичної партії ""Українське обʼєднання патріотів - УКРОП""",39947896,Полтавська область,"Вiдшкодування витрат за електроенергiю по рах. 2145/11 вiд 30.11..2017 р., та рах. 1921 вiд 31.10.2017 в т.ч. ПДВ 77,48 грн.",26003054616293,current,464.90,"ПП ""Зоря Полтавщини""",02474794,юридична особа
УКРОП,"Полтавська область, Полтава, вулиця Пушкіна, 115",79,2017-12-14,188,"Оренда будинків і приміщень та експлуатаційні витрати (прибирання, страхування орендованих будинків, охорона, сигналізація, ремонт, вивіз сміття, тощо)",Оренда нерухомості,36945,"Полтавська обласна організація політичної партії ""Українське обʼєднання патріотів - УКРОП""",39947896,Полтавська область,"За оренду примiщення у грудн 2017 р. по рах. 1081 вiд 12.12.2017 в т.ч. ПДВ 536,16 грн.",26003054616293,current,3216.97,Управління майном Полтавської облради,24386961,юридична особа
УКРОП,"Київ, вулиця Михайла Грушевського, 1Д",70,2017-12-14,CEO0M65MKY,Банківські послуги,Інші витрати,36944,"Полтавська обласна організація політичної партії ""Українське обʼєднання патріотів - УКРОП""",39947896,Полтавська область,"Комiсiя за виконання платежiв в нацiональнiй валютi, згiдно з вiдкритою офертою банку N б/н вiд 21.08.2015 та тарифiв банку, без ПДВ.",26003054616293,current,3.00,"ПАТ КБ ""Приватбанк""",14360570,юридична особа
УКРОП,"Полтавська область, Полтава, вулиця Пушкіна, 115",60,2017-12-14,187,Інші податки,Податкові платежі,36943,"Полтавська обласна організація політичної партії ""Українське обʼєднання патріотів - УКРОП""",39947896,Полтавська область,Вiдшкодування земельного податку за лстопад та грудень 2017 р по рах. 1063 вiд 11.12.2017 р. Без ПДВ,26003054616293,current,404.30,Управління майном Полтавської облради,24386961,юридична особа
УКРОП,"Київ, вулиця Михайла Грушевського, 1Д",70,2017-12-14,CEO0M65MLY,Банківські послуги,Інші витрати,36942,"Полтавська обласна організація політичної партії ""Українське обʼєднання патріотів - УКРОП""",39947896,Полтавська область,"Комiсiя за виконання платежiв в нацiональнiй валютi, згiдно з вiдкритою офертою банку N б/н вiд 21.08.2015 та тарифiв банку, без ПДВ.",26003054616293,current,3.00,"ПАТ КБ ""Приватбанк""",14360570,юридична особа
УКРОП,"Полтавська область, Полтава, вулиця Пушкіна, 115",79,2017-12-14,190,"Оренда будинків і приміщень та експлуатаційні витрати (прибирання, страхування орендованих будинків, охорона, сигналізація, ремонт, вивіз сміття, тощо)",Оренда нерухомості,36941,"Полтавська обласна організація політичної партії ""Українське обʼєднання патріотів - УКРОП""",39947896,Полтавська область,"ВIдшкодування витрат за воду та водовiдведення по рах. 1915 вiд 31.10.2017 року, та рах. 2144/11 вiд 30.11.2017 в т.ч. ПДВ- 4,74 грн",26003054616293,current,28.43,"ПП ""Зоря Полтавщини""",02474794,юридична особа
УКРОП,"Київ, вулиця Михайла Грушевського, 1Д",67,2017-12-14,CEO0M8VFQY,"Повернення коштів, що надійшли з державного бюджету","Повернення коштів, що надійшли з державного бюджету",36263,"Львівська обласна організація політичної партії ""Українське обʼєднання патріотів - УКРОП""",39923503,Львівська область,грошові кошти надійшли з порушенням вимог законодавства,26001053838223,current,3.00,"ПАТ КБ ""Приватбанк""",14360570,юридична особа
УКРОП,"Львівська область, Львів, вулиця Джохара Дудаєва, 19",60,2017-12-14,159,Інші податки,Податкові платежі,36262,"Львівська обласна організація політичної партії ""Українське обʼєднання патріотів - УКРОП""",39923503,Львівська область,грошові кошти надійшли з порушенням вимог законодавства,26001053838223,current,1122.00,УДКСУ у Галицькому районі м. Львова,38007573,юридична особа
УКРОП,"Львівська область, Львів, вулиця Джохара Дудаєва, 19",60,2017-12-14,160,Інші податки,Податкові платежі,36261,"Львівська обласна організація політичної партії ""Українське обʼєднання патріотів - УКРОП""",39923503,Львівська область,грошові кошти надійшли з порушенням вимог законодавства,26001053838223,current,95.00,УДКСУ у Галицькому районі м. Львова,38007573,юридична особа
УКРОП,"Київ, вулиця Михайла Грушевського, 1Д",70,2017-12-14,CEO0M8VHEY,Банківські послуги,Інші витрати,36260,"Львівська обласна організація політичної партії ""Українське обʼєднання патріотів - УКРОП""",39923503,Львівська область,"^І1""* ill' в б ані N 6""b"" 1 і; 1'а| и^1",26001053838223,current,3.00,"ПАТ КБ ""Приватбанк""",14360570,юридична особа
УКРОП,"Львівська область, Львів, вулиця Стрийська, 34",62,2017-12-14,161,Сплата ЄСВ,Податкові платежі,36259,"Львівська обласна організація політичної партії ""Українське обʼєднання патріотів - УКРОП""",39923503,Львівська область,грошові кошти надійшли з порушенням вимог законодавства,26001053838223,current,1400.00,Галицька ОДПІ ГУ ДФС у Львівській області,39508163,юридична особа
УКРОП,"Київ, вулиця Михайла Грушевського, 1Д",70,2017-12-14,CEO0M8VIRY,Банківські послуги,Інші витрати,36258,"Львівська обласна організація політичної партії ""Українське обʼєднання патріотів - УКРОП""",39923503,Львівська область,"в баш N 6""b"" 1 і; 1'а| и^1",26001053838223,current,3.00,"ПАТ КБ ""Приватбанк""",14360570,юридична особа
УКРОП,,84,2017-12-14,162,"Заробітна плата, премії","Заробітна плата, лікарняні, вагітності, відрядження, компенсації",36116,"Львівська обласна організація політичної партії ""Українське обʼєднання патріотів - УКРОП""",39923503,Львівська область,Зарплата за грудень 2017р.,26001053838223,current,5012.00,Батенко Катерина Миколаївна,,фізична особа
УКРОП,"Сумська область, Суми, вулиця Супруна, 3-1",67,2017-12-13,5905,"Повернення коштів, що надійшли з державного бюджету","Повернення коштів, що надійшли з державного бюджету",38405,"Сумська обласна організація політичної партії ""Українське обʼєднання патріотів - УКРОП""",39945637,Сумська область,грошові кошти надійшли з порушенням вимог законодавства,26000055016685,current,13700.00,"Сумська товарна біржа ""Сумиагропромбіржа""",23820266,юридична особа
УКРОП,"Сумська область, Суми, вулиця Супруна, 3-1",67,2017-12-13,5496,"Повернення коштів, що надійшли з державного бюджету","Повернення коштів, що надійшли з державного бюджету",38404,"Сумська обласна організація політичної партії ""Українське обʼєднання патріотів - УКРОП""",39945637,Сумська область,грошові кошти надійшли з порушенням вимог законодавства,26000055016685,current,2700.00,"Сумська товарна біржа ""Сумиагропромбіржа""",23820266,юридична особа
УКРОП,"Сумська область, Суми, вулиця Супруна, 3-1",67,2017-12-13,5463,"Повернення коштів, що надійшли з державного бюджету","Повернення коштів, що надійшли з державного бюджету",38403,"Сумська обласна організація політичної партії ""Українське обʼєднання патріотів - УКРОП""",39945637,Сумська область,грошові кошти надійшли з порушенням вимог законодавства,26000055016685,current,500.00,"Сумська товарна біржа ""Сумиагропромбіржа""",23820266,юридична особа
УКРОП,"Сумська область, Суми, вулиця Супруна, 3-1",67,2017-12-13,5380,"Повернення коштів, що надійшли з державного бюджету","Повернення коштів, що надійшли з державного бюджету",38402,"Сумська обласна організація політичної партії ""Українське обʼєднання патріотів - УКРОП""",39945637,Сумська область,грошові кошти надійшли з порушенням вимог законодавства,26000055016685,current,5000.00,"Сумська товарна біржа ""Сумиагропромбіржа""",23820266,юридична особа
УКРОП,"Сумська область, Суми, вулиця Супруна, 3-1",67,2017-12-13,5327,"Повернення коштів, що надійшли з державного бюджету","Повернення коштів, що надійшли з державного бюджету",38401,"Сумська обласна організація політичної партії ""Українське обʼєднання патріотів - УКРОП""",39945637,Сумська область,грошові кошти надійшли з порушенням вимог законодавства,26000055016685,current,4000.00,"Сумська товарна біржа ""Сумиагропромбіржа""",23820266,юридична особа
УКРОП,"Сумська область, Суми, вулиця Супруна, 3-1",67,2017-12-13,5211,"Повернення коштів, що надійшли з державного бюджету","Повернення коштів, що надійшли з державного бюджету",38400,"Сумська обласна організація політичної партії ""Українське обʼєднання патріотів - УКРОП""",39945637,Сумська область,грошові кошти надійшли з порушенням вимог законодавства,26000055016685,current,3000.00,"Сумська товарна біржа ""Сумиагропромбіржа""",23820266,юридична особа
УКРОП,"Сумська область, Суми, вулиця Супруна, 3-1",67,2017-12-13,5043,"Повернення коштів, що надійшли з державного бюджету","Повернення коштів, що надійшли з державного бюджету",38399,"Сумська обласна організація політичної партії ""Українське обʼєднання патріотів - УКРОП""",39945637,Сумська область,грошові кошти надійшли з порушенням вимог законодавства,26000055016685,current,6000.00,"Сумська товарна біржа ""Сумиагропромбіржа""",23820266,юридична особа
УКРОП,"Сумська область, Суми, вулиця Супруна, 3-1",67,2017-12-13,4840,"Повернення коштів, що надійшли з державного бюджету","Повернення коштів, що надійшли з державного бюджету",38398,"Сумська обласна організація політичної партії ""Українське обʼєднання патріотів - УКРОП""",39945637,Сумська область,грошові кошти надійшли з порушенням вимог законодавства,26000055016685,current,5000.00,"Сумська товарна біржа ""Сумиагропромбіржа""",23820266,юридична особа
УКРОП,"Сумська область, Суми, вулиця Супруна, 3-1",67,2017-12-13,4800,"Повернення коштів, що надійшли з державного бюджету","Повернення коштів, що надійшли з державного бюджету",38397,"Сумська обласна організація політичної партії ""Українське обʼєднання патріотів - УКРОП""",39945637,Сумська область,грошові кошти надійшли з порушенням вимог законодавства,26000055016685,current,200.00,"Сумська товарна біржа ""Сумиагропромбіржа""",23820266,юридична особа
УКРОП,"Сумська область, Суми, вулиця Супруна, 3-1",67,2017-12-13,4518,"Повернення коштів, що надійшли з державного бюджету","Повернення коштів, що надійшли з державного бюджету",38396,"Сумська обласна організація політичної партії ""Українське обʼєднання патріотів - УКРОП""",39945637,Сумська область,грошові кошти надійшли з порушенням вимог законодавства,26000055016685,current,4800.00,"Сумська товарна біржа ""Сумиагропромбіржа""",23820266,юридична особа
УКРОП,"Сумська область, Суми, вулиця Супруна, 3-1",67,2017-12-13,4374,"Повернення коштів, що надійшли з державного бюджету","Повернення коштів, що надійшли з державного бюджету",38395,"Сумська обласна організація політичної партії ""Українське обʼєднання патріотів - УКРОП""",39945637,Сумська область,грошові кошти надійшли з порушенням вимог законодавства,26000055016685,current,4100.00,"Сумська товарна біржа ""Сумиагропромбіржа""",23820266,юридична особа
УКРОП,"Сумська область, Суми, вулиця Супруна, 3-1",67,2017-12-13,4301,"Повернення коштів, що надійшли з державного бюджету","Повернення коштів, що надійшли з державного бюджету",38394,"Сумська обласна організація політичної партії ""Українське обʼєднання патріотів - УКРОП""",39945637,Сумська область,грошові кошти надійшли з порушенням вимог законодавства,26000055016685,current,6000.00,"Сумська товарна біржа ""Сумиагропромбіржа""",23820266,юридична особа
УКРОП,"Сумська область, Суми, вулиця Супруна, 3-1",67,2017-12-13,4230,"Повернення коштів, що надійшли з державного бюджету","Повернення коштів, що надійшли з державного бюджету",38393,"Сумська обласна організація політичної партії ""Українське обʼєднання патріотів - УКРОП""",39945637,Сумська область,грошові кошти надійшли з порушенням вимог законодавства,26000055016685,current,1000.00,"Сумська товарна біржа ""Сумиагропромбіржа""",23820266,юридична особа
УКРОП,"Сумська область, Суми, вулиця Супруна, 3-1",67,2017-12-13,4091,"Повернення коштів, що надійшли з державного бюджету","Повернення коштів, що надійшли з державного бюджету",38392,"Сумська обласна організація політичної партії ""Українське обʼєднання патріотів - УКРОП""",39945637,Сумська область,грошові кошти надійшли з порушенням вимог законодавства,26000055016685,current,9000.00,"Сумська товарна біржа ""Сумиагропромбіржа""",23820266,юридична особа
УКРОП,"Сумська область, Суми, вулиця Супруна, 3-1",67,2017-12-13,3934,"Повернення коштів, що надійшли з державного бюджету","Повернення коштів, що надійшли з державного бюджету",38391,"Сумська обласна організація політичної партії ""Українське обʼєднання патріотів - УКРОП""",39945637,Сумська область,грошові кошти надійшли з порушенням вимог законодавства,26000055016685,current,2000.00,"Сумська товарна біржа ""Сумиагропромбіржа""",23820266,юридична особа
УКРОП,"Сумська область, Суми, вулиця Супруна, 3-1",67,2017-12-13,3860,"Повернення коштів, що надійшли з державного бюджету","Повернення коштів, що надійшли з державного бюджету",38390,"Сумська обласна організація політичної партії ""Українське обʼєднання патріотів - УКРОП""",39945637,Сумська область,грошові кошти надійшли з порушенням вимог законодавства,26000055016685,current,6000.00,"Сумська товарна біржа ""Сумиагропромбіржа""",23820266,юридична особа
УКРОП,"Сумська область, Суми, вулиця Супруна, 3-1",67,2017-12-13,3817,"Повернення коштів, що надійшли з державного бюджету","Повернення коштів, що надійшли з державного бюджету",38389,"Сумська обласна організація політичної партії ""Українське обʼєднання патріотів - УКРОП""",39945637,Сумська область,грошові кошти надійшли з порушенням вимог законодавства,26000055016685,current,2000.00,"Сумська товарна біржа ""Сумиагропромбіржа""",23820266,юридична особа
УКРОП,"Сумська область, Суми, вулиця Супруна, 3-1",67,2017-12-13,3520,"Повернення коштів, що надійшли з державного бюджету","Повернення коштів, що надійшли з державного бюджету",38388,"Сумська обласна організація політичної партії ""Українське обʼєднання патріотів - УКРОП""",39945637,Сумська область,грошові кошти надійшли з порушенням вимог законодавства,26000055016685,current,8500.00,"Сумська товарна біржа ""Сумиагропромбіржа""",23820266,юридична особа
УКРОП,"Сумська область, Суми, вулиця Супруна, 3-1",67,2017-12-13,3282,"Повернення коштів, що надійшли з державного бюджету","Повернення коштів, що надійшли з державного бюджету",38387,"Сумська обласна організація політичної партії ""Українське обʼєднання патріотів - УКРОП""",39945637,Сумська область,грошові кошти надійшли з порушенням вимог законодавства,26000055016685,current,1400.00,"Сумська товарна біржа ""Сумиагропромбіржа""",23820266,юридична особа
УКРОП,"Сумська область, Суми, вулиця Супруна, 3-1",67,2017-12-13,3245,"Повернення коштів, що надійшли з державного бюджету","Повернення коштів, що надійшли з державного бюджету",38386,"Сумська обласна організація політичної партії ""Українське обʼєднання патріотів - УКРОП""",39945637,Сумська область,грошові кошти надійшли з порушенням вимог законодавства,26000055016685,current,3000.00,"Сумська товарна біржа ""Сумиагропромбіржа""",23820266,юридична особа
УКРОП,"Сумська область, Суми, вулиця Супруна, 3-1",67,2017-12-13,3109,"Повернення коштів, що надійшли з державного бюджету","Повернення коштів, що надійшли з державного бюджету",38385,"Сумська обласна організація політичної партії ""Українське обʼєднання патріотів - УКРОП""",39945637,Сумська область,грошові кошти надійшли з порушенням вимог законодавства,26000055016685,current,4000.00,"Сумська товарна біржа ""Сумиагропромбіржа""",23820266,юридична особа
УКРОП,"Сумська область, Суми, вулиця Супруна, 3-1",67,2017-12-13,2823,"Повернення коштів, що надійшли з державного бюджету","Повернення коштів, що надійшли з державного бюджету",38384,"Сумська обласна організація політичної партії ""Українське обʼєднання патріотів - УКРОП""",39945637,Сумська область,грошові кошти надійшли з порушенням вимог законодавства,26000055016685,current,11000.00,"Сумська товарна біржа ""Сумиагропромбіржа""",23820266,юридична особа
УКРОП,"Сумська область, Суми, вулиця Супруна, 3-1",67,2017-12-13,2733,"Повернення коштів, що надійшли з державного бюджету","Повернення коштів, що надійшли з державного бюджету",38383,"Сумська обласна організація політичної партії ""Українське обʼєднання патріотів - УКРОП""",39945637,Сумська область,грошові кошти надійшли з порушенням вимог законодавства,26000055016685,current,5500.00,"Сумська товарна біржа ""Сумиагропромбіржа""",23820266,юридична особа
УКРОП,"Сумська область, Суми, вулиця Супруна, 3-1",67,2017-12-13,2683,"Повернення коштів, що надійшли з державного бюджету","Повернення коштів, що надійшли з державного бюджету",38382,"Сумська обласна організація політичної партії ""Українське обʼєднання патріотів - УКРОП""",39945637,Сумська область,грошові кошти надійшли з порушенням вимог законодавства,26000055016685,current,2000.00,"Сумська товарна біржа ""Сумиагропромбіржа""",23820266,юридична особа
УКРОП,"Сумська область, Суми, вулиця Супруна, 3-1",67,2017-12-13,2388,"Повернення коштів, що надійшли з державного бюджету","Повернення коштів, що надійшли з державного бюджету",38381,"Сумська обласна організація політичної партії ""Українське обʼєднання патріотів - УКРОП""",39945637,Сумська область,грошові кошти надійшли з порушенням вимог законодавства,26000055016685,current,3500.00,"Сумська товарна біржа ""Сумиагропромбіржа""",23820266,юридична особа
УКРОП,"Сумська область, Суми, вулиця Супруна, 3-1",67,2017-12-13,2147,"Повернення коштів, що надійшли з державного бюджету","Повернення коштів, що надійшли з державного бюджету",38380,"Сумська обласна організація політичної партії ""Українське обʼєднання патріотів - УКРОП""",39945637,Сумська область,грошові кошти надійшли з порушенням вимог законодавства,26000055016685,current,4000.00,"Сумська товарна біржа ""Сумиагропромбіржа""",23820266,юридична особа
УКРОП,"Сумська область, Суми, вулиця Супруна, 3-1",67,2017-12-13,1994,"Повернення коштів, що надійшли з державного бюджету","Повернення коштів, що надійшли з державного бюджету",38379,"Сумська обласна організація політичної партії ""Українське обʼєднання патріотів - УКРОП""",39945637,Сумська область,грошові кошти надійшли з порушенням вимог законодавства,26000055016685,current,5000.00,"Сумська товарна біржа ""Сумиагропромбіржа""",23820266,юридична особа
УКРОП,"Сумська область, Суми, вулиця Супруна, 3-1",67,2017-12-13,1810,"Повернення коштів, що надійшли з державного бюджету","Повернення коштів, що надійшли з державного бюджету",38378,"Сумська обласна організація політичної партії ""Українське обʼєднання патріотів - УКРОП""",39945637,Сумська область,грошові кошти надійшли з порушенням вимог законодавства,26000055016685,current,5000.00,"Сумська товарна біржа ""Сумиагропромбіржа""",23820266,юридична особа
УКРОП,"Сумська область, Суми, вулиця Супруна, 3-1",67,2017-12-13,1000,"Повернення коштів, що надійшли з державного бюджету","Повернення коштів, що надійшли з державного бюджету",38377,"Сумська обласна організація політичної партії ""Українське обʼєднання патріотів - УКРОП""",39945637,Сумська область,грошові кошти надійшли з порушенням вимог законодавства,26000055016685,current,150.00,"Сумська товарна біржа ""Сумиагропромбіржа""",23820266,юридична особа
УКРОП,"Сумська область, Суми, вулиця Супруна, 3-1",67,2017-12-13,1680,"Повернення коштів, що надійшли з державного бюджету","Повернення коштів, що надійшли з державного бюджету",38376,"Сумська обласна організація політичної партії ""Українське обʼєднання патріотів - УКРОП""",39945637,Сумська область,грошові кошти надійшли з порушенням вимог законодавства,26000055016685,current,2000.00,"Сумська товарна біржа ""Сумиагропромбіржа""",23820266,юридична особа
УКРОП,"Сумська область, Суми, вулиця Супруна, 3-1",67,2017-12-13,1553,"Повернення коштів, що надійшли з державного бюджету","Повернення коштів, що надійшли з державного бюджету",38375,"Сумська обласна організація політичної партії ""Українське обʼєднання патріотів - УКРОП""",39945637,Сумська область,грошові кошти надійшли з порушенням вимог законодавства,26000055016685,current,9000.00,"Сумська товарна біржа ""Сумиагропромбіржа""",23820266,юридична особа
УКРОП,"Сумська область, Суми, вулиця Супруна, 3-1",67,2017-12-13,1339,"Повернення коштів, що надійшли з державного бюджету","Повернення коштів, що надійшли з державного бюджету",38374,"Сумська обласна організація політичної партії ""Українське обʼєднання патріотів - УКРОП""",39945637,Сумська область,грошові кошти надійшли з порушенням вимог законодавства,26000055016685,current,10000.00,"Сумська товарна біржа ""Сумиагропромбіржа""",23820266,юридична особа
УКРОП,"Сумська область, Суми, вулиця Супруна, 3-1",67,2017-12-13,1000,"Повернення коштів, що надійшли з державного бюджету","Повернення коштів, що надійшли з державного бюджету",38373,"Сумська обласна організація політичної партії ""Українське обʼєднання патріотів - УКРОП""",39945637,Сумська область,грошові кошти надійшли з порушенням вимог законодавства,26000055016685,current,2000.00,"Сумська товарна біржа ""Сумиагропромбіржа""",23820266,юридична особа
УКРОП,"Волинська область, Луцький район, Зміїнець",67,2017-12-13,H0621FK7LT,"Повернення коштів, що надійшли з державного бюджету","Повернення коштів, що надійшли з державного бюджету",38346,"Волинська обласна організація політичної партії ""Українське обʼєднання патріотів - УКРОП""",39946248,Волинська область,грошові кошти надійшли з порушенням вимог законодавства,26007055507180,current,14900.00,Климчук Ігор Зіновійович,,фізична особа
УКРОП,"Київ, вулиця Михайла Грушевського, 1Д",70,2017-12-13,CDoOM4OWAY,Банківські послуги,Інші витрати,37498,"Сумська обласна організація політичної партії ""Українське обʼєднання патріотів - УКРОП""",39945637,Сумська область,"комісія за обслуговування рахунку за червень 2017р, згідно договору банківського рахунку від 26.08.2016р.",26000055016685,current,3.00,"ПАТ КБ ""Приватбанк""",14360570,юридична особа
УКРОП,"Полтавська область, Полтава, Зіньківська вулиця, 6",79,2017-12-13,472,"Оренда будинків і приміщень та експлуатаційні витрати (прибирання, страхування орендованих будинків, охорона, сигналізація, ремонт, вивіз сміття, тощо)",Оренда нерухомості,37497,"Сумська обласна організація політичної партії ""Українське обʼєднання патріотів - УКРОП""",39945637,Сумська область,"відшкодування комунальних послуг за листопад 2017р., згідно договору № 2-178-2016/ВЦ від 01.03.2016р.",26000055016685,current,1772.41,"ПП ""Торгівельний центр ""Київ""",36324299,юридична особа
УКРОП,"Київ, вулиця Михайла Грушевського, 1Д",70,2017-12-13,6FOO62OWAY,Банківські послуги,Інші витрати,37496,"Сумська обласна організація політичної партії ""Українське обʼєднання патріотів - УКРОП""",39945637,Сумська область,"комісія за обслуговування рахунку за червень 2017р, згідно договору банківського рахунку від 26.08.2016р.",26000055016685,current,3.00,"ПАТ КБ ""Приватбанк""",14360570,юридична особа
УКРОП,"Сумська область, Суми, вулиця Супруна, 3-1",66,2017-12-13,471,Повернення внесків приватних внесків (донорам),Повернення приватних внесків (донорам),37495,"Сумська обласна організація політичної партії ""Українське обʼєднання патріотів - УКРОП""",39945637,Сумська область,"повернення добровільної пожертви, внесеної з порушенням ст.15 IV ЗУ ""Про політичні партії України""",26000055016685,current,151050.00,"Сумська товарна біржа ""Сумиагропромбіржа""",23820266,юридична особа
УКРОП,"Волинська, Луцьк, вулиця Винниченка, 26, 305",52,2017-12-13,455,Інша реклама (без класифікації),Реклама (без класифікації),34472,"Волинська обласна організація політичної партії ""Українське обʼєднання патріотів - УКРОП""",39946248,Волинська область,"За розміщення iнформацiйних матерiалiв рах. N50 від 13.11.17 р., N80 від 12.12.17 р. Без ПДВ",26007055507180,current,4000.00,"ТОВ ""ІА ""ВОЛИНСЬКІ Новини""",41637310,юридична особа
УКРОП,"Київ, вулиця Михайла Грушевського, 1Д",70,2017-12-13,CDO0M4 WTEY,Банківські послуги,Інші витрати,34471,"Волинська обласна організація політичної партії ""Українське обʼєднання патріотів - УКРОП""",39946248,Волинська область,"Комісія за виконання платежів в національній валюті, згідно з відкритою офертою банку N б/н від 28.08.2015 та тарифів банку, без ПДВ.",26007055507180,current,3.00,"ПАТ КБ ""Приватбанк""",14360570,юридична особа
УКРОП,"Київ, вулиця Молодогвардійська, 20",79,2017-12-13,574,"Оренда будинків і приміщень та експлуатаційні витрати (прибирання, страхування орендованих будинків, охорона, сигналізація, ремонт, вивіз сміття, тощо)",Оренда нерухомості,33707,Центральний офіс,39479782,Київ,"Доплата за оренду примiщення зг. рах.N 226 вiд 04.12.2017р. по дог.N 07-12/2015 вiд 07.12.2015р. У сумi 303.44 грн., ПДВ - 20 % 60.69 грн.",26004052741642,current,364.13,"ТОВ ""Приватна компанія ""Торіус""",01552767,юридична особа
УКРОП,"Київ, вулиця Михайла Грушевського, 1Д",70,2017-12-13,CDO0M3HJAY,Банківські послуги,Інші витрати,33706,Центральний офіс,39479782,Київ,"Комiсiя за виконання платежiв в нацiональнiй валютi, згiдно з вiдкритою офертою банку N б/н вiд 01.07.2015 та тарифiв банку, без ПДВ.",26004052741642,current,3.00,"ПАТ КБ ""Приватбанк""",14360570,юридична особа
УКРОП,"Київ, вулиця Михайла Грушевського, 1Д",70,2017-12-13,CDO0M2ES8Y,Банківські послуги,Інші витрати,33705,Центральний офіс,39479782,Київ,"Комiсiя за виконання платежiв в нацiональнiй валютi, згiдно з вiдкритою офертою банку N б/н вiд 01.07.2015 та тарифiв банку, без ПДВ.",26004052741642,current,3.00,"ПАТ КБ ""Приватбанк""",14360570,юридична особа
УКРОП,Київ,84,2017-12-13,572,"Заробітна плата, премії","Заробітна плата, лікарняні, вагітності, відрядження, компенсації",32895,Центральний офіс,39479782,Київ,Зарплата за грудень 2017р.,26004052741642,current,1563.38,Кікін Олександр Сергійович,,фізична особа
УКРОП,"Київська обл., Бучанська район, Буча",84,2017-12-13,571,"Заробітна плата, премії","Заробітна плата, лікарняні, вагітності, відрядження, компенсації",32894,Центральний офіс,39479782,Київ,Зарплата за грудень 2017р.,26004052741642,current,2576.00,Кулагіна Ольга Ігорівна,3331807948,фізична особа
УКРОП,"Київська обл., Миронівський район, Миронівка",84,2017-12-13,571,"Заробітна плата, премії","Заробітна плата, лікарняні, вагітності, відрядження, компенсації",32893,Центральний офіс,39479782,Київ,Зарплата за грудень 2017р.,26004052741642,current,2881.67,Ситник Павло Анатолійович,3063103357,фізична особа
УКРОП,Київ,84,2017-12-13,571,"Заробітна плата, премії","Заробітна плата, лікарняні, вагітності, відрядження, компенсації",32892,Центральний офіс,39479782,Київ,Зарплата за грудень 2017р.,26004052741642,current,2628.48,Сидорук Валентин Михайлович,3240411112,фізична особа
УКРОП,"Київська обл., Ірпінь",84,2017-12-13,573,"Заробітна плата, премії","Заробітна плата, лікарняні, вагітності, відрядження, компенсації",32891,Центральний офіс,39479782,Київ,Зарплата за грудень 2017р.,26004052741642,current,16202.13,Борисенко Денис Валерійович,2909505597,фізична особа
УКРОП,"Дніпропетровська область, Дніпро́",84,2017-12-13,571,"Заробітна плата, премії","Заробітна плата, лікарняні, вагітності, відрядження, компенсації",32890,Центральний офіс,39479782,Київ,Зарплата за грудень 2017р.,26004052741642,current,3735.98,Гусак Андрій Степанович,2515915910,фізична особа
УКРОП,"Київська обл., Васильків",84,2017-12-13,571,"Заробітна плата, премії","Заробітна плата, лікарняні, вагітності, відрядження, компенсації",32889,Центральний офіс,39479782,Київ,Зарплата за грудень 2017р.,26004052741642,current,2801.17,Турчин Анна Олександрівна,,фізична особа
УКРОП,Київ,84,2017-12-13,571,"Заробітна плата, премії","Заробітна плата, лікарняні, вагітності, відрядження, компенсації",32888,Центральний офіс,39479782,Київ,Зарплата за грудень 2017р.,26004052741642,current,2576.00,Божані Ельвіра Людвиківна,,фізична особа
УКРОП,"Донецька область, Донецьк",84,2017-12-13,571,"Заробітна плата, премії","Заробітна плата, лікарняні, вагітності, відрядження, компенсації",32887,Центральний офіс,39479782,Київ,Зарплата за грудень 2017р.,26004052741642,current,2622.81,Жук Юрій Леонідович,,фізична особа
УКРОП,"Київська обл., Васильків",84,2017-12-13,571,"Заробітна плата, премії","Заробітна плата, лікарняні, вагітності, відрядження, компенсації",32886,Центральний офіс,39479782,Київ,Зарплата за грудень 2017р.,26004052741642,current,3042.67,Кривенко Тарас Олександрович,,фізична особа
УКРОП,Київ,84,2017-12-13,571,"Заробітна плата, премії","Заробітна плата, лікарняні, вагітності, відрядження, компенсації",32885,Центральний офіс,39479782,Київ,Зарплата за грудень 2017р.,26004052741642,current,8424.46,Кравчук Євгенія Михайлівна,,фізична особа
УКРОП,"Київська обл., Бородянський район, Клавдієво-Тарасове",84,2017-12-13,571,"Заробітна плата, премії","Заробітна плата, лікарняні, вагітності, відрядження, компенсації",32884,Центральний офіс,39479782,Київ,Зарплата за грудень 2017р.,26004052741642,current,2720.67,Коріний Олександр Іванович,,фізична особа
УКРОП,"Хмельницька область, Полонський район, Велика Березна",84,2017-12-13,571,"Заробітна плата, премії","Заробітна плата, лікарняні, вагітності, відрядження, компенсації",32883,Центральний офіс,39479782,Київ,Зарплата за грудень 2017р.,26004052741642,current,2881.67,Грень Павло Вʼячеславович,,фізична особа
УКРОП,Київ,84,2017-12-13,571,"Заробітна плата, премії","Заробітна плата, лікарняні, вагітності, відрядження, компенсації",32882,Центральний офіс,39479782,Київ,Зарплата за грудень 2017р.,26004052741642,current,2801.17,Гордієнко Інна Володимирівна,,фізична особа
УКРОП,Київ,84,2017-12-13,571,"Заробітна плата, премії","Заробітна плата, лікарняні, вагітності, відрядження, компенсації",32881,Центральний офіс,39479782,Київ,Зарплата за грудень 2017р.,26004052741642,current,2962.17,Білінська Олена Анатоліївна,,фізична особа
УКРОП,Київ,84,2017-12-13,571,"Заробітна плата, премії","Заробітна плата, лікарняні, вагітності, відрядження, компенсації",32880,Центральний офіс,39479782,Київ,Зарплата за грудень 2017р.,26004052741642,current,2720.67,Білінська Марія Михайлівна,,фізична особа
УКРОП,"Херсонська область, Херсон",79,2017-12-13,565,"Оренда будинків і приміщень та експлуатаційні витрати (прибирання, страхування орендованих будинків, охорона, сигналізація, ремонт, вивіз сміття, тощо)",Оренда нерухомості,32879,Центральний офіс,39479782,Київ,#5167985561006255 IПН 1686708876 Оплата за оренду примiщення у груднi 2017 р.зг.дог. N 612-9/100 вiд 03.01.2017 р. Податки сплаченi 12.12.2017 р. Без ПДВ,26004052741642,current,8211.00,Бурда Олександр Степанович,,фізична особа
УКРОП,"Київ, вулиця Михайла Грушевського, 1Д",70,2017-12-12,CCOOLYMX FY,Банківські послуги,Інші витрати,38142,"Херсонська обласна організація політичної партії ""Українське обʼєднання патріотів - УКРОП""",39904145,Херсонська область,"Комісії за виконання платежів в національній валюті, згідно з відкритою офертою банку № б/н від 10.08.2015та таоисЬів",26007052206397,current,396.00,"ПАТ КБ ""Приватбанк""",14360570,юридична особа
УКРОП,"Херсонська область, Херсон, провулок Козацький, 10",63,2017-12-12,222,Податок на доходи,Податкові платежі,38141,"Херсонська обласна організація політичної партії ""Українське обʼєднання патріотів - УКРОП""",39904145,Херсонська область,податок на доходи працівників аванс за грудень 2017,26007052206397,current,3.00,УДКСУ у м. Херсон,37959779,юридична особа
УКРОП,"Київ, вулиця Михайла Грушевського, 1Д",70,2017-12-12,CCOOLYMX AY,Банківські послуги,Інші витрати,38140,"Херсонська обласна організація політичної партії ""Українське обʼєднання патріотів - УКРОП""",39904145,Херсонська область,"Комісії за виконання платежів в національній валюті, згідно з відкритою офертою",26007052206397,current,484.00,"ПАТ КБ ""Приватбанк""",14360570,юридична особа
УКРОП,"Херсонська область, Херсон, вулиця Іллюши Кулика, 143А",62,2017-12-12,220,Сплата ЄСВ,Податкові платежі,38139,"Херсонська обласна організація політичної партії ""Українське обʼєднання патріотів - УКРОП""",39904145,Херсонська область,ЄСВ 22% аванс аванс за грудень 2017,26007052206397,current,3.00,Херсонська ОДПІ ГУ ДФС у Херсонській області,39473382,юридична особа
УКРОП,"Київ, вулиця Михайла Грушевського, 1Д",70,2017-12-12,CCOOLYMX IY,Банківські послуги,Інші витрати,38138,"Херсонська обласна організація політичної партії ""Українське обʼєднання патріотів - УКРОП""",39904145,Херсонська область,"Комісії за виконання платежів в національній валюті, згідно з відкритою офертою банку № б/н від 10.08.2015та тарифів",26007052206397,current,33.00,"ПАТ КБ ""Приватбанк""",14360570,юридична особа
УКРОП,"Херсонська область, Херсон, провулок Козацький, 10",61,2017-12-12,221,Військовий збір,Податкові платежі,38137,"Херсонська обласна організація політичної партії ""Українське обʼєднання патріотів - УКРОП""",39904145,Херсонська область,військовий збір аванс за грудень 2017,26007052206397,current,39.00,УДКСУ у м. Херсон,37959779,юридична особа
УКРОП,"Київ, вулиця Михайла Грушевського, 1Д",70,2017-12-12,LAF 8А00047,Банківські послуги,Інші витрати,38136,"Херсонська обласна організація політичної партії ""Українське обʼєднання патріотів - УКРОП""",39904145,Херсонська область,Погашення заборгованості за розрахункове-касове обслуговування згідно,26007052206397,current,61.00,"ПАТ КБ ""Приватбанк""",14360570,юридична особа
УКРОП,"Херсонська область, Херсон",84,2017-12-12,223,"Заробітна плата, премії","Заробітна плата, лікарняні, вагітності, відрядження, компенсації",37964,"Херсонська обласна організація політичної партії ""Українське обʼєднання патріотів - УКРОП""",39904145,Херсонська область,Перерахування коштів на виплату зар. плати співробітникам за аванс грудень 2017р,26007052206397,current,1771.00,Богданов Віталій Володимирович,,фізична особа
УКРОП,"Київ, вулиця Михайла Грушевського, 1Д",70,2017-12-12,TZ002BHZTL,Банківські послуги,Інші витрати,37149,"Рівненська обласна організація політичної партії ""Українське обʼєднання патріотів - УКРОП""",39914504,Рівненська область,Комісія банку за виконання платежів,26005054719198,current,19.32,"ПАТ КБ ""Приватбанк""",14360570,юридична особа
УКРОП,"Київ, вулиця Михайла Грушевського, 1Д",70,2017-12-12,CCO0LZ3UCA,Банківські послуги,Інші витрати,35162,"Житомирська обласна організація політичної партії ""Українське обʼєднання патріотів - УКРОП""",39925338,Житомирська область,Комiсiя за поповнення карток для виплат та нецiльовi платежi,26000055804505,current,3.22,"ПАТ КБ ""Приватбанк""",14360570,юридична особа
УКРОП,"Київ, вулиця Михайла Грушевського, 1Д",70,2017-12-12,CCO0LZ3l7Y,Банківські послуги,Інші витрати,35161,"Житомирська обласна організація політичної партії ""Українське обʼєднання патріотів - УКРОП""",39925338,Житомирська область,"Комiсiя за виконання платежiв в нацiональнiй валютi, згiдно з вiдкритою офертою банку N б/н вiд 17.08.2015 та тарифiв банку, без ПДВ.",26000055804505,current,3.00,"ПАТ КБ ""Приватбанк""",14360570,юридична особа
УКРОП,"Житомирська область, Житомир, вулиця Святослава Ріхтера, 12/5",61,2017-12-12,137,Військовий збір,Податкові платежі,35160,"Житомирська обласна організація політичної партії ""Українське обʼєднання патріотів - УКРОП""",39925338,Житомирська область,*; 101;39925338;ВЗ утр iз зп за 11. 2017;;;,26000055804505,current,24.00,УДКСУ у м. Житомирі,38035726,юридична особа
УКРОП,"Київ, вулиця Михайла Грушевського, 1Д",70,2017-12-12,CCO0LZ3FXY,Банківські послуги,Інші витрати,35159,"Житомирська обласна організація політичної партії ""Українське обʼєднання патріотів - УКРОП""",39925338,Житомирська область,"Комiсiя за виконання платежiв в нацiональнiй валютi, згiдно з вiдкритою офертою банку N б/н вiд 17.08.2015 та тарифiв банку, без ПДВ.",26000055804505,current,3.00,"ПАТ КБ ""Приватбанк""",14360570,юридична особа
УКРОП,"Житомирська область, Житомир, вулиця Святослава Ріхтера, 12/5",63,2017-12-12,136,Податок на доходи,Податкові платежі,35158,"Житомирська обласна організація політичної партії ""Українське обʼєднання патріотів - УКРОП""",39925338,Житомирська область,*;101;39925338;ПДФО утр iз зп за 11 2017;;;,26000055804505,current,288.00,УДКСУ у м. Житомирі,38035726,юридична особа
УКРОП,"Київ, вулиця Михайла Грушевського, 1Д",70,2017-12-12,CCO0LZ3BRY,Банківські послуги,Інші витрати,35157,"Житомирська обласна організація політичної партії ""Українське обʼєднання патріотів - УКРОП""",39925338,Житомирська область,"Комiсiя за виконання платежiв в нацiональнiй валютi, згiдно з вiдкритою офертою банку N б/н вiд 17.08.2015 та тарифiв банку, без ПДВ.",26000055804505,current,3.00,"ПАТ КБ ""Приватбанк""",14360570,юридична особа
УКРОП,"Житомирська область, Житомир, майдан Перемоги, 2",62,2017-12-12,135,Сплата ЄСВ,Податкові платежі,35156,"Житомирська обласна організація політичної партії ""Українське обʼєднання патріотів - УКРОП""",39925338,Житомирська область,*;101;39925338;*;;;ЄСВ нарах на зп за 11 2017 р,26000055804505,current,352.00,Житомирська ОДПІ ГУ ДФС у Житомирській області,39904577,юридична особа
УКРОП,"Київ, вулиця Михайла Грушевського, 1Д",70,2017-12-12,CCO0LZ37KY,Банківські послуги,Інші витрати,35155,"Житомирська обласна організація політичної партії ""Українське обʼєднання патріотів - УКРОП""",39925338,Житомирська область,"Комiсiя за виконання платежiв в нацiональнiй валютi, згiдно з вiдкритою офертою банку N б/н вiд 17.08.2015 та тарифiв банку, без ПДВ.",26000055804505,current,3.00,"ПАТ КБ ""Приватбанк""",14360570,юридична особа
УКРОП,"Житомирська область, Новоград-Волинський, вулиця Шевченка, 66",79,2017-12-12,134,"Оренда будинків і приміщень та експлуатаційні витрати (прибирання, страхування орендованих будинків, охорона, сигналізація, ремонт, вивіз сміття, тощо)",Оренда нерухомості,35154,"Житомирська обласна організація політичної партії ""Українське обʼєднання патріотів - УКРОП""",39925338,Житомирська область,"Орендна плата вул Шевченко,66КTРАХ№СФ-0000030вiд 07.12.2017 р. Договiр вiд 01.03.2017 р. за 07.2017 ПДВ в т.ч.533,33 Тендер не передбачений",26000055804505,current,60.00,"ТОВ ""Вікторія""",13548248,юридична особа
УКРОП,"Житомирська область, Житомир",84,2017-12-12,117,"Заробітна плата, премії","Заробітна плата, лікарняні, вагітності, відрядження, компенсації",35020,"Житомирська обласна організація політичної партії ""Українське обʼєднання патріотів - УКРОП""",39925338,Житомирська область,Клиндюк Л.В. зарплата за 11 2017 р.Податки перерах повнiстю,26000055804505,current,1288.00,Клиндюк Лідія Вітіславівна,,фізична особа
УКРОП,"Київ, вулиця Михайла Грушевського, 1Д",70,2017-12-12,TZ002BHYMU,Банківські послуги,Інші витрати,33704,Центральний офіс,39479782,Київ,Оплата комiсiї за касове обслуговування по УКР. ОБ'ЄДНАННЯ ПАТРIОТIВ-УКРОП ПП.,26004052741642,current,0.12,"ПАТ КБ ""Приватбанк""",14360570,юридична особа
УКРОП,"Київ, вулиця Михайла Грушевського, 1Д",70,2017-12-12,CCO0LZVTEY,Банківські послуги,Інші витрати,33703,Центральний офіс,39479782,Київ,"Комiсiя за виконання платежiв в нацiональнiй валютi, згiдно з вiдкритою офертою банку N б/н вiд 01.07.2015 та тарифiв банку, без ПДВ.",26004052741642,current,3.00,"ПАТ КБ ""Приватбанк""",14360570,юридична особа
УКРОП,"Київ, вулиця Академіка Туполєва, 28А",61,2017-12-12,567,Військовий збір,Податкові платежі,33702,Центральний офіс,39479782,Київ,*;101;39479782;;ВЗ з доходу Бурди О.с. IПН 1686708876(за послуги по надан примiщення в оренду у груднi 2017)Термiн сплати 12.12.2017 р. Нарах та перерах повнiстю,26004052741642,current,153.00,УДКСУ у Шевченківському районі м. Києва,37995466,юридична особа
УКРОП,"Київ, вулиця Михайла Грушевського, 1Д",70,2017-12-12,CCO0LZVTGY,Банківські послуги,Інші витрати,33701,Центральний офіс,39479782,Київ,"Комiсiя за виконання платежiв в нацiональнiй валютi, згiдно з вiдкритою офертою банку N б/н вiд 01.07.2015 та тарифiв банку, без ПДВ.",26004052741642,current,3.00,"ПАТ КБ ""Приватбанк""",14360570,юридична особа
УКРОП,"Київ, вулиця Академіка Туполєва, 28А",63,2017-12-12,566,Податок на доходи,Податкові платежі,33700,Центральний офіс,39479782,Київ,*;101;39479782;ПДФО з доходу Бурди О.с. IПН 1686708876(за послуги по надан.примiщення в оренду грудень17р)Термiн сплати 12.12.17р.Нарахов та перерах повнiстю;;;,26004052741642,current,1836.00,УДКСУ у Шевченківському районі м. Києва,37995466,юридична особа
УКРОП,"Київ, вулиця Михайла Грушевського, 1Д",70,2017-12-12,CCO0LZVTMY,Банківські послуги,Інші витрати,33699,Центральний офіс,39479782,Київ,"Комiсiя за виконання платежiв в нацiональнiй валютi, згiдно з вiдкритою офертою банку N б/н вiд 01.07.2015 та тарифiв банку, без ПДВ.",26004052741642,current,3.00,"ПАТ КБ ""Приватбанк""",14360570,юридична особа
УКРОП,"Київ, вулиця Академіка Туполєва, 28А",63,2017-12-12,569,Податок на доходи,Податкові платежі,33698,Центральний офіс,39479782,Київ,*;101;39479782;ПДФО з доходу Нарманiї Т.В. IПН 2082623802(за послуги по надан.примiщення в оренду груден17р)Термiн сплати 12.12.17р.Нарах.та перерах повнiстю;;;,26004052741642,current,672.15,УДКСУ у Шевченківському районі м. Києва,37995466,юридична особа
УКРОП,"Київ, вулиця Михайла Грушевського, 1Д",70,2017-12-12,CCO0LZVTOY,Банківські послуги,Інші витрати,33697,Центральний офіс,39479782,Київ,"Комiсiя за виконання платежiв в нацiональнiй валютi, згiдно з вiдкритою офертою банку N б/н вiд 01.07.2015 та тарифiв банку, без ПДВ.",26004052741642,current,3.00,"ПАТ КБ ""Приватбанк""",14360570,юридична особа
УКРОП,"Київ, вулиця Академіка Туполєва, 28А",61,2017-12-12,570,Військовий збір,Податкові платежі,33696,Центральний офіс,39479782,Київ,*;101;39479782;;ВЗ з доходу Нарманiї Т.В.IПН 2082623802(за послуг по надан примiщення в оренду у груднi2017)Термiн сплати 12.12.2017р. Нарах та перерах повнiстю,26004052741642,current,56.01,УДКСУ у Шевченківському районі м. Києва,37995466,юридична особа
УКРОП,"Київ, вулиця Михайла Грушевського, 1Д",70,2017-12-12,CCO0LZVTRY,Банківські послуги,Інші витрати,33695,Центральний офіс,39479782,Київ,"Комiсiя за виконання платежiв в нацiональнiй валютi, згiдно з вiдкритою офертою банку N б/н вiд 01.07.2015 та тарифiв банку, без ПДВ.",26004052741642,current,3.00,"ПАТ КБ ""Приватбанк""",14360570,юридична особа
УКРОП,"Київ, вулиця Академіка Туполєва, 28А",63,2017-12-12,563,Податок на доходи,Податкові платежі,33694,Центральний офіс,39479782,Київ,*;101;39479782;Сплата ПДФО iз зарплати за грудень 2017р.Термiн сплати 30.12.2017р. Нараховано та перераховано повнiстю.;;;,26004052741642,current,13942.31,УДКСУ у Шевченківському районі м. Києва,37995466,юридична особа
УКРОП,"Київ, вулиця Михайла Грушевського, 1Д",70,2017-12-12,CCO0LZPPGY,Банківські послуги,Інші витрати,33693,Центральний офіс,39479782,Київ,"Комiсiя за виконання платежiв в нацiональнiй валютi, згiдно з вiдкритою офертою банку N б/н вiд 01.07.2015 та тарифiв банку, без ПДВ.",26004052741642,current,3.00,"ПАТ КБ ""Приватбанк""",14360570,юридична особа
УКРОП,"Київ, вулиця Академіка Туполєва, 28А",61,2017-12-12,564,Військовий збір,Податкові платежі,33692,Центральний офіс,39479782,Київ,*;101;39479782;Вiйськовий збiр iз зарплати за грудень 2017р.Термiн сплати 30.12.2017р. Нараховано та перераховано повнiстю.;;;,26004052741642,current,1173.89,УДКСУ у Шевченківському районі м. Києва,37995466,юридична особа
УКРОП,"Київ, вулиця Михайла Грушевського, 1Д",70,2017-12-12,CCO0LZPPHY,Банківські послуги,Інші витрати,33691,Центральний офіс,39479782,Київ,"Комiсiя за виконання платежiв в нацiональнiй валютi, згiдно з вiдкритою офертою банку N б/н вiд 01.07.2015 та тарифiв банку, без ПДВ.",26004052741642,current,3.00,"ПАТ КБ ""Приватбанк""",14360570,юридична особа
УКРОП,"Київ, провулок Політехнічний, 5",62,2017-12-12,562,Сплата ЄСВ,Податкові платежі,33690,Центральний офіс,39479782,Київ,"*;101;39479782;Сплата ЄСВ 22%-16828,71;;;8,41%-148,29 iз з/п за грудень 2017р.Термiн сплати 30.12.2017р. Нараховано та перераховано повнiстю.",26004052741642,current,16977.00,ДПІ у Шевченківському районі у м. Києві,39561761,юридична особа
УКРОП,"Київ, вулиця Михайла Грушевського, 1Д",70,2017-12-12,CCO0LZPPJY,Банківські послуги,Інші витрати,33689,Центральний офіс,39479782,Київ,"Комiсiя за виконання платежiв в нацiональнiй валютi, згiдно з вiдкритою офертою банку N б/н вiд 01.07.2015 та тарифiв банку, без ПДВ.",26004052741642,current,3.00,"ПАТ КБ ""Приватбанк""",14360570,юридична особа
УКРОП,"Київська обл., Бориспіль, вулиця Київський шлях, 14",77,2017-12-12,561,"Оренда, ремонт та обслуговування автомобілів","Оренда, ремонт та обслуговування автомобілів",33688,Центральний офіс,39479782,Київ,"Оплата за дизельне паливо ДП-Energy зг. рах. N СП-0000331 вiд 12.12.2017р. У сумi 20416.67 грн., ПДВ - 20 % 4083.33 грн.",26004052741642,current,24500.00,"ТОВ ""МАРІО ГРУП""",40881011,юридична особа
УКРОП,"Київ, вулиця Михайла Грушевського, 1Д",70,2017-12-12,CCO0LZ1Q2Y,Банківські послуги,Інші витрати,33687,Центральний офіс,39479782,Київ,"Комiсiя за виконання платежiв в нацiональнiй валютi, згiдно з вiдкритою офертою банку N б/н вiд 01.07.2015 та тарифiв банку, без ПДВ.",26004052741642,current,3.00,"ПАТ КБ ""Приватбанк""",14360570,юридична особа
УКРОП,"Київ, вулиця Михайла Грушевського, 1Д",70,2017-12-12,CСO0LYBXTY,Банківські послуги,Інші витрати,33686,Центральний офіс,39479782,Київ,"Комiсiя за виконання платежiв в нацiональнiй валютi, згiдно з вiдкритою офертою банку N б/н вiд 01.07.2015 та тарифiв банку, без ПДВ.",26004052741642,current,3.00,"ПАТ КБ ""Приватбанк""",14360570,юридична особа
УКРОП,"Київська обл., Києво-Святошинський район, Петропавлівська Борщагівка, Велика Окружна вулиця, 4",77,2017-12-12,560,"Оренда, ремонт та обслуговування автомобілів","Оренда, ремонт та обслуговування автомобілів",33685,Центральний офіс,39479782,Київ,"Оплата за плановий технiчний огляд авто згiдно рах.N САСТ-639816 вiд 11.12.2017р. У сумi 2660,37 грн., ПДВ - 20 % 532,07 грн.",26004052741642,current,3192.44,"ТОВ ""Автоцентр ""Прага Авто на Кільцевій""",35997739,юридична особа
УКРОП,"Луганська область, Старобільський район, Старобільськ",79,2017-12-12,568,"Оренда будинків і приміщень та експлуатаційні витрати (прибирання, страхування орендованих будинків, охорона, сигналізація, ремонт, вивіз сміття, тощо)",Оренда нерухомості,32878,Центральний офіс,39479782,Київ,Оплата за оренду нежитлового примiщення у груднi 2017р. по дог.N 8 вiд 01.09.2017р. Податки сплаченi 12.12.2017р. Без ПДВ,26004052741642,current,3006.00,Нарманія Тетяна Валеріанівна,2082623802,фізична особа
УКРОП,"Київ, вулиця Михайла Грушевського, 1Д",70,2017-12-11,CBO0LU4EGY,Банківські послуги,Інші витрати,35272,"Закарпатська обласна організація політичної партії ""Українське обʼєднання патріотів - УКРОП""",40031888,Закарпатська область,"Комiсiя за виконання платежiв в нацiональнiй валютi, згiдно з вiдкритою офертою банку N б/н вiд 28.09.2015 та тарифiв банку, без ПДВ.",26006053910024,current,3.00,"ПАТ КБ ""Приватбанк""",14360570,юридична особа
УКРОП,"Закарпатська область, Перечинський район, Перечин, Духновича",79,2017-12-11,77,"Оренда будинків і приміщень та експлуатаційні витрати (прибирання, страхування орендованих будинків, охорона, сигналізація, ремонт, вивіз сміття, тощо)",Оренда нерухомості,35177,"Закарпатська обласна організація політичної партії ""Українське обʼєднання патріотів - УКРОП""",40031888,Закарпатська область,"орендна плата листопад 2017 р., зг.рах.6 від 08.12.17. Без ПДВ.",26006053910024,current,2000.00,Рейпаші Еріка Ернестівна,3422810806,фізична особа
УКРОП,"Київ, вулиця Михайла Грушевського, 1Д",70,2017-12-11,CBO0LV 8OIY,Банківські послуги,Інші витрати,34470,"Волинська обласна організація політичної партії ""Українське обʼєднання патріотів - УКРОП""",39946248,Волинська область,"Комісія за виконання платежів в національній валюті, згідно з відкритою офертою банку N б/н від 28.08.2015 та тарифів банку, без ПДВ.",26007055507180,current,3.00,"ПАТ КБ ""Приватбанк""",14360570,юридична особа
УКРОП,"Волинська область, Володимир-Волинський, вулиця Ковельська, 140, 121",79,2017-12-11,453,"Оренда будинків і приміщень та експлуатаційні витрати (прибирання, страхування орендованих будинків, охорона, сигналізація, ремонт, вивіз сміття, тощо)",Оренда нерухомості,33962,"Волинська обласна організація політичної партії ""Українське обʼєднання патріотів - УКРОП""",39946248,Волинська область,"Оренда плата за грудень 2017 та компенсація комунальних послуг за листопад-грудень 2017 зг. рах.Ш09, 110 від 04.12.2017 р. Без ПДВ",26007055507180,current,6678.00,Грек В Ю,2212903170,фізична особа
УКРОП,"Київ, вулиця Михайла Грушевського, 1Д",70,2017-12-08,C8O0LR58UY,Банківські послуги,Інші витрати,37148,"Рівненська обласна організація політичної партії ""Українське обʼєднання патріотів - УКРОП""",39914504,Рівненська область,Комісія банку за виконання платежів,26005054719198,current,3.00,"ПАТ КБ ""Приватбанк""",14360570,юридична особа
УКРОП,"Рівненська область, Рівне, вулиця Відінська, 8",63,2017-12-08,67,Податок на доходи,Податкові платежі,37147,"Рівненська обласна організація політичної партії ""Українське обʼєднання патріотів - УКРОП""",39914504,Рівненська область,ПДФО за листопад 2017 р.,26005054719198,current,1728.00,ДПІ у м. Рівне ГУ ДФС в Рівненській області,39550744,юридична особа
УКРОП,"Київ, вулиця Михайла Грушевського, 1Д",70,2017-12-08,C8O0LR58RY,Банківські послуги,Інші витрати,37146,"Рівненська обласна організація політичної партії ""Українське обʼєднання патріотів - УКРОП""",39914504,Рівненська область,Комісія банку за виконання платежів,26005054719198,current,3.00,"ПАТ КБ ""Приватбанк""",14360570,юридична особа
УКРОП,"Рівненська область, Рівне, вулиця Відінська, 8",61,2017-12-08,66,Військовий збір,Податкові платежі,37145,"Рівненська обласна організація політичної партії ""Українське обʼєднання патріотів - УКРОП""",39914504,Рівненська область,військовий збір за листопад 2017 р.,26005054719198,current,145.00,ДПІ у м. Рівне ГУ ДФС в Рівненській області,39550744,юридична особа
УКРОП,"Київ, вулиця Михайла Грушевського, 1Д",70,2017-12-08,C8O0LR58OY,Банківські послуги,Інші витрати,37144,"Рівненська обласна організація політичної партії ""Українське обʼєднання патріотів - УКРОП""",39914504,Рівненська область,Комісія банку за виконання платежів,26005054719198,current,3.00,"ПАТ КБ ""Приватбанк""",14360570,юридична особа
УКРОП,"Рівненська область, Рівне, вулиця Відінська, 8",62,2017-12-08,68,Сплата ЄСВ,Податкові платежі,37143,"Рівненська обласна організація політичної партії ""Українське обʼєднання патріотів - УКРОП""",39914504,Рівненська область,ЄСВ за листопад 2017 р.,26005054719198,current,2120.00,ДПІ у м. Рівне ГУ ДФС в Рівненській області,39550744,юридична особа
УКРОП,"Київ, вулиця Михайла Грушевського, 1Д",70,2017-12-08,C8O0LR58LY,Банківські послуги,Інші витрати,37142,"Рівненська обласна організація політичної партії ""Українське обʼєднання патріотів - УКРОП""",39914504,Рівненська область,Комісія банку за виконання платежів,26005054719198,current,3.00,"ПАТ КБ ""Приватбанк""",14360570,юридична особа
УКРОП,"Рівненська область, Рівне, вулиця Будівельників, 7",79,2017-12-08,70,"Оренда будинків і приміщень та експлуатаційні витрати (прибирання, страхування орендованих будинків, охорона, сигналізація, ремонт, вивіз сміття, тощо)",Оренда нерухомості,37141,"Рівненська обласна організація політичної партії ""Українське обʼєднання патріотів - УКРОП""",39914504,Рівненська область,киміїспсаціи ви і ра і ни компослугах за,26005054719198,current,4272.16,"ТОВ ""Рівнеагроспецмонтаж""",00910699,юридична особа
УКРОП,"Рівненська область, Рівне",84,2017-12-08,69,"Заробітна плата, премії","Заробітна плата, лікарняні, вагітності, відрядження, компенсації",36982,"Рівненська обласна організація політичної партії ""Українське обʼєднання патріотів - УКРОП""",39914504,Рівненська область,Заробітна плата за листопад 2017 р.,26005054719198,current,2576.00,Янович Сергій Васильович,,фізична особа
УКРОП,"Рівненська область, Рівне",84,2017-12-08,69,"Заробітна плата, премії","Заробітна плата, лікарняні, вагітності, відрядження, компенсації",36981,"Рівненська обласна організація політичної партії ""Українське обʼєднання патріотів - УКРОП""",39914504,Рівненська область,Заробітна плата за листопад 2017 р.,26005054719198,current,2576.00,Омельчук Тетяна Василівна,,фізична особа
УКРОП,"Рівненська область, Рівненський район, Вересневе",84,2017-12-08,69,"Заробітна плата, премії","Заробітна плата, лікарняні, вагітності, відрядження, компенсації",36980,"Рівненська обласна організація політичної партії ""Українське обʼєднання патріотів - УКРОП""",39914504,Рівненська область,Заробітна плата за листопад 2017 р.,26005054719198,current,2576.00,Гордійчук Діана Юріївна,,фізична особа
УКРОП,"Київ, вулиця Михайла Грушевського, 1Д",70,2017-12-08,1590700009,Банківські послуги,Інші витрати,36940,"Полтавська обласна організація політичної партії ""Українське обʼєднання патріотів - УКРОП""",39947896,Полтавська область,Погашення комiсiї за кас. обслуг. по зарахуванню на картки згiдно 15907000094 вiд 08.09.2015 р.,26003054616293,current,7.36,"ПАТ КБ ""Приватбанк""",14360570,юридична особа
УКРОП,"Київ, вулиця Михайла Грушевського, 1Д",70,2017-12-08,C8O0LQN9JY,Банківські послуги,Інші витрати,35153,"Житомирська обласна організація політичної партії ""Українське обʼєднання патріотів - УКРОП""",39925338,Житомирська область,"Комiсiя за виконання платежiв в нацiональнiй валютi, згiдно з вiдкритою офертою банку N б/н вiд 17.08.2015 та тарифiв банку, без ПДВ.",26000055804505,current,3.00,"ПАТ КБ ""Приватбанк""",14360570,юридична особа
УКРОП,"Житомирська область, Новоград-Волинський, вулиця Шевченка, 66",79,2017-12-08,133,"Оренда будинків і приміщень та експлуатаційні витрати (прибирання, страхування орендованих будинків, охорона, сигналізація, ремонт, вивіз сміття, тощо)",Оренда нерухомості,35152,"Житомирська обласна організація політичної партії ""Українське обʼєднання патріотів - УКРОП""",39925338,Житомирська область,"Орендна плата вул Шевченко,66КTРАХ№СФ-0000030вiд 07.12.2017 р. Договiр вiд 01.03.2017 р. за 07.2017 ПДВ в т.ч.533,33 Тендер не передбачений",26000055804505,current,3140.00,"ТОВ ""Вікторія""",13548248,юридична особа
УКРОП,"Київ, вулиця Михайла Грушевського, 1Д",70,2017-12-08,C8O0LQMNDY,Банківські послуги,Інші витрати,35151,"Житомирська обласна організація політичної партії ""Українське обʼєднання патріотів - УКРОП""",39925338,Житомирська область,"Комiсiя за виконання платежiв в нацiональнiй валютi, згiдно з вiдкритою офертою банку N б/н вiд 17.08.2015 та тарифiв банку, без ПДВ.",26000055804505,current,3.00,"ПАТ КБ ""Приватбанк""",14360570,юридична особа
УКРОП,"Житомирська область, Житомир, вулиця Пушкінська, 25",79,2017-12-08,132,"Оренда будинків і приміщень та експлуатаційні витрати (прибирання, страхування орендованих будинків, охорона, сигналізація, ремонт, вивіз сміття, тощо)",Оренда нерухомості,35150,"Житомирська обласна організація політичної партії ""Українське обʼєднання патріотів - УКРОП""",39925338,Житомирська область,Оплата за оренду примiщення за 12/2017р. РАХ./11/12 вiд 08.12.2017 р. Договiр вiд 29.08.2016 р. Без ПДВ.Держзакупiвлi не передбаченi,26000055804505,current,8000.00,"ПП ""Полісся Енерго""",32505831,юридична особа
УКРОП,"Київ, вулиця Михайла Грушевського, 1Д",70,2017-12-08,17B2100036,Банківські послуги,Інші витрати,34997,"Дніпропетровська обласна регіональна парторганізація політичної партії ""Українське обʼєднання патріотів - УКРОП""",39874446,Дніпропетровська область,Погашення комiсiї за кас. обслуг. по зарахуванню на картки згiдно 17B21000369 вiд 22.11.2017 р.,26007050259982,current,5.21,"ПАТ КБ ""Приватбанк""",14360570,юридична особа
УКРОП,"Київ, вулиця Михайла Грушевського, 1Д",70,2017-12-08,C8O0LQNNHA,Банківські послуги,Інші витрати,33684,Центральний офіс,39479782,Київ,Комісія для поповнення карток для виплат та нецільові платежі,26004052741642,current,0.12,"ПАТ КБ ""Приватбанк""",14360570,юридична особа
УКРОП,"Хмельницька область, Полонський район, Велика Березна",84,2017-12-08,559,"Заробітна плата, премії","Заробітна плата, лікарняні, вагітності, відрядження, компенсації",32877,Центральний офіс,39479782,Київ,Відшкодування витрат по авансових звітах,26004052741642,current,46.56,Грень Павло Вʼячеславович,,фізична особа
УКРОП,"Київ, вулиця Михайла Грушевського, 1Д",70,2017-12-07,C7O0UJAJ Y,Банківські послуги,Інші витрати,38202,"Хмельницька обласна організація політичної партії ""Українське обʼєднання патріотів - УКРОП""",39933490,Хмельницька область,"комісія за виконання платежів в національній валюті, згідно з відкритою офертою банку № б/н від 07.08.2015 та тарифів банку, без ПДВ",26001052423138,current,3.00,"ПАТ КБ ""Приватбанк""",14360570,юридична особа
УКРОП,"Київ, вулиця Михайла Грушевського, 1Д",70,2017-12-07,C7O0LIJDJ Y,Банківські послуги,Інші витрати,38201,"Хмельницька обласна організація політичної партії ""Українське обʼєднання патріотів - УКРОП""",39933490,Хмельницька область,"комісія за виконання платежів в національній валюті, згідно з відкритою офертою банку № б/н від 07.08.2015 та тарифів банку, без ПДВ",26001052423138,current,3.00,"ПАТ КБ ""Приватбанк""",14360570,юридична особа
УКРОП,"Хмельницька область, Ізяславський район, Ізяслав, вулиця Шевченка, 14",79,2017-12-07,143,"Оренда будинків і приміщень та експлуатаційні витрати (прибирання, страхування орендованих будинків, охорона, сигналізація, ремонт, вивіз сміття, тощо)",Оренда нерухомості,38200,"Хмельницька обласна організація політичної партії ""Українське обʼєднання патріотів - УКРОП""",39933490,Хмельницька область,Оплата оренди за грудень зг. Договору суборенди N 01-07/17 від 31.07.2017р. Без ПДВ,26001052423138,current,1400.00,"ТОВ ""ІЗЯСЛАВ-ОЦІНКА""",38072616,юридична особа
УКРОП,"Хмельницька область, Нетішин, вулиця Будівельників, 12",79,2017-12-07,140,"Оренда будинків і приміщень та експлуатаційні витрати (прибирання, страхування орендованих будинків, охорона, сигналізація, ремонт, вивіз сміття, тощо)",Оренда нерухомості,38199,"Хмельницька обласна організація політичної партії ""Українське обʼєднання патріотів - УКРОП""",39933490,Хмельницька область,"Оплата за оренду зг. pax. N 534 від 01.11.2017р. У сумі 1166.67 грн., ПДВ -20% 233.33 грн.",26001052423138,current,1400.00,"ТОВ ""ТОРГОВО-СЕРВІСНИЙ ЦЕНТР -УНІВЕРСАЛСЕРВІС""",34256710,юридична особа
УКРОП,"Київ, вулиця Михайла Грушевського, 1Д",70,2017-12-07,C700UJ81 Y,Банківські послуги,Інші витрати,38198,"Хмельницька обласна організація політичної партії ""Українське обʼєднання патріотів - УКРОП""",39933490,Хмельницька область,"комісія за виконання платежів в національній валюті, згідно з відкритою офертою банку № б/н від 07.08.2015 та тарифів банку, без ПДВ",26001052423138,current,3.00,"ПАТ КБ ""Приватбанк""",14360570,юридична особа
УКРОП,"Хмельницька область, Ізяславський район, Ізяслав, вулиця Шевченка, 14",79,2017-12-07,139,"Оренда будинків і приміщень та експлуатаційні витрати (прибирання, страхування орендованих будинків, охорона, сигналізація, ремонт, вивіз сміття, тощо)",Оренда нерухомості,38197,"Хмельницька обласна організація політичної партії ""Українське обʼєднання патріотів - УКРОП""",39933490,Хмельницька область,Оплата оренди за листопад зг. Договору N 01-07/17 від 31.07.2017р. Без ПДВ,26001052423138,current,1400.00,"ТОВ ""ІЗЯСЛАВ-ОЦІНКА""",38072616,юридична особа
УКРОП,"Київ, вулиця Михайла Грушевського, 1Д",70,2017-12-07,C7O0UJ7O Y,Банківські послуги,Інші витрати,38196,"Хмельницька обласна організація політичної партії ""Українське обʼєднання патріотів - УКРОП""",39933490,Хмельницька область,"комісія за виконання платежів в національній валюті, згідно з відкритою офертою банку № б/н від 07.08.2015 та тарифів банку, без ПДВ",26001052423138,current,3.00,"ПАТ КБ ""Приватбанк""",14360570,юридична особа
УКРОП,"Київ, вулиця Михайла Грушевського, 1Д",70,2017-12-07,C7O0UJ7E Y,Банківські послуги,Інші витрати,38195,"Хмельницька обласна організація політичної партії ""Українське обʼєднання патріотів - УКРОП""",39933490,Хмельницька область,"комісія за виконання платежів в національній валюті, згідно з відкритою офертою банку № б/н від 07.08.2015 та тарифів банку, без ПДВ",26001052423138,current,3.00,"ПАТ КБ ""Приватбанк""",14360570,юридична особа
УКРОП,"Хмельницька область, Ізяславський район, Ізяслав, вулиця Шевченка, 14",79,2017-12-07,137,"Оренда будинків і приміщень та експлуатаційні витрати (прибирання, страхування орендованих будинків, охорона, сигналізація, ремонт, вивіз сміття, тощо)",Оренда нерухомості,38194,"Хмельницька обласна організація політичної партії ""Українське обʼєднання патріотів - УКРОП""",39933490,Хмельницька область,Оплата оренди за жовтень зг. Договору суборенди N 01-07/17 від 31.07.2017р. Без ПДВ,26001052423138,current,1400.00,"ТОВ ""ІЗЯСЛАВ-ОЦІНКА""",38072616,юридична особа
УКРОП,"Київ, вулиця Михайла Грушевського, 1Д",70,2017-12-07,C7O0UHJG Y,Банківські послуги,Інші витрати,38193,"Хмельницька обласна організація політичної партії ""Українське обʼєднання патріотів - УКРОП""",39933490,Хмельницька область,"комісія за виконання платежів в національній валюті, згідно з відкритою офертою банку № б/н від 07.08.2015 та тарифів банку, без ПДВ",26001052423138,current,3.00,"ПАТ КБ ""Приватбанк""",14360570,юридична особа
УКРОП,"Хмельницька область, Нетішин, вулиця Будівельників, 12",79,2017-12-07,135,"Оренда будинків і приміщень та експлуатаційні витрати (прибирання, страхування орендованих будинків, охорона, сигналізація, ремонт, вивіз сміття, тощо)",Оренда нерухомості,38192,"Хмельницька обласна організація політичної партії ""Українське обʼєднання патріотів - УКРОП""",39933490,Хмельницька область,"Оплата за оренду зг. pax. N 479 від 01.10.2017р. У сумі 1166.67 грн., ПДВ -20% 233.33 грн.",26001052423138,current,1400.00,"ТОВ ""ТОРГОВО-СЕРВІСНИЙ ЦЕНТР -УНІВЕРСАЛСЕРВІС""",34256710,юридична особа
УКРОП,"Хмельницька область, Старокостянтинів",79,2017-12-07,142,"Оренда будинків і приміщень та експлуатаційні витрати (прибирання, страхування орендованих будинків, охорона, сигналізація, ремонт, вивіз сміття, тощо)",Оренда нерухомості,38155,"Хмельницька обласна організація політичної партії ""Українське обʼєднання патріотів - УКРОП""",39933490,Хмельницька область,Оплата оренди за грудень згідно договору оренди N 02-07/17 від 27.07.2017р.,26001052423138,current,1500.00,Поліщук Світлана Олександрівна,,фізична особа
УКРОП,"Хмельницька область, Старокостянтинів",79,2017-12-07,138,"Оренда будинків і приміщень та експлуатаційні витрати (прибирання, страхування орендованих будинків, охорона, сигналізація, ремонт, вивіз сміття, тощо)",Оренда нерухомості,38154,"Хмельницька обласна організація політичної партії ""Українське обʼєднання патріотів - УКРОП""",39933490,Хмельницька область,Оплата оренди за листопад згідно договору оренди N 02-07/17 від _27.07.2017п_,26001052423138,current,1500.00,Поліщук Світлана Олександрівна,,фізична особа
УКРОП,"Хмельницька область, Старокостянтинів",79,2017-12-07,136,"Оренда будинків і приміщень та експлуатаційні витрати (прибирання, страхування орендованих будинків, охорона, сигналізація, ремонт, вивіз сміття, тощо)",Оренда нерухомості,38153,"Хмельницька обласна організація політичної партії ""Українське обʼєднання патріотів - УКРОП""",39933490,Хмельницька область,Оплата оренди зажовтень зг. Договору суборенди N 02-07/17 від 27.07.2017п. Без П ЯВ,26001052423138,current,1500.00,Поліщук Світлана Олександрівна,,фізична особа
УКРОП,"Полтавська область, Полтава, вулиця Шевченка, 1",63,2017-12-07,184,Податок на доходи,Податкові платежі,36939,"Полтавська обласна організація політичної партії ""Українське обʼєднання патріотів - УКРОП""",39947896,Полтавська область,*;101;39947896;Прибутковий податок з заплати за 2 половину листопада 2017 р з найманих працiвникiв партiї. Перераховано повнiстю.;;;,26003054616293,current,570.27,УДКСУ у м. Полтаві,38019510,юридична особа
УКРОП,"Київ, вулиця Михайла Грушевського, 1Д",70,2017-12-07,C7O0LIYUTY,Банківські послуги,Інші витрати,36938,"Полтавська обласна організація політичної партії ""Українське обʼєднання патріотів - УКРОП""",39947896,Полтавська область,"Комiсiя за виконання платежiв в нацiональнiй валютi, згiдно з вiдкритою офертою банку N б/н вiд 21.08.2015 та тарифiв банку, без ПДВ.",26003054616293,current,3.00,"ПАТ КБ ""Приватбанк""",14360570,юридична особа
УКРОП,"Полтавська область, Полтава, вулиця Шевченка, 1",61,2017-12-07,185,Військовий збір,Податкові платежі,36937,"Полтавська обласна організація політичної партії ""Українське обʼєднання патріотів - УКРОП""",39947896,Полтавська область,"*;101;39947896;1,5% вiйськовий податок з зарплати за 2 половину листопада 2017 р.;;;",26003054616293,current,53.52,УДКСУ у м. Полтаві,38019510,юридична особа
УКРОП,"Київ, вулиця Михайла Грушевського, 1Д",70,2017-12-07,C7O0LIYUVY,Банківські послуги,Інші витрати,36936,"Полтавська обласна організація політичної партії ""Українське обʼєднання патріотів - УКРОП""",39947896,Полтавська область,"Комiсiя за виконання платежiв в нацiональнiй валютi, згiдно з вiдкритою офертою банку N б/н вiд 21.08.2015 та тарифiв банку, без ПДВ.",26003054616293,current,3.00,"ПАТ КБ ""Приватбанк""",14360570,юридична особа
УКРОП,"Полтавська область, Полтава, вулиця Європейська, 155",62,2017-12-07,186,Сплата ЄСВ,Податкові платежі,36935,"Полтавська обласна організація політичної партії ""Українське обʼєднання патріотів - УКРОП""",39947896,Полтавська область,"*;101;39947896;ЄСВ з зарплати за 2 половину листопада 2017 р. 22% - 961,00 грн. Перераховано повнiстю.;;;",26003054616293,current,961.00,ДПІ у м. Полтава ГУ ДФС у Полтавській області,39680655,юридична особа
УКРОП,"Київ, вулиця Михайла Грушевського, 1Д",70,2017-12-07,C7O0LIYUYY,Банківські послуги,Інші витрати,36934,"Полтавська обласна організація політичної партії ""Українське обʼєднання патріотів - УКРОП""",39947896,Полтавська область,"Комiсiя за виконання платежiв в нацiональнiй валютi, згiдно з вiдкритою офертою банку N б/н вiд 21.08.2015 та тарифiв банку, без ПДВ.",26003054616293,current,3.00,"ПАТ КБ ""Приватбанк""",14360570,юридична особа
УКРОП,"Полтавська область, Полтава",84,2017-12-07,платіжна відомість №22,"Заробітна плата, премії","Заробітна плата, лікарняні, вагітності, відрядження, компенсації",36670,"Полтавська обласна організація політичної партії ""Українське обʼєднання патріотів - УКРОП""",39947896,Полтавська область,Заробітна плата за 2 половину листопада 2017 року,26003054616293,current,819.64,Новаковська Алла Миколаївна,,фізична особа
УКРОП,"Полтавська область, Полтавський район",84,2017-12-07,платіжна відомість №22,"Заробітна плата, премії","Заробітна плата, лікарняні, вагітності, відрядження, компенсації",36669,"Полтавська обласна організація політичної партії ""Українське обʼєднання патріотів - УКРОП""",39947896,Полтавська область,Заробітна плата за 2 половину листопада 2017 року,26003054616293,current,716.00,Вовченко Людмила Іванівна,,фізична особа
УКРОП,"Полтавська область, Полтава",84,2017-12-07,платіжна відомість №22,"Заробітна плата, премії","Заробітна плата, лікарняні, вагітності, відрядження, компенсації",36668,"Полтавська обласна організація політичної партії ""Українське обʼєднання патріотів - УКРОП""",39947896,Полтавська область,Заробітна плата за 2 половину листопада 2017 року,26003054616293,current,1408.75,Соловей Сергій Андрійович,,фізична особа
УКРОП,"Київ, вулиця Михайла Грушевського, 1Д",70,2017-12-07,1591400005,Банківські послуги,Інші витрати,36057,"Кіровоградська обласна регіональна парторганізація політичної партії ""Українське обʼєднання патріотів - УКРОП""",39922803,Кіровоградська область,комісія за касове обслуговування по зарахуванню на картки,26009052911811,current,1.61,"ПАТ КБ ""Приватбанк""",14360570,юридична особа
УКРОП,"Київ, вулиця Михайла Грушевського, 1Д",67,2017-12-07,1590800006,"Повернення коштів, що надійшли з державного бюджету","Повернення коштів, що надійшли з державного бюджету",35528,"Запозізька обласна парторганізація політичної партії ""Українське обʼєднання патріотів - УКРОП""",39923938,Запорізька область,грошові кошти надійшли з порушенням вимог законодавства,26430500377611,current,9.80,"ПАТ КБ ""Приватбанк""",14360570,юридична особа
УКРОП,"Київ, вулиця Михайла Грушевського, 1Д",70,2017-12-07,TZ007BG9G4,Банківські послуги,Інші витрати,35271,"Закарпатська обласна організація політичної партії ""Українське обʼєднання патріотів - УКРОП""",40031888,Закарпатська область,"Комiсiя за обслуговування рахунку травень 2017р. згiдно договору банкiвського рахунку вiд 28.09.2015, без ПДВ",26006053910024,current,100.00,"ПАТ КБ ""Приватбанк""",14360570,юридична особа
УКРОП,"Київ, вулиця Михайла Грушевського, 1Д",70,2017-12-07,1740600078,Банківські послуги,Інші витрати,35270,"Закарпатська обласна організація політичної партії ""Українське обʼєднання патріотів - УКРОП""",40031888,Закарпатська область,Погашення комiсiї за кас. обслуг. по зарахуванню на картки згiдно 17406000783 вiд 07.04.2017 р.,26006053910024,current,8.67,"ПАТ КБ ""Приватбанк""",14360570,юридична особа
УКРОП,"Київ, вулиця Михайла Грушевського, 1Д",70,2017-12-07,C6O0LIUW3Y,Банківські послуги,Інші витрати,35269,"Закарпатська обласна організація політичної партії ""Українське обʼєднання патріотів - УКРОП""",40031888,Закарпатська область,"Комiсiя за виконання платежiв в нацiональнiй валютi, згiдно з вiдкритою офертою банку N б/н вiд 28.09.2015 та тарифiв банку, без ПДВ.",26006053910024,current,3.00,"ПАТ КБ ""Приватбанк""",14360570,юридична особа
УКРОП,"Закарпатська область, Ужгород, пл. Поштова, 3",61,2017-12-07,75,Військовий збір,Податкові платежі,35268,"Закарпатська обласна організація політичної партії ""Українське обʼєднання патріотів - УКРОП""",40031888,Закарпатська область,*;101;40031888;вiйськовий збiр за листопад 2017;;;,26006053910024,current,37.50,УДКСУ у м. Ужгороді,38015610,юридична особа
УКРОП,"Київ, вулиця Михайла Грушевського, 1Д",70,2017-12-07,C6O0LIUW2Y,Банківські послуги,Інші витрати,35267,"Закарпатська обласна організація політичної партії ""Українське обʼєднання патріотів - УКРОП""",40031888,Закарпатська область,"Комiсiя за виконання платежiв в нацiональнiй валютi, згiдно з вiдкритою офертою банку N б/н вiд 28.09.2015 та тарифiв банку, без ПДВ.",26006053910024,current,3.00,"ПАТ КБ ""Приватбанк""",14360570,юридична особа
УКРОП,"Закарпатська область, Ужгород, пл. Поштова, 3",63,2017-12-07,74,Податок на доходи,Податкові платежі,35266,"Закарпатська обласна організація політичної партії ""Українське обʼєднання патріотів - УКРОП""",40031888,Закарпатська область,*;101;40031888;ПДФО за листопад 2017 р.;;;,26006053910024,current,162.00,УДКСУ у м. Ужгороді,38015610,юридична особа
УКРОП,"Київ, вулиця Михайла Грушевського, 1Д",70,2017-12-07,C6O0LIUW4Y,Банківські послуги,Інші витрати,35265,"Закарпатська обласна організація політичної партії ""Українське обʼєднання патріотів - УКРОП""",40031888,Закарпатська область,"Комiсiя за виконання платежiв в нацiональнiй валютi, згiдно з вiдкритою офертою банку N б/н вiд 28.09.2015 та тарифiв банку, без ПДВ.",26006053910024,current,3.00,"ПАТ КБ ""Приватбанк""",14360570,юридична особа
УКРОП,"Закарпатська область, Ужгород, вулиця Загорська, 10",62,2017-12-07,73,Сплата ЄСВ,Податкові платежі,35264,"Закарпатська обласна організація політичної партії ""Українське обʼєднання патріотів - УКРОП""",40031888,Закарпатська область,*;101;40031888;Єдиний внесок на соц.страх.для орг.22% iз з/п за листопад 2017р. Нараховоно i перераховано повнiстю.;;;,26006053910024,current,550.00,Ужгородська ОДПІ ГУ ДФС в Закарпатській області,39595916,юридична особа
УКРОП,,84,2017-12-07,76,"Заробітна плата, премії","Заробітна плата, лікарняні, вагітності, відрядження, компенсації",35176,"Закарпатська обласна організація політичної партії ""Українське обʼєднання патріотів - УКРОП""",40031888,Закарпатська область,виплата зарплати за листопад 2017 р,26006053910024,current,2300.50,Польнюк Лідія Юріївна,,фізична особа
УКРОП,"Дніпропетровська область, Дніпро́, вулиця Княгині Ольги, 22",62,2017-12-07,147,Сплата ЄСВ,Податкові платежі,34996,"Дніпропетровська обласна регіональна парторганізація політичної партії ""Українське обʼєднання патріотів - УКРОП""",39874446,Дніпропетровська область,*;101;39874446;сплата єдиного соцiального внеску за другу половину листопада 2017р.;;;,26007050259982,current,569.59,ДЕРЖАВНА ПОДАТКОВА ІНСПЕКЦІЯ У ЦЕНТРАЛЬНОМУ РАЙОНІ м. ДНІПРА ГОЛОВНОГО УПРАВЛІННЯ ДФС У ДНІПРОПЕТРОВСЬКІЙ ОБЛАСТІ,39533006,юридична особа
УКРОП,"Дніпропетровська область, Дніпро́, проспект Дмитра Яворницького, 76",63,2017-12-07,148,Податок на доходи,Податкові платежі,34995,"Дніпропетровська обласна регіональна парторганізація політичної партії ""Українське обʼєднання патріотів - УКРОП""",39874446,Дніпропетровська область,"*;101;39874446;11010100-податок на доходи фiзичних осiб, що сплачується податковими агентами, iз доходiв платника податку у виглядi ЗП за 2 пол.11.2017р ;;;",26007050259982,current,466.04,УДКСУ у Центральному районі м. Дніпра,37989316,юридична особа
УКРОП,"Дніпропетровська область, Дніпро́, проспект Дмитра Яворницького, 76",61,2017-12-07,149,Військовий збір,Податкові платежі,34994,"Дніпропетровська обласна регіональна парторганізація політичної партії ""Українське обʼєднання патріотів - УКРОП""",39874446,Дніпропетровська область,*;101;39874446;11011000-вiйськовий збiр с ЗП працiвникiв за другу половину листопада 2017р;;;,26007050259982,current,38.82,УДКСУ у Центральному районі м. Дніпра,37989316,юридична особа
УКРОП,"Київ, вулиця Михайла Грушевського, 1Д",70,2017-12-07,C7O0LJ5Z5Y,Банківські послуги,Інші витрати,34993,"Дніпропетровська обласна регіональна парторганізація політичної партії ""Українське обʼєднання патріотів - УКРОП""",39874446,Дніпропетровська область,"Комiсiя за виконання платежiв в нацiональнiй валютi, згiдно з вiдкритою офертою банку N б/н вiд 02.09.2015 та тарифiв банку, без ПДВ.",26007050259982,current,3.00,"ПАТ КБ ""Приватбанк""",14360570,юридична особа
УКРОП,"Київ, вулиця Михайла Грушевського, 1Д",70,2017-12-07,C7O0LJ5Z1Y,Банківські послуги,Інші витрати,34992,"Дніпропетровська обласна регіональна парторганізація політичної партії ""Українське обʼєднання патріотів - УКРОП""",39874446,Дніпропетровська область,"Комiсiя за виконання платежiв в нацiональнiй валютi, згiдно з вiдкритою офертою банку N б/н вiд 02.09.2015 та тарифiв банку, без ПДВ.",26007050259982,current,3.00,"ПАТ КБ ""Приватбанк""",14360570,юридична особа
УКРОП,"Київ, вулиця Михайла Грушевського, 1Д",70,2017-12-07,C7O0LJ5YWY,Банківські послуги,Інші витрати,34991,"Дніпропетровська обласна регіональна парторганізація політичної партії ""Українське обʼєднання патріотів - УКРОП""",39874446,Дніпропетровська область,"Комiсiя за виконання платежiв в нацiональнiй валютi, згiдно з вiдкритою офертою банку N б/н вiд 02.09.2015 та тарифiв банку, без ПДВ.",26007050259982,current,3.00,"ПАТ КБ ""Приватбанк""",14360570,юридична особа
УКРОП,"Дніпропетровська область, Дніпро́",84,2017-12-07,150,"Заробітна плата, премії","Заробітна плата, лікарняні, вагітності, відрядження, компенсації",34951,"Дніпропетровська обласна регіональна парторганізація політичної партії ""Українське обʼєднання патріотів - УКРОП""",39874446,Дніпропетровська область,Зарплата за другу половину листопада 2017р. Без ПДВ,26007050259982,current,694.73,Зосим Олена Миколаївна,,фізична особа
УКРОП,"Дніпропетровська область, Дніпро́",84,2017-12-07,150,"Заробітна плата, премії","Заробітна плата, лікарняні, вагітності, відрядження, компенсації",34950,"Дніпропетровська обласна регіональна парторганізація політичної партії ""Українське обʼєднання патріотів - УКРОП""",39874446,Дніпропетровська область,Зарплата за другу половину листопада 2017р. Без ПДВ,26007050259982,current,694.73,Фесюра Анастасія Русланівна,,фізична особа
УКРОП,"Дніпропетровська область, Дніпро́",84,2017-12-07,150,"Заробітна плата, премії","Заробітна плата, лікарняні, вагітності, відрядження, компенсації",34949,"Дніпропетровська обласна регіональна парторганізація політичної партії ""Українське обʼєднання патріотів - УКРОП""",39874446,Дніпропетровська область,Зарплата за другу половину листопада 2017р. Без ПДВ,26007050259982,current,694.73,Остромецький Артем Вʼячеславович,,фізична особа
УКРОП,"Київ, вулиця Михайла Грушевського, 1Д",70,2017-12-07,C7O0LLI16Y,Банківські послуги,Інші витрати,33818,"Вінницька обласна організація політичної партії ""Українське обʼєднання патріотів - УКРОП""",39901123,Вінницька область,"Комiсiя за виконання платежiв в нацiональнiй валютi, згiдно з вiдкритою офертою банку N б/н вiд 03.08.2015 та тарифiв банку, без ПДВ.",26055055311606,current,3.00,"ПАТ КБ ""Приватбанк""",14360570,юридична особа
УКРОП,"Вінницька область, Вінниця, вулиця Замостянська, 7",61,2017-12-07,267,Військовий збір,Податкові платежі,33817,"Вінницька обласна організація політичної партії ""Українське обʼєднання патріотів - УКРОП""",39901123,Вінницька область,*; 39901123;-Вiйськовий збiр вiд зарплати за листопад 2017р.,26055055311606,current,24.00,УДКСУ у м. Вінниці,38054707,юридична особа
УКРОП,"Київ, вулиця Михайла Грушевського, 1Д",70,2017-12-07,C7O0LLI10Y,Банківські послуги,Інші витрати,33816,"Вінницька обласна організація політичної партії ""Українське обʼєднання патріотів - УКРОП""",39901123,Вінницька область,"Комiсiя за виконання платежiв в нацiональнiй валютi, згiдно з вiдкритою офертою банку N б/н вiд 03.08.2015 та тарифiв банку, без ПДВ.",26055055311606,current,3.00,"ПАТ КБ ""Приватбанк""",14360570,юридична особа
УКРОП,"Вінницька область, Вінниця, вулиця Костянтина Василенка, 21",62,2017-12-07,266,Сплата ЄСВ,Податкові платежі,33815,"Вінницька обласна організація політичної партії ""Українське обʼєднання патріотів - УКРОП""",39901123,Вінницька область,*; 39901123;-ЄСВ вiд зарплати за листопад 2017р.,26055055311606,current,352.00,Вінницька ОДПІ ГУ ДФС у Вінницькій області,39476158,юридична особа
УКРОП,"Київ, вулиця Михайла Грушевського, 1Д",70,2017-12-07,C7O0LLI0UY,Банківські послуги,Інші витрати,33814,"Вінницька обласна організація політичної партії ""Українське обʼєднання патріотів - УКРОП""",39901123,Вінницька область,"Комiсiя за виконання платежiв в нацiональнiй валютi, згiдно з вiдкритою офертою банку N б/н вiд 03.08.2015 та тарифiв банку, без ПДВ.",26055055311606,current,3.00,"ПАТ КБ ""Приватбанк""",14360570,юридична особа
УКРОП,"Вінницька область, Вінниця, вулиця Замостянська, 7",63,2017-12-07,265,Податок на доходи,Податкові платежі,33813,"Вінницька обласна організація політичної партії ""Українське обʼєднання патріотів - УКРОП""",39901123,Вінницька область,*; 39901123;-ПДФО вiд зарплати за листопад 2017р.,26055055311606,current,288.00,УДКСУ у м. Вінниці,38054707,юридична особа
УКРОП,"Київ, вулиця Михайла Грушевського, 1Д",70,2017-12-07,264,Банківські послуги,Інші витрати,33812,"Вінницька обласна організація політичної партії ""Українське обʼєднання патріотів - УКРОП""",39901123,Вінницька область,Комiсiя РКО вiд зарплати за листопад 2017р.,26055055311606,current,3.22,"ПАТ КБ ""Приватбанк""",14360570,юридична особа
УКРОП,"Вінницька область, Вінниця, вулиця Сергія Зулінського",84,2017-12-07,виписка банку за 07.12.2017,"Заробітна плата, премії","Заробітна плата, лікарняні, вагітності, відрядження, компенсації",33717,"Вінницька обласна організація політичної партії ""Українське обʼєднання патріотів - УКРОП""",39901123,Вінницька область,зарплата за листопад 2017 року,26055055311606,current,1288.00,Гаврилюк Оксана Володимирівна,2631705507,фізична особа
УКРОП,"Київ, вулиця Михайла Грушевського, 1Д",70,2017-12-06,LAF8700047,Банківські послуги,Інші витрати,38191,"Хмельницька обласна організація політичної партії ""Українське обʼєднання патріотів - УКРОП""",39933490,Хмельницька область,Погашення заборгованості за розрахунково-касове обслуговування згідно угоди РКО № б/н від 07.08.2015,26001052423138,current,98.06,"ПАТ КБ ""Приватбанк""",14360570,юридична особа
УКРОП,"Київ, вулиця Михайла Грушевського, 1Д",70,2017-12-06,6FOO62OWAY,Банківські послуги,Інші витрати,37494,"Сумська обласна організація політичної партії ""Українське обʼєднання патріотів - УКРОП""",39945637,Сумська область,"комісія за обслуговування рахунку за червень 2017р, згідно договору банківського рахунку від 26.08.2016р.",26000055016685,current,3.00,"ПАТ КБ ""Приватбанк""",14360570,юридична особа
УКРОП,"Сумська область, Суми, Іллінська вулиця, 2",76,2017-12-06,470,Послуги зв’язку,Послуги зв’язку,37493,"Сумська обласна організація політичної партії ""Українське обʼєднання патріотів - УКРОП""",39945637,Сумська область,оплата за телекомунікаційні послуги за листопад 2017р.,26000055016685,current,205.99,"Сумська філія ПАТ ""Укртелеком""",23825401,юридична особа
УКРОП,"Сумська область, Глухівський район, Катеринівка",79,2017-12-06,469,"Оренда будинків і приміщень та експлуатаційні витрати (прибирання, страхування орендованих будинків, охорона, сигналізація, ремонт, вивіз сміття, тощо)",Оренда нерухомості,37248,"Сумська обласна організація політичної партії ""Українське обʼєднання патріотів - УКРОП""",39945637,Сумська область,орендна плата за грудень 2017р згідно договору нежилого приміщення № 4 від 05.01.2017р. Без ПДВ,26000055016685,current,2200.00,Самодєлов Юрій Григорович,2643814258,фізична особа
УКРОП,"Київ, вулиця Михайла Грушевського, 1Д",70,2017-12-06,80,Банківські послуги,Інші витрати,36596,"Одеська обласна парторганізація політичної партії ""Українське обʼєднання патріотів - УКРОП""",39994815,Одеська область,Комісія РКО від зарплати за листопад 2017г.,26004054327711,current,3.75,"ПАТ КБ ""Приватбанк""",14360570,юридична особа
УКРОП,"Київ, вулиця Михайла Грушевського, 1Д",70,2017-12-06,C6O0LFYDTY,Банківські послуги,Інші витрати,36595,"Одеська обласна парторганізація політичної партії ""Українське обʼєднання патріотів - УКРОП""",39994815,Одеська область,Комісія за дебетування рахунку,26004054327711,current,3.00,"ПАТ КБ ""Приватбанк""",14360570,юридична особа
УКРОП,"Одеська область, Одеса, вулиця Черняховського, 6",61,2017-12-06,83,Військовий збір,Податкові платежі,36594,"Одеська обласна парторганізація політичної партії ""Українське обʼєднання патріотів - УКРОП""",39994815,Одеська область,*;101;39994815;11011000;;; ВЗ на ЗП за листопад 2017г. Без ПДВ.,26004054327711,current,27.98,УДКСУ у м. Одесі,38016923,юридична особа
УКРОП,"Київ, вулиця Михайла Грушевського, 1Д",70,2017-12-06,C6O0LFYDMY,Банківські послуги,Інші витрати,36593,"Одеська обласна парторганізація політичної партії ""Українське обʼєднання патріотів - УКРОП""",39994815,Одеська область,Комісія за дебетування рахунку,26004054327711,current,3.00,"ПАТ КБ ""Приватбанк""",14360570,юридична особа
УКРОП,"Одеська область, Одеса, проспект Академіка Глушка, 17/2",62,2017-12-06,81,Сплата ЄСВ,Податкові платежі,36592,"Одеська обласна парторганізація політичної партії ""Українське обʼєднання патріотів - УКРОП""",39994815,Одеська область,*;201;39994815;ЄСВ на ЗП за листопад 2017р. Без ПДВ.,26004054327711,current,410.30,ДПІ у Київському р-ні м. Одеси,39549642,юридична особа
УКРОП,"Київ, вулиця Михайла Грушевського, 1Д",70,2017-12-06,C6O0LFYDHY,Банківські послуги,Інші витрати,36591,"Одеська обласна парторганізація політичної партії ""Українське обʼєднання патріотів - УКРОП""",39994815,Одеська область,Комісія за дебетування рахунку,26004054327711,current,3.00,"ПАТ КБ ""Приватбанк""",14360570,юридична особа
УКРОП,"Одеська область, Одеса, вулиця Черняховського, 6",63,2017-12-06,82,Податок на доходи,Податкові платежі,36590,"Одеська обласна парторганізація політичної партії ""Українське обʼєднання патріотів - УКРОП""",39994815,Одеська область,ПДВ *;101;39994815;11010100;;;ПД ФО на ЗП за листопад 2017 р. Без ПДВ.,26004054327711,current,335.70,УДКСУ у м. Одесі,38016923,юридична особа
УКРОП,"Одеська область, Одеса",84,2017-12-06,79,"Заробітна плата, премії","Заробітна плата, лікарняні, вагітності, відрядження, компенсації",36496,"Одеська обласна парторганізація політичної партії ""Українське обʼєднання патріотів - УКРОП""",39994815,Одеська область,Зарплата за листопад 2017г,26004054327711,current,1501.33,Кармазіна Олена Леонідівна,,фізична особа
УКРОП,"Київ, вулиця Михайла Грушевського, 1Д",67,2017-12-06,1591600006,"Повернення коштів, що надійшли з державного бюджету","Повернення коштів, що надійшли з державного бюджету",36257,"Львівська обласна організація політичної партії ""Українське обʼєднання патріотів - УКРОП""",39923503,Львівська область,грошові кошти надійшли з порушенням вимог законодавства,26001053838223,current,15.31,"ПАТ КБ ""Приватбанк""",14360570,юридична особа
УКРОП,"Київ, вулиця Михайла Грушевського, 1Д",70,2017-12-06,C6O0LGPNPY,Банківські послуги,Інші витрати,36056,"Кіровоградська обласна регіональна парторганізація політичної партії ""Українське обʼєднання патріотів - УКРОП""",39922803,Кіровоградська область,комісія за виконання платежів в національній валюті,26009052911811,current,3.00,"ПАТ КБ ""Приватбанк""",14360570,юридична особа
УКРОП,"Київ, вулиця Михайла Грушевського, 1Д",70,2017-12-06,C6O0LGPO8Y,Банківські послуги,Інші витрати,36055,"Кіровоградська обласна регіональна парторганізація політичної партії ""Українське обʼєднання патріотів - УКРОП""",39922803,Кіровоградська область,комісія за виконання платежів в національній валюті,26009052911811,current,3.00,"ПАТ КБ ""Приватбанк""",14360570,юридична особа
УКРОП,"Кіровоградська область, Кропивницький",61,2017-12-06,159,Військовий збір,Податкові платежі,36054,"Кіровоградська обласна регіональна парторганізація політичної партії ""Українське обʼєднання патріотів - УКРОП""",39922803,Кіровоградська область,військовий збір з орендної плати за листопад 2017р.,26009052911811,current,22.50,УДКСУ у м. Кропивницькому,38037409,юридична особа
УКРОП,"Київ, вулиця Михайла Грушевського, 1Д",70,2017-12-06,C6O0LGPO4Y,Банківські послуги,Інші витрати,36053,"Кіровоградська обласна регіональна парторганізація політичної партії ""Українське обʼєднання патріотів - УКРОП""",39922803,Кіровоградська область,комісія за виконання платежів в національній валюті,26009052911811,current,3.00,"ПАТ КБ ""Приватбанк""",14360570,юридична особа
УКРОП,"Кіровоградська область, Кропивницький",63,2017-12-06,154,Податок на доходи,Податкові платежі,36052,"Кіровоградська обласна регіональна парторганізація політичної партії ""Українське обʼєднання патріотів - УКРОП""",39922803,Кіровоградська область,ПДФО 18% із зарплати за другу половину листопада 2017,26009052911811,current,144.00,УДКСУ у м. Кропивницькому,38037409,юридична особа
УКРОП,"Київ, вулиця Михайла Грушевського, 1Д",70,2017-12-06,C6O0LGPNZY,Банківські послуги,Інші витрати,36051,"Кіровоградська обласна регіональна парторганізація політичної партії ""Українське обʼєднання патріотів - УКРОП""",39922803,Кіровоградська область,комісія за виконання платежів в національній валюті,26009052911811,current,3.00,"ПАТ КБ ""Приватбанк""",14360570,юридична особа
УКРОП,"Кіровоградська область, Кропивницький",61,2017-12-06,155,Військовий збір,Податкові платежі,36050,"Кіровоградська обласна регіональна парторганізація політичної партії ""Українське обʼєднання патріотів - УКРОП""",39922803,Кіровоградська область,військовий збір з найманих працівників із заробітної плата за другу половину листопада 2017р.,26009052911811,current,12.00,УДКСУ у м. Кропивницькому,38037409,юридична особа
УКРОП,"Київ, вулиця Михайла Грушевського, 1Д",70,2017-12-06,C6O0LGPNSY,Банківські послуги,Інші витрати,36049,"Кіровоградська обласна регіональна парторганізація політичної партії ""Українське обʼєднання патріотів - УКРОП""",39922803,Кіровоградська область,комісія за виконання платежів в національній валюті,26009052911811,current,3.00,"ПАТ КБ ""Приватбанк""",14360570,юридична особа
УКРОП,"Кіровоградська область, Кропивницький, вул. Глінки, 2",62,2017-12-06,156,Сплата ЄСВ,Податкові платежі,36048,"Кіровоградська обласна регіональна парторганізація політичної партії ""Українське обʼєднання патріотів - УКРОП""",39922803,Кіровоградська область,"ЄСВ 22% , нарахований на заробітну плату за другу половину листопада 2017р.",26009052911811,current,176.00,Кропивницька ОДПІ ГУ ДФС у Кіровоградській області,39484073,юридична особа
УКРОП,"Київ, вулиця Михайла Грушевського, 1Д",70,2017-12-06,C6O0LGPNHY,Банківські послуги,Інші витрати,36047,"Кіровоградська обласна регіональна парторганізація політичної партії ""Українське обʼєднання патріотів - УКРОП""",39922803,Кіровоградська область,комісія за виконання платежів в національній валюті,26009052911811,current,3.00,"ПАТ КБ ""Приватбанк""",14360570,юридична особа
УКРОП,"Кіровоградська область, Кропивницький",63,2017-12-06,158,Податок на доходи,Податкові платежі,36046,"Кіровоградська обласна регіональна парторганізація політичної партії ""Українське обʼєднання патріотів - УКРОП""",39922803,Кіровоградська область,ПДФО 18% із орендної плати за листопад 2017,26009052911811,current,270.00,УДКСУ у м. Кропивницькому,38037409,юридична особа
УКРОП,"Кіровоградська область, Олександрія",79,2017-12-06,157,"Оренда будинків і приміщень та експлуатаційні витрати (прибирання, страхування орендованих будинків, охорона, сигналізація, ремонт, вивіз сміття, тощо)",Оренда нерухомості,35873,"Кіровоградська обласна регіональна парторганізація політичної партії ""Українське обʼєднання патріотів - УКРОП""",39922803,Кіровоградська область,орендна плата за листопад 2017р.,26009052911811,current,1207.50,Деревʼянко Жанна Володимирівна,,фізична особа
УКРОП,м. Кропивницький,84,2017-12-06,153,"Заробітна плата, премії","Заробітна плата, лікарняні, вагітності, відрядження, компенсації",35872,"Кіровоградська обласна регіональна парторганізація політичної партії ""Українське обʼєднання патріотів - УКРОП""",39922803,Кіровоградська область,заробітна плата за другу половину листопада 2017р.,26009052911811,current,644.00,Битко Наталія Станіславівна,,фізична особа
УКРОП,"Київ, вулиця Михайла Грушевського, 1Д",70,2017-12-06,,Банківські послуги,Інші витрати,35527,"Запозізька обласна парторганізація політичної партії ""Українське обʼєднання патріотів - УКРОП""",39923938,Запорізька область,"платежів в національній валюті, згідно офертою банку №б/н від 13.08.2015",26430500377611,current,3.00,"ПАТ КБ ""Приватбанк""",14360570,юридична особа
УКРОП,"Київ, вулиця Михайла Грушевського, 1Д",70,2017-12-06,C6O0LFIANY,Банківські послуги,Інші витрати,35526,"Запозізька обласна парторганізація політичної партії ""Українське обʼєднання патріотів - УКРОП""",39923938,Запорізька область,комісія за виконання,26430500377611,current,3.00,"ПАТ КБ ""Приватбанк""",14360570,юридична особа
УКРОП,"Київ, вулиця Михайла Грушевського, 1Д",70,2017-12-06,C6O0LFIANY,Банківські послуги,Інші витрати,35525,"Запозізька обласна парторганізація політичної партії ""Українське обʼєднання патріотів - УКРОП""",39923938,Запорізька область,"комісія за виконання платежів в національній валюті, згідно офертою банку №б/н від 13.08.2015",26430500377611,current,3.00,"ПАТ КБ ""Приватбанк""",14360570,юридична особа
УКРОП,"Київ, вулиця Михайла Грушевського, 1Д",70,2017-12-06,C6O0LFIAJY,Банківські послуги,Інші витрати,35524,"Запозізька обласна парторганізація політичної партії ""Українське обʼєднання патріотів - УКРОП""",39923938,Запорізька область,"комісія за виконання платежів в національній валюті, згідно офертою банку №б/н від 13.08.2015",26430500377611,current,3.00,"ПАТ КБ ""Приватбанк""",14360570,юридична особа
УКРОП,"Запорізька область, Запоріжжя, вулиця Олександрівська, 7",60,2017-12-06,,Інші податки,Податкові платежі,35523,"Запозізька обласна парторганізація політичної партії ""Українське обʼєднання патріотів - УКРОП""",39923938,Запорізька область,грошові кошти надійшли з порушенням вимог законодавства,26430500377611,current,869.60,УДКСУ в Олександрівському районі м. Запоріжжя,38025440,юридична особа
УКРОП,"Запорізька область, Запоріжжя, вулиця Олександрівська, 7",60,2017-12-06,271,Інші податки,Податкові платежі,35522,"Запозізька обласна парторганізація політичної партії ""Українське обʼєднання патріотів - УКРОП""",39923938,Запорізька область,,26430500377611,current,65.80,УДКСУ в Олександрівському районі м. Запоріжжя,38025440,юридична особа
УКРОП,"Запорізька область, Запоріжжя",84,2017-12-06,269,"Заробітна плата, премії","Заробітна плата, лікарняні, вагітності, відрядження, компенсації",35344,"Запозізька обласна парторганізація політичної партії ""Українське обʼєднання патріотів - УКРОП""",39923938,Запорізька область,"заробітна плата за 2-у пол. листопада 17р. Податки в бюджет перераховані повністю 06,12.17р.",26430500377611,current,1302.15,Россоха Марина Олександрівна,,фізична особа
УКРОП,"Запорізька область, Запоріжжя",84,2017-12-06,269,"Заробітна плата, премії","Заробітна плата, лікарняні, вагітності, відрядження, компенсації",35343,"Запозізька обласна парторганізація політичної партії ""Українське обʼєднання патріотів - УКРОП""",39923938,Запорізька область,"заробітна плата за 2-у пол. листопада 17р. Податки в бюджет перераховані повністю 06,12.17р.",26430500377611,current,1302.15,Гришина Тетяна Миколаївна,,фізична особа
УКРОП,"Запорізька область, Запоріжжя",84,2017-12-06,269,"Заробітна плата, премії","Заробітна плата, лікарняні, вагітності, відрядження, компенсації",35342,"Запозізька обласна парторганізація політичної партії ""Українське обʼєднання патріотів - УКРОП""",39923938,Запорізька область,"заробітна плата за 2-у пол. листопада 17р. Податки в бюджет перераховані повністю 06,12.17р.",26430500377611,current,1314.30,Гришин Ярослав Володимирович,,фізична особа
УКРОП,"Київ, вулиця Михайла Грушевського, 1Д",70,2017-12-06,LAF8H00047,Банківські послуги,Інші витрати,35149,"Житомирська обласна організація політичної партії ""Українське обʼєднання патріотів - УКРОП""",39925338,Житомирська область,"Погашення заборгованості за РКО, згiдно угоди РКО N б/н вiд 17.08.2015",26000055804505,current,48.00,"ПАТ КБ ""Приватбанк""",14360570,юридична особа
УКРОП,"Київ, вулиця Михайла Грушевського, 1Д",70,2017-12-06,C6O0LE1LWY,Банківські послуги,Інші витрати,34923,"Київська обласна організація політичної партії ""Українське обʼєднання патріотів - УКРОП""",39949818,Київська область,"Комісія за виконання платежів в національній валюті, згідно з відкритою офертою банку N б/н від 21.08.2015 та тарифів банку, без ПДВ.",26003052766800,current,3.00,"ПАТ КБ ""Приватбанк""",14360570,юридична особа
